Workbook

Sheet AER CF (hidden)
B1: AER CONDITIONAL FORMATTING
B4: CONDITIONAL FORMATTING MAP
F5: =INDEX(dms_CF_3.6.1, MATCH(dms_TradingName,dms_CF_TradingName))="Y" | G5: =INDEX(dms_CF_3.6.5, MATCH(dms_TradingName,dms_CF_TradingName))="Y" | H5: =INDEX(dms_CF_3.6.6, MATCH(dms_TradingName,dms_CF_TradingName))="Y" | I5: =INDEX(dms_CF_3.6.7.1, MATCH(dms_TradingName,dms_CF_TradingName))="Y" | J5: =INDEX(dms_CF_3.6.7.2, MATCH(dms_TradingName,dms_CF_TradingName))="Y" | K5: =INDEX(dms_CF_3.6.7.3, MATCH(dms_TradingName,dms_CF_TradingName))="Y" | L5: =INDEX(dms_CF_3.6.7.4, MATCH(dms_TradingName,dms_CF_TradingName))="Y" | M5: =INDEX(dms_CF_3.6.8, MATCH(dms_TradingName,dms_CF_TradingName))="Y" | N5: =INDEX(dms_CF_4.1, MATCH(dms_TradingName,dms_CF_TradingName))="Y" | O5: =INDEX(dms_CF_6.6.1, MATCH(dms_TradingName,dms_CF_TradingName))="Y" | P5: =INDEX(dms_CF_6.8, MATCH(dms_TradingName,dms_CF_TradingName))="Y" | Q5: =INDEX(dms_CF_7.12, MATCH(dms_TradingName,dms_CF_TradingName))="Y" | R5: =INDEX(dms_CF_8.1_A, MATCH(dms_TradingName,dms_CF_TradingName))="Y" | S5: =INDEX(dms_CF_8.1_B, MATCH(dms_TradingName,dms_CF_TradingName))="Y" | T5: =INDEX(dms_CF_8.1_Neg, MATCH(dms_TradingName,dms_CF_TradingName))="Y" | U5: =INDEX(dms_CF_4.4.1_Neg, MATCH(dms_TradingName,dms_CF_TradingName))="Y"
B6: dms_CF_TradingName | C6: JurisdictionList | D6: Sector | E6: Segment | F6: dms_CF_3.6.1 | G6: dms_CF_3.6.5 | H6: dms_CF_3.6.6 | I6: dms_CF_3.6.7.1 | J6: dms_CF_3.6.7.2 | K6: dms_CF_3.6.7.3 | L6: dms_CF_3.6.7.4 | M6: dms_CF_3.6.8 | N6: dms_CF_4.1 | O6: dms_CF_6.6.1 | P6: dms_CF_6.8 | Q6: dms_CF_7.12 | R6: dms_CF_8.1_A | S6: dms_CF_8.1_B | T6: dms_CF_8.1_Neg | U6: dms_CF_4.4.1 | V6: dms_CF_MAIFI_flag | W6: Spare1 | X6: Spare2
B7: ActewAGL Distribution | C7: ACT | D7: Electricity | E7: Distribution | G7: Y | I7: Y | J7: Y | K7: N | L7: Y | M7: N | N7: Y | O7: N | P7: Y | Q7: Y | R7: N | S7: Y | T7: Y | U7: N | V7: N | W7: N | X7: N
B8: Ausgrid | C8: NSW | D8: Electricity | E8: Distribution | G8: Y | I8: N | J8: N | K8: N | L8: Y | M8: N | N8: Y | O8: N | P8: Y | Q8: Y | R8: N | S8: Y | T8: Y | U8: N | V8: N | W8: N | X8: N
B9: AusNet (D) | C9: Vic | D9: Electricity | E9: Distribution | G9: N | I9: N | J9: N | K9: N | L9: N | M9: N | N9: Y | O9: N | P9: Y | Q9: N | R9: N | S9: N | T9: Y | U9: N | V9: N | W9: N | X9: N
B10: AusNet (T) | C10: Vic | D10: Electricity | E10: Transmission | G10: N | I10: N | J10: N | K10: N | L10: N | M10: N | N10: Y | O10: N | P10: Y | Q10: N | R10: N | S10: N | T10: Y | U10: N | V10: N | W10: N | X10: N
B11: CitiPower | C11: Vic | D11: Electricity | E11: Distribution | G11: N | I11: N | J11: N | K11: N | L11: N | M11: N | N11: Y | O11: N | P11: Y | Q11: N | R11: N | S11: N | T11: Y | U11: N | V11: N | W11: N | X11: N
B12: Directlink | C12: Qld | D12: Electricity | E12: Transmission | G12: N | I12: N | J12: N | K12: N | L12: N | M12: N | N12: Y | O12: N | P12: Y | Q12: N | R12: N | S12: Y | T12: Y | U12: N | V12: N | W12: N | X12: N
B13: ElectraNet | C13: SA | D13: Electricity | E13: Transmission | G13: N | I13: N | J13: N | K13: N | L13: N | M13: N | N13: Y | O13: N | P13: Y | Q13: N | R13: N | S13: Y | T13: Y | U13: N | V13: N | W13: N | X13: N
B14: Endeavour Energy | C14: NSW | D14: Electricity | E14: Distribution | G14: Y | I14: N | J14: N | K14: N | L14: Y | M14: N | N14: Y | O14: N | P14: Y | Q14: Y | R14: N | S14: Y | T14: Y | U14: Y | V14: N | W14: N | X14: N
B15: Energex | C15: Qld | D15: Electricity | E15: Distribution | G15: Y | I15: N | J15: N | K15: N | L15: N | M15: N | N15: Y | O15: N | P15: Y | Q15: Y | R15: N | S15: Y | T15: Y | U15: Y | V15: N | W15: N | X15: N
B16: Ergon Energy | C16: Qld | D16: Electricity | E16: Distribution | G16: Y | I16: N | J16: N | K16: N | L16: N | M16: N | N16: Y | O16: N | P16: Y | Q16: Y | R16: N | S16: Y | T16: Y | U16: N | V16: N | W16: N | X16: N
B17: Essential Energy | C17: NSW | D17: Electricity | E17: Distribution | G17: Y | I17: N | J17: N | K17: N | L17: Y | M17: N | N17: Y | O17: N | P17: Y | Q17: Y | R17: N | S17: Y | T17: Y | U17: N | V17: N | W17: N | X17: N
B18: Jemena Electricity | C18: Vic | D18: Electricity | E18: Distribution | G18: N | I18: N | J18: N | K18: N | L18: N | M18: N | N18: Y | O18: N | P18: Y | Q18: N | R18: N | S18: N | T18: Y | U18: N | V18: N | W18: N | X18: N
B19: Murraylink | C19: SA | D19: Electricity | E19: Transmission | G19: N | I19: N | J19: N | K19: N | L19: N | M19: N | N19: Y | O19: N | P19: Y | Q19: N | R19: N | S19: Y | T19: Y | U19: N | V19: N | W19: N | X19: N
B20: Power and Water | C20: NT | D20: Electricity | E20: Distribution | G20: N | I20: N | J20: Y | K20: N | L20: N | M20: Y | N20: Y | O20: Y | P20: Y | Q20: Y | R20: N | S20: Y | T20: Y | U20: N | V20: N | W20: N | X20: N
B21: Powercor Australia | C21: Vic | D21: Electricity | E21: Distribution | G21: N | I21: N | J21: N | K21: N | L21: N | M21: N | N21: Y | O21: N | P21: Y | Q21: N | R21: N | S21: N | T21: Y | U21: N | V21: N | W21: N | X21: N
B22: Powerlink | C22: Qld | D22: Electricity | E22: Transmission | G22: N | I22: N | J22: N | K22: N | L22: N | M22: N | N22: Y | O22: N | P22: Y | Q22: N | R22: N | S22: Y | T22: Y | U22: N | V22: N | W22: N | X22: N
B23: SA Power Networks | C23: SA | D23: Electricity | E23: Distribution | G23: Y | I23: N | J23: N | K23: N | L23: N | M23: N | N23: Y | O23: N | P23: Y | Q23: Y | R23: Y | S23: Y | T23: N | U23: N | V23: N | W23: N | X23: N
B24: TasNetworks (D) | C24: Tas | D24: Electricity | E24: Distribution | G24: Y | I24: N | J24: N | K24: N | L24: N | M24: N | N24: Y | O24: N | P24: Y | Q24: Y | R24: N | S24: Y | T24: Y | U24: N | V24: N | W24: N | X24: N
B25: TasNetworks (T) | C25: Tas | D25: Electricity | E25: Transmission | G25: N | I25: N | J25: N | K25: N | L25: N | M25: N | N25: Y | O25: N | P25: Y | Q25: N | R25: N | S25: Y | T25: Y | U25: N | V25: N | W25: N | X25: N
B26: TransGrid | C26: NSW | D26: Electricity | E26: Transmission | G26: N | I26: N | J26: N | K26: N | L26: N | M26: N | N26: Y | O26: N | P26: Y | Q26: N | R26: N | S26: Y | T26: Y | U26: N | V26: N | W26: N | X26: N
B27: United Energy | C27: Vic | D27: Electricity | E27: Distribution | G27: N | I27: N | J27: N | K27: N | L27: N | M27: N | N27: Y | O27: N | P27: Y | Q27: N | R27: N | S27: N | T27: Y | U27: N | V27: N | W27: N | X27: N
B30: Confidential
B31: Amended
B33: Worksheet 6.2 STPIS reliability
B34: Formula | F34: Applied to:
B36: =INDEX(dms_CBD_flag,MATCH(dms_TradingName,dms_TradingName_List))="NO" | F36: $D$11,$D$17,$D$23,$D$33,$D$39,$D$45,$D$55,$D$61,$D$67,$D$77,$D$83,$D$89
B37: =INDEX(dms_Urban_flag,MATCH(dms_TradingName,dms_TradingName_List))="NO" | F37: $D$12,$D$18,$D$24,$D$56,$D$62,$D$78,$D$68,$D$84
B38: =INDEX(dms_ShortRural_flag,MATCH(dms_TradingName,dms_TradingName_List))="NO" | F38: $D$13,$D$19,$D$25,$D$57,$D$63,$D$69,$D$79,$D$85
B39: =INDEX(dms_LongRural_flag,MATCH(dms_TradingName,dms_TradingName_List))="NO" | F39: $D$14,$D$20,$D$26,$D$58,$D$64,$D$65,$D$70,$D$71,$D$80,$D$86
B40: =INDEX(dms_FeederType_5_flag,MATCH(dms_TradingName,dms_TradingName_List))="NO" | F40: $D$87,$D$81,$D$71,$D$65,$D$59,$D$49,$D$43,$D$37,$D$21,$D$15
B41: =dms_MAIFI_Flag="No" | F41: $D$55:$D$72
B44: Business & other details
B45: =(INDEX(dms_Model_Span,MATCH(dms_Model,dms_Model_List))>1)
B46: =(INDEX(dms_Model_Span,MATCH(dms_Model,dms_Model_List))=1)
B49: STYLES IN USE | C49: dms_H
C50: dms_1
C51: dms_2
C52: dms_3
C53: dms_4
C54: dms_5
C55: dms_NUM
C56: dms_NUM%
C57: dms_Row_Locked
C58: dms_Row1
C59: dms_Row2
C60: dms_T1
C61: dms_T2
C62: dms_BH
C63: dms_BY1
C64: dms_BY2
C65: dms_GH
C66: dms_GY1
C67: dms_GY2
C126: 0
C127: =IFERROR(IF(dms_Model="ARR",(MAX(0,dms_0608_LastRow-dms_0608_OffsetRows)),"not an ARR"),"0") -> not an ARR

Sheet AER NRs (hidden)
B1: AER NAMED RANGES
B3: DROP DOWN SELECTORS USED IN WORKBOOKS
B5: COVER SHEET | C5: dms_DataQuality_List | D5: dms_Confid_status_List
C6: -- select -- | D6: -- select --
C7: Actual | D7: Public
C8: Estimate | D8: Confidential
C9: Consolidated
C12: For all files either AER or business needs to be able to specify the type of submission | D12: For PTRM & RFM templates we must provide a choice in case they change their form of control - otherwise it is drawn from the business specific lookup table above.
C13: dms_SourceList | D13: dms_FormControl_Choices
C14: -- select -- | D14: Revenue cap
C15: After appeal | D15: Revenue yield
C16: Draft decision | D16: Weighted average price cap
C17: Final decision
C18: PTRM update 1
C19: PTRM update 2
C20: PTRM update 3
C21: PTRM update 4
C22: PTRM update 5
C23: PTRM update 6
C24: PTRM update 7
C25: Regulatory proposal
C26: Reporting
C27: Revised regulatory proposal
L30: This is used to create an image to insert on 6.3 STPIS sheet - not for dropdown lists.
B31: CA & RESET RINS DNSP | C31: dms_DNSP_020301_SubstationType | D31: dms_DNSP_020301_ProjectType | E31: dms_DNSP_020301_ProjectTrigger | F31: dms_DNSP_020302_ProjectType | G31: dms_DNSP_020302_ProjectTrigger | H31: dms_STPIS_Exclusion_List | I31: dms_Reason_Interruption | J31: dms_Reason_Interruption_Detailed | L31: Reason for interruption
C32: Subtransmission substation | D32: New substation establishment | E32: Demand growth | F32: New line on new route - single circuit | G32: Demand growth | H32: Weather | I32: Animal | J32: Animal impact | L32: Animal | M32: Animal impact
C33: Zone substation | D33: Substation upgrade - capacity | E33: Voltage issues | F33: New line on new route - dual circuit | G33: Voltage issues | H33: Equipment failure | I33: Asset failure | J33: Animal nesting/burrowing, etc and other | M33: Animal nesting/burrowing, etc and other
C34: Switching station | D34: Substation upgrade - voltage | E34: Reactive power issue | F34: New line on new route - other | G34: Reactive power issue | H34: Operational error | I34: Other | J34: Other | M34: Other
C35: Other | D35: Other | E35: Fault level issues | F35: Line rebuild over existing route - single circuit | G35: Fault level issues | H35: Vegetation | I35: Overloads | J35: LV | L35: Asset failure | M35: LV
E36: Safety | F36: Line rebuild over existing route - dual circuit | G36: Net market benefit | H36: Animals | I36: Planned | J36: Distribution substation | M36: Distribution substation
E37: Environment | F37: Reconductor - Single circuit | G37: Safety | H37: Third party impacts | I37: Network business | J37: HV | M37: HV
E38: Other | F38: Reconductor - Dual circuit | G38: Environment | H38: Transmission failure | I38: Third party | J38: Zone substation | M38: Zone substation
F39: Reconductor - Other | G39: Other | H39: Load shedding | I39: Unknown | J39: Subtransmission | M39: Subtransmission
F40: Line upgrade - raising/retensoring | H40: Inter-distributor connection failure | I40: Vegetation | J40: insert description of 'other' | L40: Other | M40: insert description of 'other'
F41: Line upgrade - voltage upgrade | H41: Other | I41: Weather | J41: Network error | L41: Overloads
F42: Line upgrade - capacity | I42: 2 - STPIS Exclusion (3.3)(a) | J42: Switching and protection error | L42: Planned
F43: String spare circuit | I43: 3 - STPIS Exclusion (3.3)(a) | J43: Fire | L43: Network business | M43: Network error
F44: Other | I44: 4 - STPIS Exclusion (3.3)(a) | J44: Other | M44: Switching and protection error
I45: 5 - STPIS Exclusion (3.3)(a) | J45: Dig-in | L45: Third party | M45: Fire
I46: 6 - STPIS Exclusion (3.3)(a) | J46: Unauthorised access | M46: Other
I47: 7 - STPIS Exclusion (3.3)(a) | J47: Vehicle impact | M47: Dig-in
J48: Unknown | M48: Unauthorised access
J49: Blow-in/Fall-in - NSP responsibility | M49: Vehicle impact
J50: Grow-in - NSP responsibility | L50: Unknown | M50: Unknown
J51: Blow-in/Fall-in - Other responsible party | L51: Vegetation | M51: Blow-in/Fall-in - NSP responsibility
J52: Grow-in - Other responsible party | M52: Grow-in - NSP responsibility
M53: Blow-in/Fall-in - Other responsible party
M54: Grow-in - Other responsible party
L55: Weather
L56: 2 - STPIS Exclusion (3.3)(a)
L57: 3 - STPIS Exclusion (3.3)(a)
L58: 4 - STPIS Exclusion (3.3)(a)
L59: 5 - STPIS Exclusion (3.3)(a)
L60: 6 - STPIS Exclusion (3.3)(a)
L61: 7 - STPIS Exclusion (3.3)(a)
B64: CA & RESET RINS TNSP | C64: dms_TNSP_0203_SubstationType | D64: dms_TNSP_020301_ProjectType | E64: dms_TNSP_020301_ProjectTrigger | F64: dms_TNSP_020302_ProjectType | G64: dms_TNSP_0203_ProjectTrigger
C65: Terminal station | D65: New substation establishment | E65: Demand growth | F65: New line on new route - single circuit | G65: Demand growth
C66: Switching station | D66: Capacity upgrade | E66: Voltage issues | F66: New line on new route - dual circuit | G66: Voltage issues
C67: Transmission substation | D67: Voltage upgrade | E67: Reactive power issue | F67: New line on new route - other | G67: Reactive power issue
C68: Other | D68: Other | E68: Fault level issues | F68: Line rebuild over existing route - single circuit | G68: Fault level issues
E69: Net market benefit | F69: Line rebuild over existing route - dual circuit | G69: Net market benefit
E70: Safety | F70: Reconductor - Single circuit | G70: Safety
E71: Environment | F71: Reconductor - Dual circuit | G71: Environment
E72: Other | F72: Reconductor - Other | G72: Other
F73: Line upgrade - raising/retensoring
F74: Line upgrade - voltage upgrade
F75: Line upgrade - capacity
F76: String spare circuit
F77: Other
B81: NAMED RANGES USED IN ETL PROCESS
B83: CA & RESET RINS DNSP ONLY | C83: dms_020303_01_UOM | D83: dms_020501_01_UOM | E83: dms_020501_02_UOM | F83: dms_020501_03_UOM | G83: dms_020501_04_UOM | H83: dms_020701_01_UOM | I83: dms_020701_02_UOM | J83: dms_020701_01_Rows | K83: dms_040102_01_UOM | L83: dms_040102_04_UOM
C84: Circuit line length in km | D84: 0's | E84: 0's | F84: 0's | G84: 0's | H84: km | I84: km | J84: Route line length within zone | K84: 0's | L84: days
C85: Circuit line length in km | D85: 0's | E85: 0's | F85: 0's | G85: 0's | H85: 0's | I85: 0's | J85: Number of maintenance spans | K85: 0's | L85: 0's
C86: Circuit line length in km | D86: MVA added | E86: MVA added | F86: MVA added | G86: MVA added | H86: km | I86: km | J86: Total length of maintenance spans | K86: 0's | L86: $0s
C87: Circuit line length in km | D87: 0's | E87: 0's | F87: 0's | G87: 0's | H87: km | I87: km | J87: Length of vegetation corridors | K87: $0s | L87: 0's
C88: Number | D88: total spend $0s | E88: total spend $0s | F88: total spend $0s | G88: total spend $0s | H88: 0's | I88: 0's | J88: Average number of trees per maintenance span
C89: Number | D89: net circuit km added | E89: net circuit km added | F89: net circuit km added | G89: net circuit km added | H89: years | I89: years | J89: Average frequency of cutting cycle
C90: Number | D90: total spend $0s | E90: total spend $0s | F90: total spend $0s | G90: total spend $0s
D91: net circuit km added | E91: net circuit km added | F91: net circuit km added | G91: net circuit km added
D92: total spend $0s | E92: total spend $0s | F92: total spend $0s | G92: total spend $0s
D93: 0's | F93: $0s
D94: 0's
D95: 0's
D96: $0s
B99: CA & RESET RINS TNSP ONLY | C99: dms_020701_01_UOM
C100: km
C101: 0's
C102: km
C103: 0's
C104: km
C105: metres
C106: years
B109: CA & RESET RINS DNSP & TNSP | C109: dms_020603_01_UOM
C110: 0's
C111: 0's
C112: 0's
C113: 0's
C114: (per cent)
B117: EB & RESET RINS DNSP ONLY | C117: dms_030601_01_UOM | D117: dms_030601_02_UOM | E117: dms_030701_01_UOM | F117: dms_030702_01_UOM | G117: dms_030703_01_UOM
C118: minutes/customer | D118: minutes/customer | E118: Customer / km | F118: % | G118: km
C119: minutes/customer | D119: minutes/customer | E119: MWh/customer | F119: Number of spans
C120: interruptions/customer | D120: interruptions/customer | E120: kVA / customer | F120: Number of spans
C121: interruptions/customer | D121: interruptions/customer | F121: Number of spans
F122: Number of spans
F123: Years
F124: Years
F125: Trees
F126: Trees
F127: Defects
F128: Defects
F129: Spans
F130: km
F131: Spans
C133: WHEN INSERTING COVER SHEET INTO A TNSP FILE - APPLY THESE NAMED RANGES
B134: EB & RESET RINS TNSP ONLY | C134: dms_030601_01_UOM | E134: dms_030701_01_UOM | F134: dms_030702_01_UOM
C135: % | E135: Number of spans | F135: km
C136: number | E136: Years | F136: %
C137: number | E137: Trees | F137: km
C138: % | E138: Defects | F138: number
C139: number | E139: Number of spans
C140: number | E140: km
C141: % | E141: km
C142: number | E142: Number of spans
C143: number
C144: %
C145: number
C146: %
C147: number
C148: %
C149: number
B151: EB & RESET RINS DNSP & TNSP | C151: dms_EB_RAB_PIT
C152: Beginning of year
C153: End of year
C154: End of year
C155: End of year
C156: End of year
C157: End of year
B159: ARR DNSP ONLY | C159: dms_030605_UOM | D159: dms_03060703_UOM | E159: Spare | F159: Spare
C160: number | D160: number
C161: number | D161: number
C162: number | D162: number
C163: number | D163: number
C164: number | D164: (per cent)
C165: number
C166: number
C167: number
C168: number
C169: number
C170: number
C171: number
C172: (per cent)
C173: (per cent)
B175: RFM | C175: dms_Beg | D175: dms_Mid | E175: dms_End
C176: Beginning of year | D176: Mid year | E176: End of Year
B178: PTRM | C178: dms_PTRM_RAB_PIT | D178: dms_PTRM_TAB_PIT | E178: DMS_Xfactor
C179: Beginning of year | D179: Beginning of year | E179: x factors
C180: End of year | D180: End of year
C181: End of year | D181: End of year
C182: End of year | D182: End of year
C183: End of year
B186: STPIS & MIC NAMED RANGES
B188: These "row descriptions" are the column headings in the various templates but become row descriptions in the ETL process
B190: Table 6.3 sustained interruptions - row descriptions | C190: dms_060301_CustNo_Affected_Row | D190: dms_060301_Avg_Duration_Sustained_Int_Row | E190: dms_060301_Effect_unplanned_SAIDI_Row | F190: dms_060301_Effect_unplanned_SAIFI_Row
C191: Number of customers affected by the interruption | D191: Average duration of sustained customer interruption | E191: Effect on unplanned SAIDI | F191: Effect on unplanned SAIFI
B194: Table 6.1 telephone answering - row descriptions and start date | C194: dms_060101_Rows | D194: dms_060102_Rows | E194: dms_060101_StartDateTxt
C195: Total number of calls (after removing excluded events) | D195: Number of calls answered within 30 seconds (after excluding excluded events) | E195: =dms_060701_StartDateTxt -> 1-Jan-2009
B198: Table 6.8.1 - row descriptions | C198: dms_060801_01_Rows | D198: dms_060801_02_Rows | E198: dms_060801_03_Rows | F198: dms_060801_04_Rows
C199: Number of interruptions | D199: Duration of interruptions | E199: Total unplanned minutes off supply | F199: Effect on unplanned MAIFI
B202: Table 7.9.4 - market impact component - row descriptions | C202: dms_070904_01_Rows | D202: without exclusions | E202: with exclusions
B205: These headings (Lists) are determined from the INDEX/MATCH function on the NSP selected on the Business & other details sheet
B207: Table 6.7.1 - daily performance data - unplanned - MAIFI -- row descriptions and header named range values | C207: dms_060701_Feeder_Header_Lvl4 | D207: =INDEX(dms_FeederName_1,MATCH(dms_TradingName,dms_TradingName_List)) -> CBD | E207: =INDEX(dms_FeederName_1,MATCH(dms_TradingName,dms_TradingName_List)) -> CBD | F207: =INDEX(dms_FeederName_2,MATCH(dms_TradingName,dms_TradingName_List)) -> Urban | G207: =INDEX(dms_FeederName_2,MATCH(dms_TradingName,dms_TradingName_List)) -> Urban | H207: =INDEX(dms_FeederName_3,MATCH(dms_TradingName,dms_TradingName_List)) -> Short rural | I207: =INDEX(dms_FeederName_3,MATCH(dms_TradingName,dms_TradingName_List)) -> Short rural | J207: =INDEX(dms_FeederName_4,MATCH(dms_TradingName,dms_TradingName_List)) -> Long rural | K207: =INDEX(dms_FeederName_4,MATCH(dms_TradingName,dms_TradingName_List)) -> Long rural | L207: =IF((INDEX(dms_FeederName_5,MATCH(dms_TradingName,dms_TradingName_List))=0),"Network",(INDEX(dms_FeederName_5,MATCH(dms_TradingName,dms_TradingName_List)))) -> Network | M207: =IF((INDEX(dms_FeederName_5,MATCH(dms_TradingName,dms_TradingName_List))=0),"Network",(INDEX(dms_FeederName_5,MATCH(dms_TradingName,dms_TradingName_List)))) -> Network | N207: Network | O207: Network
C209: dms_060701_Rows | D209: All events | E209: After removing excluded events | F209: All events | G209: After removing excluded events | H209: All events | I209: After removing excluded events | J209: All events | K209: After removing excluded events | L209: All events | M209: After removing excluded events | N209: All events | O209: After removing excluded events
D210: the number of column headings changes from 10 to 12 depending on the number of feeder categories for the NSP
C212: dms_0603_FeederList | D212: =INDEX(dms_FeederName_1,MATCH(dms_TradingName,dms_TradingName_List)) -> CBD | E212: =INDEX(dms_FeederName_2,MATCH(dms_TradingName,dms_TradingName_List)) -> Urban | F212: =INDEX(dms_FeederName_3,MATCH(dms_TradingName,dms_TradingName_List)) -> Short rural | G212: =INDEX(dms_FeederName_4,MATCH(dms_TradingName,dms_TradingName_List)) -> Long rural
B215: Use these to add to specific worksheets in existing files | C215: Use these to add to specific worksheets in existing files
B218: ARRs 6.7 STPIS daily performance | C218: dms_060101_Values | D218: dms_060102_Values | E218: dms_060701_Values
C219: dms_LeapYear
B222: ARR's 6.8 STPIS exclusions | C222: dms_060801_Event_Date | D222: dms_060801_OutageID | E222: dms_060801_FeederID | F222: dms_060801_FeederClass | G222: dms_060801_CauseID | H222: dms_060801_01_Values | I222: dms_060801_02_Values | J222: dms_060801_03_Values | K222: dms_060801_Excl_Cat | L222: dms_060801_04_Values
C223: dms_060801_StartCell
B226: CA 6.3 sustained interruptions | C226: dms_060301_Event_Date | D226: dms_060301_Event_Time | E226: dms_060301_AssetID | F226: dms_060301_FeederClass | G226: dms_060301_Reason | H226: dms_060301_DetailedReason | I226: dms_060301_CustNo_Affected_Values | J226: dms_060301_Avg_Duration_Sustained_Int_Values | K226: dms_060301_Effect_unplanned_SAIDI_Values | L226: dms_060301_Effect_unplanned_SAIFI_Values | M226: dms_060301_MED

Sheet AER lookups (hidden)
B1: AER LOOKUP TABLES
B3: Data in these columns used for data validation and database purposes.
B4: Date last modified: | C4: 2017-01-16 | D4: added (Albury and Victora) for AGN
C5: 2016-10-17 | D5: updated TransGrid's correct legal name, corrected TasNetworks (T) to June financial year
C6: 2017-02-01 | D6: inserted Power and Water, added NRs (dms_FeederCat_1 and dms_FeederCat_2)
C7: 2017-03-03 | D7: inserted AEMO as a business | Z7: FOR ELECTRICITY BUSINESSES ONLY
C8: 2018-03-28 | D8: major changes to accommodate STPIS
C9: Template Version | D9: 5 | Z9: Feeder Types | AD9: TasNetworks (D) | AE9: MAIFI flag | AF9: Feeder Names
Z11: CBD | AA11: Urban | AB11: Short rural | AC11: long rural | AD11: EXTRA
B12: dms_TradingName_List | C12: dms_TradingNameFull_List | D12: dms_ABN_List | E12: dms_JurisdictionList | F12: dms_Sector_List | G12: dms_Segment_List | H12: dms_FormControl_List | I12: dms_RPT_List | J12: dms_RPTMonth_List | K12: dms_CRCPlength_List | L12: dms_FRCPlength_List | M12: dms_PRCPlength_List | N12: dms_663_List | O12: dms_DeterminationRef_List | P12: dms_Addr1_List | Q12: dms_Addr2_List | R12: dms_Suburb_List | S12: dms_State_List | T12: dms_PostCode_List | U12: dms_PAddr1_List | V12: dms_PAddr2_List | W12: dms_PSuburb_List | X12: dms_PState_List | Y12: dms_PPostCode_List | Z12: dms_CBD_flag | AA12: dms_Urban_flag | AB12: dms_ShortRural_flag | AC12: dms_LongRural_flag | AD12: dms_FeederType_5_flag | AE12: dms_MAIFI_flag_List | AF12: dms_FeederName_1 | AG12: dms_FeederName_2 | AH12: dms_FeederName_3 | AI12: dms_FeederName_4 | AJ12: dms_FeederName_5 | AK12: dms_Public_Lighting_List | AL12: Names
B13: AusNet (D) | C13: AusNet Electricity Services Pty Ltd | D13: 91064651118 | E13: Vic | F13: Electricity | G13: Distribution | H13: Revenue cap | I13: Calendar | J13: December | K13: 5 | L13: 5 | M13: 5 | N13: 2 | O13: 2016-20 Distribution Determination | P13: Level 32 | Q13: 2 Southbank Boulevard | R13: SOUTHBANK | S13: Vic | T13: 3006 | U13: Locked Bag 14051 | W13: MELBOURNE CITY MAIL CENTRE | X13: Vic | Y13: 8001 | Z13: NO | AA13: YES | AB13: YES | AC13: YES | AD13: NO | AE13: YES | AF13: CBD | AG13: Urban | AH13: Short rural | AI13: Long rural | AK13: YES | AL13: AusNet (D)
B14: Australian Distribution Co. (Vic) | C14: Australian Distribution Co. (Victoria) | D14: 11222333444 | E14: Vic | F14: Electricity | G14: Distribution | H14: Revenue cap | I14: Calendar | J14: December | K14: 5 | L14: 5 | M14: 5 | N14: 2 | O14: distribution determination | P14: 123 Straight Street | R14: MELBOURNE | S14: Vic | T14: 3000 | U14: PO Box 123 | W14: MELBOURNE | X14: Vic | Y14: 3000 | Z14: NO | AA14: NO | AB14: NO | AC14: NO | AD14: NO | AE14: YES | AF14: CBD | AG14: Urban | AH14: Short rural | AI14: Long rural | AK14: YES | AL14: Australian Distribution Co. (Vic)
B15: CitiPower | C15: CitiPower | D15: 76064651056 | E15: Vic | F15: Electricity | G15: Distribution | H15: Revenue cap | I15: Calendar | J15: December | K15: 5 | L15: 5 | M15: 5 | N15: 2 | O15: 2016-20 Distribution Determination | P15: 40 Market Street | R15: MELBOURNE | S15: Vic | T15: 3000 | U15: Locked Bag 14090 | W15: MELBOURNE | X15: Vic | Y15: 8001 | Z15: YES | AA15: YES | AB15: NO | AC15: NO | AD15: NO | AE15: YES | AF15: CBD | AG15: Urban | AH15: Short rural | AI15: Long rural | AK15: YES | AL15: CitiPower
B16: Jemena Electricity | C16: Jemena Electricity | D16: 82064651083 | E16: Vic | F16: Electricity | G16: Distribution | H16: Revenue cap | I16: Calendar | J16: December | K16: 5 | L16: 5 | M16: 5 | N16: 2 | O16: 2016-20 Distribution Determination | P16: Level 16 | Q16: 567 Collins Street | R16: MELBOURNE | S16: Vic | T16: 3000 | U16: PO Box 16182 | W16: MELBOURNE | X16: Vic | Y16: 8001 | Z16: NO | AA16: YES | AB16: YES | AC16: NO | AD16: NO | AE16: YES | AF16: CBD | AG16: Urban | AH16: Short rural | AI16: Long rural | AK16: YES | AL16: Jemena Electricity
B17: Powercor Australia | C17: Powercor Australia | D17: 89064651109 | E17: Vic | F17: Electricity | G17: Distribution | H17: Revenue cap | I17: Calendar | J17: December | K17: 5 | L17: 5 | M17: 5 | N17: 2 | O17: 2016-20 Distribution Determination | P17: 40 Market Street | R17: MELBOURNE | S17: Vic | T17: 3000 | U17: Locked bag 14090 | W17: MELBOURNE | X17: Vic | Y17: 8001 | Z17: NO | AA17: NO | AB17: YES | AC17: YES | AD17: NO | AE17: YES | AF17: CBD | AG17: Urban | AH17: Short rural | AI17: Long rural | AK17: YES | AL17: Powercor Australia
B18: United Energy | C18: United Energy | D18: 70064651029 | E18: Vic | F18: Electricity | G18: Distribution | H18: Revenue cap | I18: Calendar | J18: December | K18: 5 | L18: 5 | M18: 5 | N18: 2 | O18: 2016-20 Distribution Determination | P18: 43-45 Centreway | R18: MOUNT WAVERLEY | S18: Vic | T18: 3149 | U18: PO Box 449 | W18: MOUNT WAVERLEY | X18: Vic | Y18: 3170 | Z18: NO | AA18: NO | AB18: YES | AC18: NO | AD18: NO | AE18: YES | AF18: CBD | AG18: Urban | AH18: Short rural | AI18: Long rural | AK18: YES | AL18: United Energy
B23: The Reg Year Ending (dms_RYE) must be set to the last year of the regulatory period. For forecast data is is usually (FRCP_y5) for actual it is a single year (CRY). For historical actual data the RYE will need to be set manually in the business details sheet by setting the dms_Multiyear_flag to 1 and putting the correct value in 'dms_Specified_FinalYear. See cells C67:C68
B24: dms_Model_List | C24: dms_Model_Name_Format1 | D24: dms_Worksheet_List | E24: dms_Model_Span_List
B25: ARR | C25: Annual Reporting | D25: =IF(dms_MultiYear_ResponseFlag="yes","RECAST HISTORICAL ANNUAL REPORTING","ANNUAL REPORTING") -> RECAST HISTORICAL ANNUAL REPORTING | E25: 1
B26: CA | C26: Category Analysis | D26: =IF(dms_MultiYear_ResponseFlag="yes","RECAST HISTORICAL CATEGORY ANALYSIS - CALENDAR YEARS","CATEGORY ANALYSIS") -> RECAST HISTORICAL CATEGORY ANALYSIS - CALENDAR YEARS | E26: 1
B27: CESS | C27: Capitlal Expenditure | D27: CAPITLAL EXPENDITURE SHARING SCHEMING | E27: 5
B28: CPI | C28: CPI | D28: CPI | E28: 5
B29: EB | C29: Economic Benchmarking | D29: =IF(dms_MultiYear_ResponseFlag="yes","RECAST HISTORICAL ECONOMIC BENCHMARKING","ECONOMIC BENCHMARKING") -> RECAST HISTORICAL ECONOMIC BENCHMARKING | E29: 1
B30: Pricing | C30: Pricing Proposal | D30: PRICING PROPOSAL | E30: 5
B31: PTRM | C31: Post Tax Revenue Model | D31: POST TAX REVENUE MODEL | E31: 5
B32: Reset | C32: Regulatory Reporting (Reset) | D32: REGULATORY REPORTING STATEMENT | E32: 5
B33: RFM | C33: Roll Forward Model | D33: ROLL FORWARD MODEL | E33: 5
B34: WACC | C34: Weighted Average Cost of Capital | D34: WEIGHTED AVERAGE COST OF CAPITAL | E34: 1
B38: Financial | C38: Calendar | E38: PREVIOUS | G38: CURRENT | I38: FORTHCOMING
B39: 1987-88 | C39: 1988 | D39: PRCP_y1 | E39: =INDEX(INDIRECT(dms_RPT),dms_PRCP_start_row) -> 2011 | F39: CRCP_y1 | G39: =INDEX(INDIRECT(dms_RPT),dms_CRCP_start_row) -> 2016 | H39: =FRCP_y1 -> 2021 | I39: =INDEX(INDIRECT(dms_RPT),dms_FRCP_start_row) -> 2021
B40: 1988-89 | C40: 1989 | D40: PRCP_y2 | E40: =INDEX(INDIRECT(dms_RPT),dms_PRCP_start_row+1) -> 2012 | F40: CRCP_y2 | G40: =INDEX(INDIRECT(dms_RPT),dms_CRCP_start_row+1) -> 2017 | H40: FRCP_y2 | I40: =INDEX(INDIRECT(dms_RPT),dms_FRCP_start_row+1) -> 2022
B41: 1989-90 | C41: 1990 | D41: PRCP_y3 | E41: =INDEX(INDIRECT(dms_RPT),dms_PRCP_start_row+2) -> 2013 | F41: CRCP_y3 | G41: =INDEX(INDIRECT(dms_RPT),dms_CRCP_start_row+2) -> 2018 | H41: FRCP_y3 | I41: =INDEX(INDIRECT(dms_RPT),dms_FRCP_start_row+2) -> 2023
B42: 1990-91 | C42: 1991 | D42: PRCP_y4 | E42: =INDEX(INDIRECT(dms_RPT),dms_PRCP_start_row+3) -> 2014 | F42: CRCP_y4 | G42: =INDEX(INDIRECT(dms_RPT),dms_CRCP_start_row+3) -> 2019 | H42: FRCP_y4 | I42: =INDEX(INDIRECT(dms_RPT),dms_FRCP_start_row+3) -> 2024
B43: 1991-92 | C43: 1992 | D43: PRCP_y5 | E43: =INDEX(INDIRECT(dms_RPT),dms_PRCP_start_row+4) -> 2015 | F43: CRCP_y5 | G43: =INDEX(INDIRECT(dms_RPT),dms_CRCP_start_row+4) -> 2020 | H43: FRCP_y5 | I43: =INDEX(INDIRECT(dms_RPT),dms_FRCP_start_row+4) -> 2025
B44: 1992-93 | C44: 1993 | D44: PRCP_y6 | E44: =INDEX(INDIRECT(dms_RPT),dms_PRCP_start_row+5) -> 2016 | F44: CRCP_y6 | G44: =INDEX(INDIRECT(dms_RPT),dms_CRCP_start_row+5) -> 2021 | H44: FRCP_y6 | I44: =INDEX(INDIRECT(dms_RPT),dms_FRCP_start_row+5) -> 2026
B45: 1993-94 | C45: 1994 | D45: PRCP_y7 | E45: =INDEX(INDIRECT(dms_RPT),dms_PRCP_start_row+6) -> 2017 | F45: CRCP_y7 | G45: =INDEX(INDIRECT(dms_RPT),dms_CRCP_start_row+6) -> 2022 | H45: FRCP_y7 | I45: =INDEX(INDIRECT(dms_RPT),dms_FRCP_start_row+6) -> 2027
B46: 1994-95 | C46: 1995 | D46: PRCP_y8 | E46: =INDEX(INDIRECT(dms_RPT),dms_PRCP_start_row+7) -> 2018 | F46: CRCP_y8 | G46: =INDEX(INDIRECT(dms_RPT),dms_CRCP_start_row+7) -> 2023 | H46: FRCP_y8 | I46: =INDEX(INDIRECT(dms_RPT),dms_FRCP_start_row+7) -> 2028
B47: 1995-96 | C47: 1996 | D47: PRCP_y9 | E47: =INDEX(INDIRECT(dms_RPT),dms_PRCP_start_row+8) -> 2019 | F47: CRCP_y9 | G47: =INDEX(INDIRECT(dms_RPT),dms_CRCP_start_row+8) -> 2024 | H47: FRCP_y9 | I47: =INDEX(INDIRECT(dms_RPT),dms_FRCP_start_row+8) -> 2029
B48: 1996-97 | C48: 1997 | D48: PRCP_y10 | E48: =INDEX(INDIRECT(dms_RPT),dms_PRCP_start_row+9) -> 2020 | F48: CRCP_y10 | G48: =INDEX(INDIRECT(dms_RPT),dms_CRCP_start_row+9) -> 2025 | H48: FRCP_y10 | I48: =INDEX(INDIRECT(dms_RPT),dms_FRCP_start_row+9) -> 2030
B49: 1997-98 | C49: 1998 | D49: PRCP_y11 | E49: =INDEX(INDIRECT(dms_RPT),dms_PRCP_start_row+10) -> 2021 | F49: CRCP_y11 | G49: =INDEX(INDIRECT(dms_RPT),dms_CRCP_start_row+10) -> 2026 | H49: FRCP_y11 | I49: =INDEX(INDIRECT(dms_RPT),dms_FRCP_start_row+10) -> 2031
B50: 1998-99 | C50: 1999 | D50: PRCP_y12 | E50: =INDEX(INDIRECT(dms_RPT),dms_PRCP_start_row+11) -> 2022 | F50: CRCP_y12 | G50: =INDEX(INDIRECT(dms_RPT),dms_CRCP_start_row+11) -> 2027 | H50: FRCP_y12 | I50: =INDEX(INDIRECT(dms_RPT),dms_FRCP_start_row+11) -> 2032
B51: 1999-00 | C51: 2000 | D51: PRCP_y13 | E51: =INDEX(INDIRECT(dms_RPT),dms_PRCP_start_row+12) -> 2023 | F51: CRCP_y13 | G51: =INDEX(INDIRECT(dms_RPT),dms_CRCP_start_row+12) -> 2028 | H51: FRCP_y13 | I51: =INDEX(INDIRECT(dms_RPT),dms_FRCP_start_row+12) -> 2033
B52: 2000-01 | C52: 2001 | D52: PRCP_y14 | E52: =INDEX(INDIRECT(dms_RPT),dms_PRCP_start_row+13) -> 2024 | F52: CRCP_y14 | G52: =INDEX(INDIRECT(dms_RPT),dms_CRCP_start_row+13) -> 2029 | H52: FRCP_y14 | I52: =INDEX(INDIRECT(dms_RPT),dms_FRCP_start_row+13) -> 2034
B53: 2001-02 | C53: 2002 | D53: PRCP_y15 | E53: =INDEX(INDIRECT(dms_RPT),dms_PRCP_start_row+14) -> 2025 | F53: CRCP_y15 | G53: =INDEX(INDIRECT(dms_RPT),dms_CRCP_start_row+14) -> 2030 | H53: FRCP_y15 | I53: =INDEX(INDIRECT(dms_RPT),dms_FRCP_start_row+14) -> 2035
B54: 2002-03 | C54: 2003 | D54: PRCP_y16 | E54: =INDEX(INDIRECT(dms_RPT),dms_PRCP_start_row+15) -> 2026 | F54: CRCP_y16 | G54: =INDEX(INDIRECT(dms_RPT),dms_CRCP_start_row+15) -> 2031 | H54: FRCP_y16 | I54: =INDEX(INDIRECT(dms_RPT),dms_FRCP_start_row+15) -> 2036
B55: 2003-04 | C55: 2004
B56: 2004-05 | C56: 2005
B57: 2005-06 | C57: 2006 | E57: CRY - FRY
B58: 2006-07 | C58: 2007 | D58: dms_y1 | E58: =IFERROR(INDEX(INDIRECT(dms_RPT),dms_CRY_start_row),0) -> 2009
B59: 2007-08 | C59: 2008 | D59: dms_y2 | E59: =IFERROR(INDEX(INDIRECT(dms_RPT),dms_CRY_start_row+1),0) -> 2010
B60: 2008-09 | C60: 2009 | D60: dms_y3 | E60: =IFERROR(INDEX(INDIRECT(dms_RPT),dms_CRY_start_row+2),0) -> 2011
B61: 2009-10 | C61: 2010 | D61: dms_y4 | E61: =IFERROR(INDEX(INDIRECT(dms_RPT),dms_CRY_start_row+3),0) -> 2012
B62: 2010-11 | C62: 2011 | D62: dms_y5 | E62: =IFERROR(INDEX(INDIRECT(dms_RPT),dms_CRY_start_row+4),0) -> 2013
B63: 2011-12 | C63: 2012 | D63: dms_y6 | E63: =IFERROR(INDEX(INDIRECT(dms_RPT),dms_CRY_start_row+5),0) -> 2014
B64: 2012-13 | C64: 2013 | D64: dms_y7 | E64: =IFERROR(INDEX(INDIRECT(dms_RPT),dms_CRY_start_row+6),0) -> 2015
B65: 2013-14 | C65: 2014 | D65: dms_y8 | E65: =IFERROR(INDEX(INDIRECT(dms_RPT),dms_CRY_start_row+7),0) -> 2016
B66: 2014-15 | C66: 2015 | D66: dms_y9 | E66: =IFERROR(INDEX(INDIRECT(dms_RPT),dms_CRY_start_row+8),0) -> 2017
B67: 2015-16 | C67: 2016 | D67: dms_y10 | E67: =IFERROR(INDEX(INDIRECT(dms_RPT),dms_CRY_start_row+9),0) -> 2018
B68: 2016-17 | C68: 2017 | D68: dms_y11 | E68: =IFERROR(INDEX(INDIRECT(dms_RPT),dms_CRY_start_row+10),0) -> 2019
B69: 2017-18 | C69: 2018 | D69: dms_y12 | E69: =IFERROR(INDEX(INDIRECT(dms_RPT),dms_CRY_start_row+11),0) -> 2020
B70: 2018-19 | C70: 2019 | D70: dms_y13 | E70: =IFERROR(INDEX(INDIRECT(dms_RPT),dms_CRY_start_row+12),0) -> 2021
B71: 2019-20 | C71: 2020 | D71: dms_y14 | E71: =IFERROR(INDEX(INDIRECT(dms_RPT),dms_CRY_start_row+13),0) -> 2022
B72: 2020-21 | C72: 2021 | D72: dms_y15 | E72: =IFERROR(INDEX(INDIRECT(dms_RPT),dms_CRY_start_row+14),0) -> 2023
B73: 2021-22 | C73: 2022 | D73: dms_y16 | E73: =IFERROR(INDEX(INDIRECT(dms_RPT),dms_CRY_start_row+15),0) -> 2024
B74: 2022-23 | C74: 2023
B75: 2023-24 | C75: 2024
B76: 2024-25 | C76: 2025
B77: 2025-26 | C77: 2026
B78: 2026-27 | C78: 2027
B79: 2027-28 | C79: 2028
B80: 2028-29 | C80: 2029
B81: 2029-30 | C81: 2030
B82: 2030-31 | C82: 2031
B83: 2031-32 | C83: 2032
B84: 2032-33 | C84: 2033
B85: 2033-34 | C85: 2034
B86: 2034-35 | C86: 2035
B87: 2035-36 | C87: 2036
B88: 2036-37 | C88: 2037

Sheet AER ETL (hidden)
B1: AER ETL INFORMATION
B3: USES NAMED RANGES FLAG | C3: yes | D3: dms_Defined_Names_Used
B5: IF THIS IS AN ABC RIN - make sure the the named range CRY is applied and the named range dms_dollar_nom_UOM is applied
B6: IF THIS IS A RESET RIN - make sure the named ranges CRY and dms_dollar_nom_UOM are NOT present in the workbook
B7: FOR ABC RINS THAT SPAN MULTIPLE YEARS - make sure MultiYear Flag is set and final year entered as required
B9: Full trading name | C9: =INDEX(dms_TradingNameFull_List,MATCH(dms_TradingName,dms_TradingName_List)) -> CitiPower | E9: dms_TradingNameFull
A10: Selected here | B10: Model / RIN | C10: CA | D10: dms_Model
A11: Read from Business & other details | B11: Source | C11: =dms_Selected_Source -> Regulatory proposal | D11: dms_Source
B12: Data quality | C12: =dms_Selected_Quality -> Consolidated | D12: dms_DQ_1
B13: Data status | C13: =dms_Selected_Status -> Public | D13: dms_DQ_2
B14: Amendment reason | C14: =dms_Amendment_Text -> . | F14: dms_AmendmentReason
B15: Submission date | C15: =dms_Typed_Submission_Date -> 2020-01-31 | D15: dms_SubmissionDate
A17: Redundant | B17: EBSS - First application of scheme in forthcoming period? | C17: No
A18: Pre-populated from lookup table | B18: Data ingestion data quality | C18: Consolidated | D18: dms_DataQuality | E18: =IF(dms_DQ_2="Confidential","Consolidated","Public")
B19: Sector | C19: =INDEX(dms_Sector_List,MATCH(dms_TradingName,dms_TradingName_List)) -> Electricity | D19: dms_Sector | E19: =INDEX(dms_Sector_List,MATCH(dms_TradingName,dms_TradingName_List))
B20: Segment | C20: =INDEX(dms_Segment_List,MATCH(dms_TradingName,dms_TradingName_List)) -> Distribution | D20: dms_Segment | E20: =INDEX(dms_Segment_List,MATCH(dms_TradingName,dms_TradingName_List))
B21: Regulatory Year Ending | C21: =dms_RYE_result -> 2018 | D21: dms_RYE | E21: =IF(dms_MultiYear_Flag=1,LEFT(dms_Specified_FinalYear,2)&RIGHT(dms_Specified_FinalYear,2),INDEX(dms_RYE_Formula_Result,MATCH(dms_Model,dms_Model_List)))
B22: Reporting Period Type | C22: =INDEX(dms_RPT_List,MATCH(dms_TradingName,dms_TradingName_List)) -> Calendar | D22: dms_RPT | E22: =INDEX(dms_RPT_List,MATCH(dms_TradingName,dms_TradingName_List))
B23: EB/CA Unit of Measure for Monetary Values | C23: $0s | D23: dms_dollar_nom_UOM | E23: If the cover sheet is attached to an ABC RIN apply the NAMED RANGE to the cell
B24: Security Classification | C24: Public | D24: dms_Classification | E24: Always Public
B25: Jurisdiction | C25: =INDEX(dms_JurisdictionList,MATCH(dms_TradingName,dms_TradingName_List)) -> Vic | D25: dms_Jurisdiction | E25: =INDEX(dms_JurisdictionList,MATCH(dms_TradingName,dms_TradingName_List))
A26: Relevant for PTRM, RFMs and Reset RINS | B26: $ REAL REFERENCES
B27: Does the named range CRY exist in this file? | C27: =IFERROR(CRY,"NO") -> 2009
B28: CRY-1 (last full calendar year before CRY) | C28: =IFERROR(IF(dms_RPT="calendar",CRY-1,LEFT(CRY,4)),"CRY not present") -> 2008 | D28: dms_Cal_Year_B4_CRY | E28: '=IF(dms_RPT="financial",VALUE(LEFT(dms_SingleYear_FinalYear_Result,4)),VALUE(LEFT(dms_SingleYear_FinalYear_Result,4)-1))
B29: Dollar $ real month | C29: =INDEX(dms_RPTMonth_List,MATCH(dms_TradingName,dms_TradingName_List)) -> December | D29: dms_RPTMonth | E29: =INDEX(dms_RPTMonth_List,MATCH(dms_TradingName,dms_TradingName_List))
B30: Dollar $ real (the last month before the FRCP_y1) | C30: =IF(dms_SingleYearModel="yes",CONCATENATE(dms_RPTMonth)&" "&VALUE((LEFT(CRY,2))&RIGHT(CRY,2)),CONCATENATE(dms_RPTMonth)&" "&dms_DollarReal_year) -> December 2009 | D30: dms_DollarReal | E30: =IF(SUM(dms_SingleYear_Model)>0,CONCATENATE(dms_RPTMonth)&" "&VALUE((LEFT(CRY,2))&RIGHT(CRY,2)),CONCATENATE(dms_RPTMonth)&" "&VALUE((LEFT(dms_RYE,2)&RIGHT(dms_RYE,2))))
B31: Dollar $ real previous year (PRCP_y5) | C31: =IF(dms_SingleYearModel="yes",CONCATENATE(dms_RPTMonth)&" "&VALUE((LEFT(CRY,2))&RIGHT(CRY,2)),CONCATENATE(dms_RPTMonth)&" "&dms_Previous_DollarReal_year) -> December 2009 | D31: dms_DollarReal_Prev | E31: =IF(SUM(dms_SingleYear_Model)>0,CONCATENATE(dms_RPTMonth)&" "&VALUE(((LEFT(CRY,2))&RIGHT(CRY,2))-1),CONCATENATE(dms_RPTMonth)&" "&VALUE(((LEFT(dms_CRCP_FirstYear_Result,2)&RIGHT(dms_CRCP_FirstYear_Result,2))))-1)
B32: PTRM/ RFMs
B33: Form of control | C33: =INDEX(dms_FormControl_List,MATCH(dms_TradingName,dms_TradingName_List)) -> Revenue cap | D33: dms_FormControl | E33: =INDEX(dms_FormControl_List,MATCH(dms_TradingName,dms_TradingName_List))
A34: All potential values for Regulatory Years or RYEs as calculated | B34: This block works out the various RYE's for ALL RIN types and MODELS
B35: dms_start_year | C35: =FRCP_y1 -> 2021 | D35: FRCP_y1 from cover sheet
B36: dms_CRY_start_year | C36: =IFERROR(CRY,CRCP_y4) -> 2009
B37: dms_CRY_start_row | C37: =MATCH(dms_CRY_start_year,INDIRECT(dms_RPT),0) -> 22
B38: dms_FRCP_start_row | C38: =MATCH(dms_start_year,INDIRECT(dms_RPT),0) -> 34 | D38: Uses FRCP_y1 as a start reference
B39: dms_CRCP_start_row | C39: =dms_FRCP_start_row-dms_CRCPlength_Num -> 29 | D39: Uses the value in dms_CRCPlength_Num
B40: dms_PRCP_start_row | C40: =dms_FRCP_start_row-dms_CRCPlength_Num-dms_PRCPlength_Num -> 24 | D40: Uses the value in dms_CRCPlength_Num and dms_PRCPlength_Num
B41: dms_RYE_start_row | C41: =dms_FRCP_start_row+(dms_FRCPlength_Num-1) -> 38 | D41: Uses the value in dms_FRCPlength_Num-1
B42: FRCP_start_year | C42: =INDEX(INDIRECT(dms_RPT),dms_FRCP_start_row) -> 2021 | D42: Converts the FRCP start row to display the year
B43: CRCP_start_year | C43: =INDEX(INDIRECT(dms_RPT),dms_CRCP_start_row) -> 2016 | D43: Converts the CRCP start row to display the year
B44: PRCP_start_year | C44: =INDEX(INDIRECT(dms_RPT),dms_PRCP_start_row) -> 2011 | D44: Converts the PRCP start row to display the year
B45: FRCP_final_year | C45: =INDEX(INDIRECT(dms_RPT),dms_FRCP_start_row+dms_FRCPlength_Num-1) -> 2025 | D45: Finds the FRCP final year
B46: CRCP_final_year | C46: =INDEX(INDIRECT(dms_RPT),dms_CRCP_start_row+dms_CRCPlength_Num-1) -> 2020 | D46: Finds the CRCP final year
B47: PRCP_final_year | C47: =INDEX(INDIRECT(dms_RPT),dms_PRCP_start_row+dms_FRCPlength_Num-1) -> 2015 | D47: Finds the PRCP final year
B48: dms_Reset_final_year | C48: =INDEX(INDIRECT(dms_RPT),dms_RYE_start_row) -> 2025 | D48: For Resets and PTRM/RFMs (same as FRCP_final_year)
B49: dms_SpecifiedYear_final_year | C49: =FRY -> 2018 | D49: FRY from cover sheet
B50: dms_DollarReal_year | C50: =LEFT(CRCP_final_year,2)&RIGHT(CRCP_final_year,2) -> 2020 | D50: Uses the value in CRCP_final_year
B51: dms_Previous_DollarReal_year | C51: =LEFT(PRCP_final_year,2)&RIGHT(PRCP_final_year,2) -> 2015 | D51: Uses the value in PRCP_final_year
B52: dms_CRY_RYE | C52: =IFERROR(LEFT(CRY,2)&RIGHT(CRY,2),0) -> 2009 | D52: For ABC single year RINS
B53: dms_Reset_RYE | C53: =IF(dms_Model_Span>1,(LEFT(dms_Reset_final_year,2)&RIGHT(dms_Reset_final_year,2)),0) -> 0 | D53: If model span > 1 then uses dms_Reset_RYE otherwise it's a multi year ABC and uses dms_Specified_RYE
B54: dms_Specified_RYE | C54: =IF(dms_MultiYear_ResponseFlag="Yes",(LEFT(dms_Specified_FinalYear,2)&RIGHT(dms_Specified_FinalYear,2)),0) -> 2018 | D54: If multi year ABC - uses dms_Specified_FinalYear
B55: dms_Model_Span | C55: =INDEX(dms_Model_Span_List,MATCH(dms_Model,dms_Model_List)) -> 1 | D55: A result of 5 is used to signify that it is more than 1 year span
B56: dms_RYE_result | C56: =IF(dms_MultiYear_ResponseFlag="yes",dms_Specified_RYE,(IF(dms_Model_Span>1,dms_Reset_RYE,dms_CRY_RYE))) -> 2018 | D56: Nested IF - feeds into dms_RYE
B57: dms_Reset_Span | C57: =IF(dms_Reset_RYE>0,CONCATENATE(FRCP_y1," to ",FRCP_final_year),0) -> 0 | D57: Reset span of years as text
B58: dms_SpecifiedYear_Span | C58: =IF(dms_Specified_RYE>0,CONCATENATE(CRY," to ",dms_Specified_FinalYear),0) -> 2009 to 2018 | D58: Multi year ABC span of years as text
B59: dms_Header_Span | C59: =IF(dms_MultiYear_Flag=1,dms_SpecifiedYear_Span,IF(dms_Model_Span>1,dms_Reset_Span,CRY)) -> 2009 to 2018 | D59: NESTED IF - for Sheet Headers
B60: ABC RINS THAT SPAN MULTIPLE YEARS
B61: This is a multi year ABC RIN? | C61: Yes
C62: =IF(dms_MultiYear_ResponseFlag="No",0,1) -> 1 | D62: dms_MultiYear_Flag | E62: This is set from the answer provided above
C63: =IF(dms_MultiYear_Flag=1,FRY,"not a Multiple year submission") -> 2018 | D63: dms_Specified_FinalYear | E63: The result here is returned to dms_CRCP_FinalYear_Result if response to Q in C73 is "yes" and dms_MultiYear_Flag is set to 1
B64: Start year for 5.2 in Multi year ABC RINS | C64: =IFERROR(IF(dms_MultiYear_Flag=1,FRY,CRY),"not an ABC") -> 2018 | D64: dms_0502_Inst_Year | E64: =IF(dms_MultiYear_Flag=1,FRY,CRY) | G64: For single year RINS this is CRY - multi year RINS need to start a the end of the span of years (ie. FRY)
B65: WHAT IS THE RYE?
B66: Reg Period Lengths
B67: PRCP length in years | C67: =INDEX(dms_PRCPlength_List,MATCH(dms_TradingName,dms_TradingName_List)) -> 5 | D67: dms_PRCPlength_Num | E67: =INDEX(dms_PRCPlength_List,MATCH(dms_TradingName,dms_TradingName_List))
B68: CRCP length in years | C68: =INDEX(dms_CRCPlength_List,MATCH(dms_TradingName,dms_TradingName_List)) -> 5 | D68: dms_CRCPlength_Num | E68: =INDEX(dms_CRCPlength_List,MATCH(dms_TradingName,dms_TradingName_List))
B69: FRCP length in years | C69: =INDEX(dms_FRCPlength_List,MATCH(dms_TradingName,dms_TradingName_List)) -> 5 | D69: dms_FRCPlength_Num | E69: =INDEX(dms_FRCPlength_List,MATCH(dms_TradingName,dms_TradingName_List))
B70: Single year RIN?
B71: Single Year ABC RIN ? | C71: =IF(dms_Model="EB",1,0) -> 0 | D71: dms_EB
C72: =IF(dms_Model="CA",1,0) -> 1 | D72: dms_CA | E72: =dms_SingleYear_Model
C73: =IF(dms_Model="ARR",1,0) -> 0 | D73: dms_ARR
B74: Is this a single Year ABC RIN? | C74: =IF(SUM(dms_SingleYear_Model)=1,"yes","no") -> yes | D74: dms_SingleYearModel | E74: =IF(SUM(dms_SingleYear_Model)=1,"yes","no")
B75: Single Year Final Year Result | C75: =IF(AND(dms_SingleYearModel="yes",dms_MultiYear_Flag=0),CRY,0) -> 0 | D75: dms_SingleYear_FinalYear_Result | E75: =IFERROR(IF(SUM(dms_SingleYear_Model)<>0,(INDIRECT(dms_SingleYear_FinalYear_Ref)),"not a single year RIN"),"CRY not present")
B76: Multi year RIN?
B78: Multi Year Reset/Model? | C78: =IF(dms_Model_Span>1,"yes","no") -> no
B79: Final year result for Reset/Model | C79: =IF(dms_Model_Span>1,dms_Reset_final_year,0) -> 0
B81: Multi Year ABC RIN? | C81: =IF(dms_MultiYear_Flag=1,"yes","no") -> yes
B82: Final year result for ABC multi year | C82: =IF(dms_MultiYear_Flag=1,C49,0) -> 2018
B84: EB RINS
B85: Calendar Year for table 3.6 data | C85: =IFERROR(IF(dms_Segment="Transmission",dms_Cal_Year_B4_CRY,CRY),"CRY not present") -> 2009 | D85: dms_0306_Year | E85: =IF(dms_Segment="Transmission",dms_Cal_Year_B4_CRY,CRY)
B86: CA RINS
B87: Find how many rows in tables 6.3 sustained interruptions? | E87: dms_060301_MaxRows only returns a valid value when cover sheet is attached to a CA file
C88: =IF(dms_Model<>"CA","not a CA","Is a CA") -> Is a CA | E88: =IF(dms_Model<>"CA","not a CA","Is a CA")
B89: dms_060301_Avg_Duration_Sustained_Int_Values present? | C89: =IFERROR(IF(INDEX(dms_060301_Avg_Duration_Sustained_Int_Values,1,1)<>"","yes","no"),"no") -> no | D89: dms_060301_checkvalue | E89: =IFERROR(IF(INDEX(dms_060301_Avg_Duration_Sustained_Int_Values,1,1)<>"","yes","no"),"no")
C90: =IF(AND(dms_Model="CA",(dms_060301_checkvalue="no")),"error - NR not present","no errors") -> error - NR not present | E90: =IF(AND(dms_Model="CA",(dms_060301_checkvalue="no")),"error - NR not present","no errors")
B91: Table 6.3.1 - last row reference | C91: =IFERROR(IF(dms_Model="CA",LOOKUP(2,1/(dms_060301_Avg_Duration_Sustained_Int_Values<>""),(ROW(dms_060301_Avg_Duration_Sustained_Int_Values))),"not a CA"),"6.3 not present") -> 6.3 not present | D91: dms_060301_LastRow | E91: =IFERROR(IF(dms_Model="CA",LOOKUP(2,1/(dms_060301_Avg_Duration_Sustained_Int_Values<>""),(ROW(dms_060301_Avg_Duration_Sustained_Int_Values))),"not a CA"),"6.3 not present")
B92: Table 6.3.1 - max number rows | C92: =IFERROR(IF(dms_Model="CA",(dms_060301_LastRow-15),"not a CA"),"error") -> error | D92: dms_060301_MaxRows | E92: =IFERROR(IF(dms_Model="CA",(dms_060301_LastRow-15),"not a CA"),"error")
B93: Table 6.6.3 - Public lighting repair - no. business days | C93: =INDEX(dms_663_List,MATCH(dms_TradingName,dms_TradingName_List)) -> 2 | D93: dms_663 | E93: =INDEX(dms_663_List,MATCH(dms_TradingName,dms_TradingName_List))
B94: ARR or RESET RINS
B95: How many rows in tables 6.1 or 6.7? (leap year?) | C95: insert dms_LeapYear NR if required | E95: 'dms_LeapYear is used to determine dms_060701_Max_Rows BUT it is only found on worksheet 6.1 or 6.7 and the date value in the cell is used to determine whether it is a leap year
B96: Is dms_LeapYear named range present? | C96: =IFERROR(IF(dms_LeapYear,"yes"),"no") -> no
B97: Table 6.7.1 - includes a leap year? | C97: =IFERROR(IF(MONTH(DATE(YEAR(dms_LeapYear),2,29))=2,"is a leap year","not a leap year"), "dms_LeapYear not present") -> dms_LeapYear not present | D97: dms_LeapYear_Result | E97: =IFERROR(IF(MONTH(DATE(YEAR(dms_LeapYear),2,29))=2,"is a leap year","not a leap year"),"dms_LeapYear not present")
B98: MaxRows if Reset and leap year | C98: =IF(dms_LeapYear_Result="is a leap year",1827,1826) -> 1826 | D98: dms_060701_Reset_MaxRows | E98: =IF(dms_LeapYear_Result="is a leap year",1827,1826) | H98: number of days present in Reset RIN table
B99: MaxRows if ARR and leap year | C99: =IF(dms_LeapYear_Result="is a leap year",366,365) -> 365 | D99: dms_060701_ARR_MaxRows | E99: =IF(dms_LeapYear_Result="is a leap year",366,365) | H99: number of days present in ARR RIN table
B100: Table 6.7.1 - Max Rows (leap year/ non leap year) | C100: =IF(dms_Model="ARR",dms_060701_ARR_MaxRows,IF(dms_Model="Reset",dms_060701_Reset_MaxRows,"not a relevant RIN type")) -> not a relevant RIN type | D100: dms_060701_MaxRows | E100: =IF(dms_Model="ARR",dms_060701_ARR_MaxRows,IF(dms_Model="Reset",dms_060701_Reset_MaxRows,"not a relevant RIN type"))
B101: How many columns in 6.7? (4 or 5 feeder categories) | C101: =IF(dms_FifthFeeder_flag_NSP="NO","This NSP has only 4 feeder categories","This NSP has 5 feeder categories") -> This NSP has only 4 feeder categories
B102: Table 6.7.1 - Last column (# of feeder categories > 4) | C102: =IF(dms_FifthFeeder_flag_NSP="NO",10,12) -> 10 | D102: dms_060701_MaxCols | E102: =IF(dms_FifthFeeder_flag_NSP="NO",8,10)
B103: Table 6.7.1 - Number of offset rows | C103: =IF(dms_Model="ARR",15,9) -> 9 | D103: dms_060701_OffsetRows | E103: =IF(dms_Model="ARR",15,9)
B104: Start date for telephone answering in 6.1 or 6.7? | E104: Using 060101 as naming standard not 060701 for start dates
B105: Table 6.1.1 and 6.7.1 - Start Date as Text | C105: =IF(dms_SingleYearModel="yes",(CONCATENATE(IF(LEN(CRY)=4,"1-Jan-","1-Jul-"),LEFT(CRY,4))),(CONCATENATE(IF(LEN(PRCP_y4)=4,"1-Jan-","1-Jul-"),LEFT(PRCP_y4,4)))) -> 1-Jan-2009 | D105: dms_060101_StartDateTxt | E105: =IF(SUM(dms_SingleYear_Model)>1,(CONCATENATE(IF(LEN(CRY)=4,"1-Jan-","1-Jul-"),LEFT(CRY,4))),(CONCATENATE(IF(LEN(CRCP_y4)=4,"1-Jan-","1-Jul-"),LEFT(CRCP_y4,4))))
B106: Table 6.1.1 and 6.7.1 - Start Date as Date Value | C106: =DATEVALUE(dms_060701_StartDateTxt) -> 39814 | D106: dms_060101_StartDateVal | E106: =DATEVALUE(dms_060701_StartDateTxt)
B107: ARRs
B108: How many rows in table 6.8? | C108: insert dms_060801_StartCell NR if required | E108: dms_060801_StartCell is only found on worksheet 6.8 and is used to determine the starting date for the date range
B109: Is dms_060801_StartCell named range present? | C109: yes | E109: =IFERROR(IF((ROW(dms_060801_StartCell)-1)=1,"yes","yes"),"no")
B110: Table 6.8 - Number of offset rows | C110: 12 | D110: dms_0608_OffsetRows | E110: =IFERROR(IF(dms_Model="ARR",(ROW(dms_060801_StartCell)-1),"not an ARR"),"6.8 error")
B111: Table 6.8 - Last row | C111: 0 | D111: dms_0608_LastRow | E111: =IFERROR(IF(dms_060801_StartCell<>"",IF(dms_Model="ARR",(LOOKUP(2,1/(dms_060801_01_Values<>""),(ROW(dms_060801_01_Values)))),"not an ARR"),0),"0")
B112: Table 6.8 - MaxRows | C112: =IFERROR(IF(dms_Model="ARR",(MAX(0,dms_0608_LastRow-dms_0608_OffsetRows)),"not an ARR"),"0") -> not an ARR | D112: dms_060801_MaxRows | E112: =IFERROR(IF(dms_Model="ARR",(MAX(0,dms_0608_LastRow-dms_0608_OffsetRows)),"not an ARR"),"0")
B113: TNSP RESET RINS
B114: Table 7.9.4 only appears in TNSPs Reset RIN
B115: Table 7.9.4 - first year | C115: =LEFT(PRCP_y3,4) -> 2013 | D115: dms_070904_Start_Year | E115: =LEFT(PRCP_y3,4)
B117: MISC
B118: Distribution Determination Reference | C118: =INDEX(dms_DeterminationRef_List,MATCH(dms_TradingName,dms_TradingName_List)) -> 2016-20 Distribution Determination | D118: dms_DeterminationRef
B119: Public lighting NSP? | C119: =INDEX(dms_Public_Lighting_List,MATCH(dms_TradingName,dms_TradingName_List)) -> YES | D119: dms_Public_Lighting | E119: =INDEX(dms_Public_Lighting_List,MATCH(dms_TradingName,dms_TradingName_List))
B120: CBD Feeder for this business | C120: =INDEX(dms_CBD_flag,MATCH(dms_TradingName,dms_TradingName_List)) -> YES | D120: dms_CBD_flag_NSP
B121: Urban Feeder for this business | C121: =INDEX(dms_Urban_flag,MATCH(dms_TradingName,dms_TradingName_List)) -> YES | D121: dms_Urban_flag_NSP
B122: Short rural Feeder for this business | C122: =INDEX(dms_ShortRural_flag,MATCH(dms_TradingName,dms_TradingName_List)) -> NO | D122: dms_ShortRural_flag_NSP
B123: Long rural Feeder for this business | C123: =INDEX(dms_LongRural_flag,MATCH(dms_TradingName,dms_TradingName_List)) -> NO | D123: dms_LongRural_flag_NSP
B124: Fifth Feeder Category (eg. TasNetworks (D)) | C124: =INDEX(dms_FeederType_5_flag,MATCH(dms_TradingName,dms_TradingName_List)) -> NO | D124: dms_FifthFeeder_flag_NSP | E124: =INDEX(dms_FeederType_5_flag,MATCH(dms_TradingName,dms_TradingName_List))
B126: DISCARD FILES
B127: discard this record? | C127: NO | D127: dms_DISCARD | E127: If record is to be discarded from DB set this flag to YES
B129: SUBSET FILES
B130: Is this Submission File a Subset File | C130: NO | D130: dms_Partial
B133: REGULATORY YEARS FOR MULTI RYE SUBMISSIONS
B134: Multiple RYE flag | C134: NO | D134: dms_Multi_RYE_flag
C135: Manually specify RYE | D135: Named ranges to apply
C136: 2013 | D136: dms_RYE_01
C137: 2014 | D137: dms_RYE_02
C138: 2015 | D138: dms_RYE_03
C139: 2016 | D139: dms_RYE_04
C140: 2017 | D140: dms_RYE_05
C141: 2018 | D141: dms_RYE_06
C142: 2019 | D142: dms_RYE_07
C143: 2020 | D143: dms_RYE_08
C144: 2021 | D144: dms_RYE_09

Sheet Instructions
B2: =CONCATENATE(dms_Sector," ",dms_Segment," ", "Network Service Provider") -> Electricity Distribution Network Service Provider
B3: =INDEX(dms_Worksheet_List,MATCH(dms_Model,dms_Model_List)) -> RECAST HISTORICAL CATEGORY ANALYSIS - CALENDAR YEARS
B4: =CONCATENATE("This template is to be used by ",dms_TradingNameFull," to fulfil its reporting obligations to the AER.") -> This template is to be used by CitiPower to fulfil its reporting obligations to the AER.
B5: INSTRUCTIONS
B6: GENERAL | C6: Complete the Business & other details worksheet before entering data or values in any other worksheets. The Business & other details worksheet is linked to other worksheets within the workbook and automatically generates certain column headings and conditional formatting.
B8: CONFIDENTIAL INFORMATION | C8: Please use the macro at the top of each worksheet to identify confidential information in the confidential workbook.
C9: -Do this by selecting the cell or cells that contain confidential information and then run the Mark selection as CONFIDENTIAL macro. This will format the cells a specific colour that is identified by the AER's database which in turn marks that information as confidential. -To reverse this, select the cell or cells and run the Return selection to NON-CONFIDENTIAL macro.
B11: RESPONSES | C11: Please return two (2) files to the AER: 1. A confidential version which must contain a complete set of all responses with confidential information marked using the Mark selection CONFIDENTIAL macro and which has been completed using the locked template file provided by the AER. 2. A public version with confidential information either removed completely or aggregated in some form together with writtten consent to disclose the public version of the response. Use the drop down box on the Business and other details worksheet to identify the file as either confidential ('consolidated') or public.
B13: AMENDMENTS | C13: If an NSP wishes to correct data previously submitted to the AER it should resubmit that data using the original completed submission as the starting point. Please make any necessary changes to the data. Data that is not being amended should be left unchanged. NSPs must identify the reason for the amendments in the Amendment Reason box on the Business and other details worksheet. NSPs may provide further details regarding any amendments in the Amendments worksheet. .
C14: NSP may use Amended Data macro to highlight cells that contain amended data. NB: if data is also CONFIDENTIAL, re-apply the Confidentiality macro after applying the Amended macro
C15: Please resubmit two (2) files - a confidential version and a public version of the amended submission to the AER
B17: UNITS OF MEASURE | C17: All amounts are to be unrounded and reported on a one for one basis: that is 1000 is to be entered as '1000'. Applicable units of measure may be identified in the table column headings or row descriptors.
B19: INPUT / NON-INPUT CELLS
D20: Yellow = Input cell (mandatory)
D21: Darker yellow = input cell (mandatory)
D22: Orange = input cell (if data available)
D23: Grey = Not applicable/No inputs required
D24: PLEASE DO NOT ENTER TEXT into cells that are to contain numeric data.
B27: NAVIGATION | C27: Many tables in the worksheets have been "grouped" to allow for easy navigation. To ungroup or group data use the outline symbols in the left margin (for Row groupings) or above the columns (for column groupings).

Sheet Contents
D1: =INDEX(dms_Worksheet_List,MATCH(dms_Model,dms_Model_List)) -> RECAST HISTORICAL CATEGORY ANALYSIS - CALENDAR YEARS
D2: =INDEX(dms_TradingNameFull_List,MATCH(dms_TradingName,dms_TradingName_List)) -> CitiPower
D3: =dms_Header_Span -> 2009 to 2018
E6: CONTENTS
E8: SUBMISSION | F8: Business & other details
E10: EXPENDITURE | F10: 2.1 Expenditure summary
F11: 2.2 Repex
F12: 2.3(a) Augex
F13: 2.3(b) Augex
F14: 2.5 Connections
F15: 2.6 Non-network
F16: 2.7 Vegetation management
F17: 2.8 Maintenance
F18: 2.9 Emergency Response
F19: 2.11 Labour
F20: 2.12 Input tables
E23: ALTERNATIVE CONTROL | F23: 4.2 Metering
F24: 4.3 Fee-based services
F25: 4.4 Quoted services

Sheet Business & other details
V1: =INDEX(dms_Worksheet_List,MATCH(dms_Model,dms_Model_List)) -> RECAST HISTORICAL CATEGORY ANALYSIS - CALENDAR YEARS
V2: =INDEX(dms_TradingNameFull_List,MATCH(dms_TradingName,dms_TradingName_List)) -> CitiPower
V3: =dms_Header_Span -> 2009 to 2018
V4: BUSINESS & OTHER DETAILS
V6: INSTRUCTIONS
V7: Complete the following business details regulatory template before entering data or values in any other regulatory template. This regulatory template is linked to other cells within the spreadsheet and automatically generates column headings and conditional formatting to distinguish business specific input and non-input cells.
Q9: SUBMISSION PARTICULARS INPUT SHEET
V12: ENTITY DETAILS
V14: Business Name
V16: Short name | AL16: CitiPower
V17: ACN/ABN | AL17: =INDEX(dms_ABN_List,MATCH(dms_TradingName,dms_TradingName_List)) -> 76064651056
V21: Business Address | BQ21: Postal Address
V23: Address 1 | AL23: =INDEX(dms_Addr1_List,MATCH(dms_TradingName,dms_TradingName_List)) -> 40 Market Street | BI23: Address 1 | BQ23: =INDEX(dms_PAddr1_List,MATCH(dms_TradingName,dms_TradingName_List)) -> Locked Bag 14090
V24: Address 2 | AL24: =IF(ISBLANK(INDEX(dms_Addr2_List,MATCH(dms_TradingName,dms_TradingName_List))),"",(INDEX(dms_Addr2_List,MATCH(dms_TradingName,dms_TradingName_List)))) ->  | BI24: Address 2 | BQ24: =IF(ISBLANK(INDEX(dms_PAddr2_List,MATCH(dms_TradingName,dms_TradingName_List))),"",(INDEX(dms_PAddr2_List,MATCH(dms_TradingName,dms_TradingName_List)))) -> 
V25: Suburb | AL25: =INDEX(dms_Suburb_List,MATCH(dms_TradingName,dms_TradingName_List)) -> MELBOURNE | BI25: Suburb | BQ25: =INDEX(dms_PSuburb_List,MATCH(dms_TradingName,dms_TradingName_List)) -> MELBOURNE
V26: State | AL26: =INDEX(dms_State_List,MATCH(dms_TradingName,dms_TradingName_List)) -> Vic | AV26: Post code | BI26: State | BQ26: =INDEX(dms_PState_List,MATCH(dms_TradingName,dms_TradingName_List)) -> Vic | CA26: Post code
BA28: `
V30: Contact Names
V32: Name | AL32: Brent Cleeve | BI32: Name
V33: Phone | AL33: (03) 9683 4465 | BI33: Phone
V34: Email | AL34: bcleeve@powercor.com.au | BI34: Email
V39: REGULATORY CONTROL PERIODS
V42: RESETS | AF42: Forthcoming period | AR42: 2021 | BA42: =FRCP_y2 -> 2022 | BJ42: =FRCP_y3 -> 2023 | BS42: =FRCP_y4 -> 2024 | CB42: =FRCP_y5 -> 2025
AR43: =FRCP_y6 -> 2026 | BA43: =FRCP_y7 -> 2027 | BJ43: =FRCP_y8 -> 2028 | BS43: =FRCP_y9 -> 2029 | CB43: =FRCP_y10 -> 2030
AR44: =FRCP_y11 -> 2031 | BA44: =FRCP_y12 -> 2032 | BJ44: =FRCP_y13 -> 2033 | BS44: =FRCP_y14 -> 2034 | CB44: =FRCP_y15 -> 2035
AF46: Current period | AR46: =CRCP_y1 -> 2016 | BA46: =CRCP_y2 -> 2017 | BJ46: =CRCP_y3 -> 2018 | BS46: =CRCP_y4 -> 2019 | CB46: =CRCP_y5 -> 2020
AR47: =CRCP_y6 -> 2021 | BA47: =CRCP_y7 -> 2022 | BJ47: =CRCP_y8 -> 2023 | BS47: =CRCP_y9 -> 2024 | CB47: =CRCP_y10 -> 2025
AR48: =CRCP_y11 -> 2026 | BA48: =CRCP_y12 -> 2027 | BJ48: =CRCP_y13 -> 2028 | BS48: =CRCP_y14 -> 2029 | CB48: =CRCP_y15 -> 2030
AF50: Previous period | AR50: =PRCP_y1 -> 2011 | BA50: =PRCP_y2 -> 2012 | BJ50: =PRCP_y3 -> 2013 | BS50: =PRCP_y4 -> 2014 | CB50: =PRCP_y5 -> 2015
AR51: =PRCP_y6 -> 2016 | BA51: =PRCP_y7 -> 2017 | BJ51: =PRCP_y8 -> 2018 | BS51: =PRCP_y9 -> 2019 | CB51: =PRCP_y10 -> 2020
AR52: =PRCP_y11 -> 2021 | BA52: =PRCP_y12 -> 2022 | BJ52: =PRCP_y13 -> 2023 | BS52: =PRCP_y14 -> 2024 | CB52: =PRCP_y15 -> 2025
V54: ANNUAL RINS | AF54: Commencing year | AR54: 2009
AF56: Final year | AR56: 2018
V60: SUBMISSION DETAILS
AF62: RIN type | AR62: =INDIRECT(dms_Model) -> Category Analysis
V64: THIS FILE | AF64: Source | AR64: Regulatory proposal
AF66: Data Quality | AR66: Consolidated
AF68: Confidentiality Status | AR68: Public
AF70: Amended RIN Amendment Reason | AR70: .
AF74: Submission Date | AR74: 2020-01-31

Sheet 2.1 Expenditure summary
B1: =INDEX(dms_Worksheet_List,MATCH(dms_Model,dms_Model_List)) -> RECAST HISTORICAL CATEGORY ANALYSIS - CALENDAR YEARS
B2: =INDEX(dms_TradingNameFull_List,MATCH(dms_TradingName,dms_TradingName_List)) -> CitiPower
B3: =dms_Header_Span -> 2009 to 2018
B4: 2.1 EXPENDITURE SUMMARY & RECONCILIATION
B6: There are EIGHT tables on this worksheet - see the Instructions sheet on how to group or ungroup tables.
B8: 2.1.1 - STANDARD CONTROL SERVICES CAPEX
C9: EXPENDITURE ($0's)
C10: =dms_y1 -> 2009 | D10: =dms_y2 -> 2010 | E10: =dms_y3 -> 2011 | F10: =dms_y4 -> 2012 | G10: =dms_y5 -> 2013 | H10: =dms_y6 -> 2014 | I10: =dms_y7 -> 2015 | J10: =dms_y8 -> 2016 | K10: =dms_y9 -> 2017 | L10: =dms_y10 -> 2018
B11: Replacement expenditure | C11: 29965549.28 | D11: 30208496.5 | E11: 21874650.87 | F11: 19585179.05 | G11: 31810432.75 | H11: 26529546.29 | I11: 20584565.59 | J11: 15395413.54 | K11: 16314668.44 | L11: 15492896.9
B12: Connections | C12: 43408679.44 | D12: 37195636.64 | E12: 51065131.52 | F12: 55116824.14 | G12: 53968724.22 | H12: 50666864.49 | I12: 58622675.83 | J12: 68343011.71 | K12: 66969238 | L12: 77381134.9
B13: Augmentation Expenditure | C13: 16161605.72 | D13: 24031598.89 | E13: 43629048.83 | F13: 20040310.36 | G13: 29530873 | H13: 40682905.77 | I13: 32218520.28 | J13: 19119356 | K13: 18608673 | L13: 27981725.05
B14: Non-network | C14: 4225123.229 | D14: 5817882.348 | E14: 5482519.144 | F14: 6485015.563 | G14: 7632799.72 | H14: 13795747.18 | I14: 21202176.02 | J14: 40646249.77 | K14: 24615742 | L14: 9516712.57
B15: capitalised network overheads | C15: 14364918.87 | D15: 14314288.63 | E15: 15107854.75 | F15: 11721535.01 | G15: 13897704.83 | H15: 15414141.58 | I15: 14335092.21 | J15: 16688223 | K15: 17421557.32 | L15: 17928329.16
B16: capitalised corporate overheads | C16: 12378745.84 | D16: 12017909.21 | E16: 13803610.27 | F16: 14930537.59 | G16: 15557834.3 | H16: 18289329.41 | I16: 17883082.56 | J16: - | K16: 0 | L16: 0
B17: Metering | C17: 0 | D17: 0 | E17: 0 | F17: 0 | G17: 0 | H17: 0 | I17: 0 | J17: - | K17: 0 | L17: 0
B18: Public Lighting | C18: 0 | D18: 0 | E18: 0 | F18: 0 | G18: 0 | H18: 0 | I18: 0 | J18: - | K18: 0 | L18: 0
B19: VBRC | C19: 0 | D19: 0 | E19: 0 | F19: 0 | G19: 0 | H19: 0 | I19: 0 | J19: 0 | K19: 0 | L19: 33343.38
B25: balancing item | C25: 0 | D25: 0 | E25: 0 | F25: 0 | G25: 0 | H25: 0 | I25: -21307.81155 | J25: 0 | K25: 0 | L25: 0
B26: capcons (included in the above items) | C26: 26565110.46 | D26: 20820904.95 | E26: 20174232.17 | F26: 16939790.18 | G26: 19116080.89 | H26: 18919735.89 | I26: 25835395.81 | J26: 44293575.79 | K26: 46075736 | L26: 51709904.07
B27: TOTAL GROSS CAPEX (includes capcons) | C27: =+SUM(C11:C25) -> 120504622.4 | D27: 123585812.2 | E27: 150962815.4 | F27: 127879401.7 | G27: 152398368.8 | H27: 165378534.7 | I27: 164824804.7 | J27: 160192254 | K27: 143929878.8 | L27: 148334142
B29: 2.1.2 - STANDARD CONTROL SERVICES OPEX
C30: EXPENDITURE ($0's)
C31: =dms_y1 -> 2009 | D31: =dms_y2 -> 2010 | E31: =dms_y3 -> 2011 | F31: =dms_y4 -> 2012 | G31: =dms_y5 -> 2013 | H31: =dms_y6 -> 2014 | I31: =dms_y7 -> 2015 | J31: =dms_y8 -> 2016 | K31: =dms_y9 -> 2017 | L31: =dms_y10 -> 2018
B32: Vegetation management | C32: 959761.94 | D32: 1014260.8 | E32: 2601492.23 | F32: 4907800.761 | G32: 2308037.281 | H32: 2031000 | I32: 1080104.634 | J32: 3072526 | K32: -96955 | L32: -297353.8518
B33: Maintenance | C33: 18295398.33 | D33: 22572520.61 | E33: 15926967.19 | F33: 21453352.65 | G33: 24749503.91 | H33: 20851387.57 | I33: 17669317.82 | J33: 17425083.26 | K33: 25504550.56 | L33: 23294729.71
B34: Emergency response | C34: 1773534.445 | D34: 2740327.731 | E34: 3552626.76 | F34: 3738108.826 | G34: 3946848.336 | H34: 4601635.292 | I34: 3563700 | J34: 4460251 | K34: 4655336 | L34: 5975424.12
B35: Non-network | C35: 0 | D35: 0 | E35: 0 | F35: 0 | G35: 0 | H35: 0 | I35: 0 | J35: - | K35: 0 | L35: 0
B36: network overheads | C36: 15843481.56 | D36: 16629361.87 | E36: 17519316.89 | F36: 22765819.59 | G36: 22010521.52 | H36: 23921523.64 | I36: 27073192.45 | J36: 20026511 | K36: 15102699.68 | L36: 13261953.83
B37: corporate overheads | C37: 8121737.567 | D37: 8918988.329 | E37: 5452269.548 | F37: 7358008.209 | G37: 8225106.418 | H37: 8171649.131 | I37: 8145897.162 | J37: 31880074 | K37: 33445487 | L37: 33137593.27
B38: Metering | C38: 0 | D38: 0 | E38: 0 | F38: 0 | G38: 0 | H38: 0 | I38: 0 | J38: - | K38: 0 | L38: 0
B39: Public Lighting | C39: 0 | D39: 0 | E39: 0 | F39: 0 | G39: 0 | H39: 0 | I39: 0 | J39: - | K39: 0 | L39: 0
B46: balancing tem
B47: TOTAL OPEX | C47: =+SUM(C32:C46) -> 44993913.84 | D47: 51875459.35 | E47: 45052672.62 | F47: 60223090.04 | G47: 61240017.47 | H47: 59577195.64 | I47: 57532212.07 | J47: 76864445.26 | K47: 78611118.24 | L47: 75372347.08
B49: 2.1.3 - ALTERNATIVE CONTROL SERVICES CAPEX
C50: EXPENDITURE ($0's)
C51: =dms_y1 -> 2009 | D51: =dms_y2 -> 2010 | E51: =dms_y3 -> 2011 | F51: =dms_y4 -> 2012 | G51: =dms_y5 -> 2013 | H51: =dms_y6 -> 2014 | I51: =dms_y7 -> 2015 | J51: =dms_y8 -> 2016 | K51: =dms_y9 -> 2017 | L51: =dms_y10 -> 2018
B52: Connections
B53: capitalised network overheads
B54: capitalised corporate overheads
B55: Metering
B56: Public lighting
B57: Fee and quoted
B65: TOTAL CAPEX | C65: =+SUM(C52:C64) -> 0 | D65: 0 | E65: 0 | F65: 0 | G65: 0 | H65: 0 | I65: 0 | J65: 0 | K65: 0 | L65: 0
B67: 2.1.4 - ALTERNATIVE CONTROL SERVICES OPEX
C68: EXPENDITURE ($0's)
C69: =dms_y1 -> 2009 | D69: =dms_y2 -> 2010 | E69: =dms_y3 -> 2011 | F69: =dms_y4 -> 2012 | G69: =dms_y5 -> 2013 | H69: =dms_y6 -> 2014 | I69: =dms_y7 -> 2015 | J69: =dms_y8 -> 2016 | K69: =dms_y9 -> 2017 | L69: =dms_y10 -> 2018
B70: Connections
B71: network overheads
B72: corporate overheads
B73: Metering
B74: Public lighting
B75: Fee and quoted
B83: TOTAL OPEX | C83: =+SUM(C70:C82) -> 0 | D83: 0 | E83: 0 | F83: 0 | G83: 0 | H83: 0 | I83: 0 | J83: 0 | K83: 0 | L83: 0
B85: 2.1.5 - DUAL FUNCTION ASSETS CAPEX
C86: EXPENDITURE ($0's)
C87: =dms_y1 -> 2009 | D87: =dms_y2 -> 2010 | E87: =dms_y3 -> 2011 | F87: =dms_y4 -> 2012 | G87: =dms_y5 -> 2013 | H87: =dms_y6 -> 2014 | I87: =dms_y7 -> 2015 | J87: =dms_y8 -> 2016 | K87: =dms_y9 -> 2017 | L87: =dms_y10 -> 2018
B88: Replacement expenditure
B89: Connections
B90: Augmentation Expenditure
B91: Non-network
B92: Capitalised network overheads
B93: Capitalised corporate overheads
B101: capcons (included in the above items)
B102: TOTAL GROSS CAPEX (includes capcons) | C102: =+SUM(C88:C100) -> 0 | D102: 0 | E102: =+SUM(E88:E100) -> 0 | F102: =+SUM(F88:F100) -> 0 | G102: 0 | H102: 0 | I102: 0 | J102: 0 | K102: 0 | L102: 0
B104: 2.1.6 - DUAL FUNCTION ASSETS OPEX
C105: EXPENDITURE ($0's)
C106: =dms_y1 -> 2009 | D106: =dms_y2 -> 2010 | E106: =dms_y3 -> 2011 | F106: =dms_y4 -> 2012 | G106: =dms_y5 -> 2013 | H106: =dms_y6 -> 2014 | I106: =dms_y7 -> 2015 | J106: =dms_y8 -> 2016 | K106: =dms_y9 -> 2017 | L106: =dms_y10 -> 2018
B107: Vegetation management
B108: Maintenance
B109: Emergency response
B110: Non-network
B111: network overheads
B112: corporate overheads
B113: Metering
B120: TOTAL OPEX | C120: =SUM(C107:C119) -> 0 | D120: 0 | E120: 0 | F120: 0 | G120: 0 | H120: 0 | I120: 0 | J120: 0 | K120: 0 | L120: 0
B122: 2.1.7 - STANDARD CONTROL SERVICES CAPCONS
C123: EXPENDITURE ($0's)
C124: =dms_y1 -> 2009 | D124: =dms_y2 -> 2010 | E124: =dms_y3 -> 2011 | F124: =dms_y4 -> 2012 | G124: =dms_y5 -> 2013 | H124: =dms_y6 -> 2014 | I124: =dms_y7 -> 2015 | J124: =dms_y8 -> 2016 | K124: =dms_y9 -> 2017 | L124: =dms_y10 -> 2018
B125: Replacement expenditure
B126: Connections
B127: Augmentation Expenditure
B128: Non-network
B129: capitalised network overheads
B130: capitalised corporate overheads
B131: Metering
B132: Public Lighting
B140: TOTAL CAPCONS | C140: =+SUM(C125:C139) -> 0 | D140: 0 | E140: 0 | F140: 0 | G140: =+SUM(G125:G139) -> 0 | H140: 0 | I140: 0 | J140: 0 | K140: 0 | L140: 0
B142: 2.1.8 - STANDARD CONTROL SERVICES CAPITALISED OVERHEADS
C143: EXPENDITURE ($0's)
C144: =dms_y1 -> 2009 | D144: =dms_y2 -> 2010 | E144: =dms_y3 -> 2011 | F144: =dms_y4 -> 2012 | G144: =dms_y5 -> 2013 | H144: =dms_y6 -> 2014 | I144: =dms_y7 -> 2015 | J144: =dms_y8 -> 2016 | K144: =dms_y9 -> 2017 | L144: =dms_y10 -> 2018
B145: Vegetation management
B146: Maintenance
B147: Emergency response
B148: Non-network
B149: Metering
B150: Public Lighting
B157: capcons (included in the above items)
B158: TOTAL CAPITALISED OVERHEADS | C158: =+SUM(C145:C156) -> 0 | D158: =+SUM(D145:D156) -> 0 | E158: 0 | F158: 0 | G158: 0 | H158: 0 | I158: 0 | J158: 0 | K158: 0 | L158: 0

Sheet 2.2 Repex
B1: =INDEX(dms_Worksheet_List,MATCH(dms_Model,dms_Model_List)) -> RECAST HISTORICAL CATEGORY ANALYSIS - CALENDAR YEARS
B2: =INDEX(dms_TradingNameFull_List,MATCH(dms_TradingName,dms_TradingName_List)) -> CitiPower
B3: =dms_Header_Span -> 2009 to 2018
B4: 2.2 REPEX
B6: There are TWO tables on this worksheet. These tables have been 'grouped' (and sub-grouped) for ease of navigation. See the Instructions sheet on how to group or ungroup tables.
B8: 2.2.1 - REPLACEMENT EXPENDITURE, VOLUMES AND ASSET FAILURES BY ASSET CATEGORY
B9: EXPENDITURE
E10: EXPENDITURE ($0's)
B11: ASSET GROUP | C11: ASSET CATEGORY | E11: =dms_y1 -> 2009 | F11: =dms_y2 -> 2010 | G11: =dms_y3 -> 2011 | H11: =dms_y4 -> 2012 | I11: =dms_y5 -> 2013 | J11: =dms_y6 -> 2014 | K11: =dms_y7 -> 2015 | L11: =dms_y8 -> 2016 | M11: =dms_y9 -> 2017 | N11: =dms_y10 -> 2018
B12: POLES BY: HIGHEST OPERATING VOLTAGE ; MATERIAL TYPE | C12: Staking of a wooden pole | E12: 265000 | F12: 218200 | G12: 181700 | H12: 308900 | I12: 426200 | J12: 442783 | K12: 285847 | L12: 247393.9 | M12: 250342.54 | N12: 41449.26223
C13: ˂ = 1 kV; Wood | E13: 1004095.639 | F13: 833964.9288 | G13: 1209538.088 | H13: 1213701.335 | I13: 1979359.563 | J13: 2124275.859 | K13: 1641026.294 | L13: 1386773.69 | M13: 1591672.386 | N13: 591715.1879
C14: > 1 kV & < = 11 kV; Wood | E14: 317627.5632 | F14: 372801.3903 | G14: 449357.2335 | H14: 524472.7951 | I14: 1033050.968 | J14: 733795.7727 | K14: 585935.72 | L14: 685372.15 | M14: 465959.775 | N14: 159104.487
C15: ˃ 11 kV & < = 22 kV; Wood | E15: 0 | F15: 45424.23483 | G15: 0 | H15: 0 | I15: 42096.4323 | J15: 0 | K15: 29116 | L15: 0 | M15: 0 | N15: 0
C16: > 22 kV & < = 66 kV; Wood | E16: 53064.09433 | F16: 26912.53374 | G16: 47408.94476 | H16: 128794.4301 | I16: 174586.3549 | J16: 199316 | K16: 276006 | L16: 0 | M16: 220256.2636 | N16: 47733.85629
C17: > 66 kV & < = 132 kV; Wood | E17: 0 | F17: 0 | G17: 0 | H17: 0 | I17: 0 | J17: 0 | K17: 0 | L17: 0 | M17: 0 | N17: 0
C18: > 132 kV; Wood | E18: 0 | F18: 0 | G18: 0 | H18: 0 | I18: 0 | J18: 0 | K18: 0 | L18: 0 | M18: 0 | N18: 0
C19: ˂ = 1 kV; Concrete | E19: 59900.29533 | F19: 45569.47799 | G19: 17838.86592 | H19: 20769.55775 | I19: 168924.1395 | J19: 0 | K19: 155782 | L19: 90363.91 | M19: 23605.78239 | N19: 14068.55027
C20: > 1 kV & < = 11 kV; Concrete | E20: 0 | F20: 0 | G20: 0 | H20: 41539.1155 | I20: 0 | J20: 0 | K20: 38945 | L20: 0 | M20: 23605.78239 | N20: 0
C21: ˃ 11 kV & < = 22 kV; Concrete | E21: 0 | F21: 0 | G21: 0 | H21: 0 | I21: 0 | J21: 0 | K21: 0 | L21: 0 | M21: 0 | N21: 0
C22: > 22 kV & < = 66 kV; Concrete | E22: 0 | F22: 0 | G22: 0 | H22: 0 | I22: 0 | J22: 0 | K22: 0 | L22: 0 | M22: 0 | N22: 0
C23: > 66 kV & < = 132 kV; Concrete | E23: 0 | F23: 0 | G23: 0 | H23: 0 | I23: 0 | J23: 0 | K23: 0 | L23: 0 | M23: 0 | N23: 0
C24: > 132 kV; Concrete | E24: 0 | F24: 0 | G24: 0 | H24: 0 | I24: 0 | J24: 0 | K24: 0 | L24: 0 | M24: 0 | N24: 0
C25: ˂ = 1 kV; Steel | E25: 204717.8595 | F25: 102204.5284 | G25: 106692.0497 | H25: 46582.55806 | I25: 126289.2969 | J25: 216267 | K25: 58232 | L25: 48087.29 | M25: 15651.89524 | N25: 0
C26: > 1 kV & < = 11 kV; Steel | E26: 0 | F26: 0 | G26: 0 | H26: 0 | I26: 0 | J26: 24030 | K26: 0 | L26: 0 | M26: 0 | N26: 0
C27: ˃ 11 kV & < = 22 kV; Steel | E27: 0 | F27: 0 | G27: 0 | H27: 0 | I27: 0 | J27: 0 | K27: 0 | L27: 0 | M27: 0 | N27: 0
C28: > 22 kV & < = 66 kV; Steel | E28: 0 | F28: 0 | G28: 0 | H28: 0 | I28: 0 | J28: 0 | K28: 0 | L28: 0 | M28: 0 | N28: 0
C29: > 66 kV & < = 132 kV; Steel | E29: 0 | F29: 0 | G29: 0 | H29: 0 | I29: 0 | J29: 0 | K29: 0 | L29: 0 | M29: 0 | N29: 0
C30: > 132 kV; Steel | E30: 0 | F30: 0 | G30: 0 | H30: 0 | I30: 0 | J30: 0 | K30: 0 | L30: 0 | M30: 0 | N30: 0
C31: Other | E31: 0 | F31: 11356.05871 | G31: 0 | H31: 15527.51935 | I31: 0 | J31: 0 | K31: 29116 | L31: 0 | M31: 0 | N31: 0
B32: POLE TOP STRUCTURES BY: HIGHEST OPERATING VOLTAGE | C32: ˂ = 1 kV | E32: 1074180.378 | F32: 923017.9294 | G32: 2304269.164 | H32: 2840307 | I32: 4025349.741 | J32: 3016033.223 | K32: 2325237.649 | L32: 2248193.58 | M32: 1836301.991 | N32: 639689.1082
C33: > 1 kV & < = 11 kV | E33: 615097.2133 | F33: 524764.7574 | G33: 616254.7152 | H33: 694495.2484 | I33: 1718326.606 | J33: 1138441.383 | K33: 538928.7071 | L33: 488618.55 | M33: 322017.804 | N33: 246803.6468
C34: ˃ 11 kV & < = 22 kV | E34: 0 | F34: 10700 | G34: 20400 | H34: 6300 | I34: 131997.1582 | J34: 53208 | K34: 7744 | L34: 26130.93 | M34: 9854.115288 | N34: 25713.71256
C35: > 22 kV & < = 66 kV | E35: 38130.32262 | F35: 60800 | G35: 49400 | H35: 65100 | I35: 337868.5334 | J35: 420735 | K35: 38997.85886 | L35: 10196.13 | M35: 12477.1773 | N35: 130233.7313
C36: > 66 kV & < = 132 kV | E36: 0 | F36: 0 | G36: 0 | H36: 0 | I36: 0 | J36: 0 | K36: 0 | L36: 0 | M36: 0 | N36: 0
C37: > 132 kV | E37: 0 | F37: 0 | G37: 0 | H37: 0 | I37: 0 | J37: 0 | K37: 0 | L37: 0 | M37: 0 | N37: 0
C38: Other | E38: 0 | F38: 0 | G38: 0 | H38: 0 | I38: 0 | J38: 0 | K38: 0 | L38: 0 | M38: 0 | N38: 0
B39: STAKING WOODEN POLES BY: HIGHEST OPERATING VOLTAGE | C39: ˂ = 1 Kv | D39: for year wooden pole staked
C40: > 1 kV & < = 11 kV | D40: for year wooden pole staked
C41: ˃ 11 kV & < = 22 kV | D41: for year wooden pole staked
C42: > 22 kV & < = 66 kV | D42: for year wooden pole staked
C43: > 66 kV & < = 132 kV | D43: for year wooden pole staked
C44: > 132 kV | D44: for year wooden pole staked
B45: OVERHEAD CONDUCTORS BY: HIGHEST OPERATING VOLTAGE; NUMBER OF PHASES (AT HV) | C45: ˂ = 1 kV | D45: per km | E45: 0 | F45: 0 | G45: 142000 | H45: 34000 | I45: 0 | J45: 823400 | K45: 2.910383046e-10 | L45: 34040.08 | M45: 57012 | N45: 0
C46: > 1 kV & < = 11 kV | D46: per km | E46: 0 | F46: 0 | G46: 0 | H46: 0 | I46: 0 | J46: 0 | K46: -4.365574569e-11 | L46: -0.2 | M46: 0 | N46: 0
C47: ˃ 11 kV & < = 22 kV ; SWER | D47: per km | E47: 0 | F47: 0 | G47: 0 | H47: 0 | I47: 0 | J47: 0 | K47: 0 | L47: 0 | M47: 0 | N47: 0
C48: ˃ 11 kV & < = 22 kV ; Single-Phase | D48: per km | E48: 0 | F48: 0 | G48: 0 | H48: 0 | I48: 0 | J48: 0 | K48: 0 | L48: 0 | M48: 0 | N48: 0
C49: ˃ 11 kV & < = 22 kV ; Multiple-Phase | D49: per km | E49: 0 | F49: 0 | G49: 189000 | H49: 129000 | I49: 0 | J49: 0 | K49: 0 | L49: 0 | M49: 0 | N49: 0
C50: > 22 kV & < = 66 kV | D50: per km | E50: 0 | F50: 0 | G50: 0 | H50: 0 | I50: 0 | J50: 0 | K50: 0 | L50: 0 | M50: 0 | N50: 0
C51: > 66 kV & < = 132 kV | D51: per km | E51: 0 | F51: 0 | G51: 0 | H51: 0 | I51: 0 | J51: 0 | K51: 0 | L51: 0 | M51: 0 | N51: 0
C52: > 132 kV | D52: per km | E52: 0 | F52: 0 | G52: 0 | H52: 0 | I52: 0 | J52: 0 | K52: 0 | L52: 0 | M52: 0 | N52: 0
C53: Other | D53: per km | E53: 0 | F53: 0 | G53: 0 | H53: 0 | I53: 0 | J53: 0 | K53: 0 | L53: 0 | M53: 0 | N53: 0
B54: UNDERGROUND CABLES BY: HIGHEST OPERATING VOLTAGE | C54: ˂ = 1 kV | D54: per km | E54: 162296.8225 | F54: 800296.8225 | G54: 1514246.823 | H54: 1132196.822 | I54: 1997016.822 | J54: 471113.8225 | K54: -3.346940503e-10 | L54: -0.39 | M54: -0.0008048699237 | N54: 0
C55: > 1 kV & < = 11 kV | D55: per km | E55: 746280 | F55: 488950 | G55: 2088880 | H55: 3830210 | I55: 1630030 | J55: 725565 | K55: 1018926 | L55: 428098.7 | M55: 1744280.253 | N55: 1614893.16
C56: > 11 kV & < = 22 kV | D56: per km | E56: 28380 | F56: 0 | G56: 0 | H56: 0 | I56: 660207.25 | J56: 315200.25 | K56: 0 | L56: -0.3 | M56: -0.2084540504 | N56: 0.37
C57: > 22 kV & < = 33 kV | D57: per km | E57: 0 | F57: 0 | G57: 0 | H57: 0 | I57: 0 | J57: 0 | K57: 0 | L57: 0 | M57: 0 | N57: 0
C58: > 33 kV & < = 66 kV | D58: per km | E58: 2076046.735 | F58: 0 | G58: 0 | H58: 0 | I58: 0 | J58: 0 | K58: 0 | L58: 0.26 | M58: 0 | N58: 0
C59: > 66 kV & < = 132 kV | D59: per km | E59: 0 | F59: 0 | G59: 0 | H59: 0 | I59: 0 | J59: 0 | K59: 0 | L59: 0 | M59: 0 | N59: 0
C60: > 132 kV | D60: per km | E60: 0 | F60: 0 | G60: 0 | H60: 0 | I60: 0 | J60: 0 | K60: 0 | L60: 0 | M60: 0 | N60: 0
C61: Other | D61: per km | E61: 0 | F61: 0 | G61: 0 | H61: 0 | I61: 0 | J61: 0 | K61: 287 | L61: -0.02 | M61: 0 | N61: 0
B62: SERVICE LINES BY: CONNECTION VOLTAGE; CUSTOMER TYPE; CONNECTION COMPLEXITY | C62: ˂ = 11 kV ; Residential ; Simple Type | D62: per number of spans | E62: 1493181.79 | F62: 1353931.894 | G62: 1584845.826 | H62: 1549985.773 | I62: 2606746.762 | J62: 1917709.753 | K62: 1755304.356 | L62: 1381884.85 | M62: 1570154.225 | N62: 956975.8705
C63: ˂ = 11 kV ; Commercial & Industrial ; Simple Type | D63: per number of spans | E63: 0 | F63: 0 | G63: 0 | H63: 0 | I63: 0 | J63: 0 | K63: 0 | L63: 0 | M63: 0 | N63: 0
C64: ˂ = 11 kV ; Residential ; Complex Type | D64: per number of spans | E64: 0 | F64: 0 | G64: 0 | H64: 0 | I64: 0 | J64: 0 | K64: 0 | L64: 0 | M64: 0 | N64: 0
C65: ˂ = 11 kV ; Commercial & Industrial ; Complex Type | D65: per number of spans | E65: 0 | F65: 0 | G65: 0 | H65: 0 | I65: 0 | J65: 0 | K65: 0 | L65: 0 | M65: 0 | N65: 0
C66: ˂ = 11 kV ; Subdivision ; Complex Type | D66: per number of spans | E66: 0 | F66: 0 | G66: 0 | H66: 0 | I66: 0 | J66: 0 | K66: 0 | L66: 0 | M66: 0 | N66: 0
C67: > 11 kV & < = 22 kV ; Commercial & Industrial | D67: per number of spans | E67: 0 | F67: 0 | G67: 0 | H67: 0 | I67: 0 | J67: 0 | K67: 0 | L67: 0 | M67: 0 | N67: 0
C68: > 11 kV & < = 22 kV ; Subdivision | D68: per number of spans | E68: 0 | F68: 0 | G68: 0 | H68: 0 | I68: 0 | J68: 0 | K68: 0 | L68: 0 | M68: 0 | N68: 0
C69: > 22 kV & < = 33 kV ; Commercial & Industrial | D69: per number of spans | E69: 0 | F69: 0 | G69: 0 | H69: 0 | I69: 0 | J69: 0 | K69: 0 | L69: 0 | M69: 0 | N69: 0
C70: > 22 kV & < = 33 kV ; Subdivision | D70: per number of spans | E70: 0 | F70: 0 | G70: 0 | H70: 0 | I70: 0 | J70: 0 | K70: 0 | L70: 0 | M70: 0 | N70: 0
C71: > 33 kV & < = 66 kV ; Commercial & Industrial | D71: per number of spans | E71: 0 | F71: 0 | G71: 0 | H71: 0 | I71: 0 | J71: 0 | K71: 0 | L71: 0 | M71: 0 | N71: 0
C72: > 33 kV & < = 66 kV ; Subdivision | D72: per number of spans | E72: 0 | F72: 0 | G72: 0 | H72: 0 | I72: 0 | J72: 0 | K72: 0 | L72: 0 | M72: 0 | N72: 0
C73: > 66 kV & < = 132 kV ; Commercial & Industrial | D73: per number of spans | E73: 0 | F73: 0 | G73: 0 | H73: 0 | I73: 0 | J73: 0 | K73: 0 | L73: 0 | M73: 0 | N73: 0
C74: > 66 kV & < = 132 kV ; Subdivision | D74: per number of spans | E74: 0 | F74: 0 | G74: 0 | H74: 0 | I74: 0 | J74: 0 | K74: 0 | L74: 0 | M74: 0 | N74: 0
C75: > 132 kV ; Commercial & Industrial | D75: per number of spans | E75: 0 | F75: 0 | G75: 0 | H75: 0 | I75: 0 | J75: 0 | K75: 0 | L75: 0 | M75: 0 | N75: 0
C76: > 132 kV ; Subdivision | D76: per number of spans | E76: 0 | F76: 0 | G76: 0 | H76: 0 | I76: 0 | J76: 0 | K76: 0 | L76: 0 | M76: 0 | N76: 0
C77: Other | D77: per number of spans | E77: 0 | F77: 0 | G77: 0 | H77: 0 | I77: 0 | J77: 0 | K77: 0 | L77: 0 | M77: 0 | N77: 0
B78: TRANSFORMERS BY: MOUNTING TYPE; HIGHEST OPERATING VOLTAGE ; AMPERE RATING; NUMBER OF PHASES (AT LV) | C78: Pole Mounted ; < = 22kV ; < = 60 kVA ; Single Phase | E78: 0 | F78: 0 | G78: 0 | H78: 0 | I78: 0 | J78: 0 | K78: 0 | L78: 0 | M78: 0 | N78: 0
C79: Pole Mounted ; < = 22kV ; > 60 kVA and < = 600 kVA ; Single Phase | E79: 0 | F79: 0 | G79: 0 | H79: 0 | I79: 0 | J79: 0 | K79: 5582 | L79: 0 | M79: 0 | N79: 0
C80: Pole Mounted ; < = 22kV ; > 600 kVA ; Single Phase | E80: 0 | F80: 0 | G80: 0 | H80: 0 | I80: 0 | J80: 0 | K80: 0 | L80: 0 | M80: 0 | N80: 0
C81: Pole Mounted ; < = 22kV ; < = 60 kVA ; Multiple Phase | E81: 0 | F81: 0 | G81: 0 | H81: 0 | I81: 0 | J81: 0 | K81: 0 | L81: 0 | M81: 0 | N81: 0
C82: Pole Mounted ; < = 22kV ; > 60 kVA and < = 600 kVA ; Multiple Phase | E82: 1541988.02 | F82: 1721958.218 | G82: 1193004.986 | H82: 916980.4619 | I82: 2178499.862 | J82: 725465.569 | K82: 0 | L82: 344019 | M82: 15501.1271 | N82: 605958.9467
C83: Pole Mounted ; < = 22kV ; > 600 kVA ; Multiple Phase | E83: 296187.1211 | F83: 0 | G83: 0 | H83: 0 | I83: 0 | J83: 0 | K83: 294227.7379 | L83: 0 | M83: 0 | N83: 0
C84: Kiosk Mounted ; < = 22kV ; < = 60 kVA ; Single Phase | E84: 0 | F84: 0 | G84: 0 | H84: 0 | I84: 0 | J84: 0 | K84: 0 | L84: 0 | M84: 0 | N84: 0
C85: Kiosk Mounted ; < = 22kV ; > 60 kVA and < = 600 kVA ; Single Phase | E85: 0 | F85: 0 | G85: 0 | H85: 0 | I85: 0 | J85: 0 | K85: 0 | L85: 0 | M85: 0 | N85: 0
C86: Kiosk Mounted ; < = 22kV ; > 600 kVA ; Single Phase | E86: 0 | F86: 0 | G86: 0 | H86: 0 | I86: 0 | J86: 0 | K86: 0 | L86: 0 | M86: 0 | N86: 0
C87: Kiosk Mounted ; < = 22kV ; < = 60 kVA ; Multiple Phase | E87: 0 | F87: 0 | G87: 0 | H87: 0 | I87: 0 | J87: 0 | K87: 0 | L87: 0 | M87: 0 | N87: 0
C88: Kiosk Mounted ; < = 22kV ; > 60 kVA and < = 600 kVA ; Multiple Phase | E88: 44230 | F88: 0 | G88: 0 | H88: 23860 | I88: 610 | J88: 174307.5278 | K88: 32927 | L88: 0 | M88: 548561.5563 | N88: 107172.38
C89: Kiosk Mounted ; < = 22kV ; > 600 kVA ; Multiple Phase | E89: 0 | F89: 0 | G89: 30 | H89: 0 | I89: 195075.2095 | J89: 0 | K89: 0 | L89: 0 | M89: 0 | N89: 0
C90: Ground Outdoor / Indoor Chamber Mounted; ˂ 22 kV ; < = 60 kVA ; Single Phase | E90: 0 | F90: 0 | G90: 0 | H90: 0 | I90: 0 | J90: 0 | K90: 0 | L90: 0 | M90: 0 | N90: 0
C91: Ground Outdoor / Indoor Chamber Mounted; ˂ 22 kV ; > 60 kVA and < = 600 kVA ; Single Phase | E91: 0 | F91: 0 | G91: 0 | H91: 0 | I91: 0 | J91: 0 | K91: 0 | L91: 0 | M91: 0 | N91: 0
C92: Ground Outdoor / Indoor Chamber Mounted; ˂ 22 kV ; > 600 kVA ; Single Phase | E92: 0 | F92: 0 | G92: 0 | H92: 0 | I92: 0 | J92: 0 | K92: 0 | L92: 0 | M92: 0 | N92: 0
C93: Ground Outdoor / Indoor Chamber Mounted; ˂ 22 kV ; < = 60 kVA ; Multiple Phase | E93: 0 | F93: 0 | G93: 0 | H93: 0 | I93: 0 | J93: 0 | K93: 0 | L93: 0 | M93: 0 | N93: 0
C94: Ground Outdoor / Indoor Chamber Mounted; ˂ 22 kV ; > 60 kVA and < = 600 kVA ; Multiple Phase | E94: 0 | F94: 410 | G94: 40080 | H94: 0 | I94: 141000 | J94: 0 | K94: 0 | L94: 21879 | M94: 0 | N94: 14238.99
C95: Ground Outdoor / Indoor Chamber Mounted; ˂ 22 kV ; > 600 kVA ; Multiple Phase | E95: 675630 | F95: 1356440 | G95: 1005380 | H95: -591650 | I95: 947200 | J95: 69804 | K95: 265873 | L95: 0 | M95: 150968.2105 | N95: 201398.23
C96: Ground Outdoor / Indoor Chamber Mounted; > = 22 kV & < = 33 kV ; < = 15 MVA | E96: 45760 | F96: 217270 | G96: 1757680 | H96: 820340 | I96: 28190 | J96: 0 | K96: 23850 | L96: 5010 | M96: 97392.56909 | N96: -53916.81
C97: Ground Outdoor / Indoor Chamber Mounted; > = 22 kV & < = 33 kV ; > 15 MVA and < = 40 MVA | E97: 74330 | F97: 945210 | G97: 325230 | H97: 36100 | I97: 357620 | J97: 0 | K97: 10471 | L97: 0 | M97: 0 | N97: 0
C98: Ground Outdoor / Indoor Chamber Mounted; > = 22 kV & < = 33 kV ; > 40 MVA | E98: 3842310 | F98: 672040 | G98: 108330 | H98: 45130 | I98: 792610 | J98: 0 | K98: 0 | L98: 0 | M98: 0 | N98: 0
C99: Ground Outdoor / Indoor Chamber Mounted; > 33 kV & < = 66 kV ; < = 15 MVA | E99: 0 | F99: 0 | G99: 0 | H99: 0 | I99: 0 | J99: 0 | K99: 0 | L99: 0 | M99: 0 | N99: 0
C100: Ground Outdoor / Indoor Chamber Mounted; > 33 kV & < = 66 kV ; > 15 MVA and < = 40 MVA | E100: 0 | F100: 0 | G100: 0 | H100: 0 | I100: 0 | J100: 341829 | K100: 18421 | L100: 0 | M100: 0 | N100: -14858.74
C101: Ground Outdoor / Indoor Chamber Mounted; > 33 kV & < = 66 kV ; > 40 MVA | E101: 0 | F101: 0 | G101: 0 | H101: 0 | I101: 0 | J101: 0 | K101: 0 | L101: 0 | M101: 0 | N101: 0
C102: Ground Outdoor / Indoor Chamber Mounted; > 66 kV & < = 132 kV ; < = 100 MVA | E102: 0 | F102: 0 | G102: 0 | H102: 0 | I102: 0 | J102: 0 | K102: 0 | L102: 0 | M102: 0 | N102: 0
C103: Ground Outdoor / Indoor Chamber Mounted; > 66 kV & < = 132 kV ; > 100 MVA | E103: 0 | F103: 0 | G103: 0 | H103: 0 | I103: 0 | J103: 0 | K103: 0 | L103: 0 | M103: 0 | N103: 0
C104: Ground Outdoor / Indoor Chamber Mounted; > 132 kV ; < = 100 MVA | E104: 0 | F104: 0 | G104: 0 | H104: 0 | I104: 0 | J104: 0 | K104: 0 | L104: 0 | M104: 0 | N104: 0
C105: Ground Outdoor / Indoor Chamber Mounted; > 132 kV ; > 100 MVA | E105: 0 | F105: 0 | G105: 0 | H105: 0 | I105: 0 | J105: 0 | K105: 0 | L105: 0 | M105: 0 | N105: 0
C106: Other | E106: 0 | F106: 0 | G106: 0 | H106: 0 | I106: 0 | J106: 0 | K106: 0 | L106: 0 | M106: 0 | N106: 0
B107: SWITCHGEAR BY: HIGHEST OPERATING VOLTAGE ; SWITCH FUNCTION | C107: ˂ = 11 kV ; FUSE | E107: 0 | F107: 0 | G107: 0 | H107: 0 | I107: 0 | J107: 0 | K107: 0 | L107: 0 | M107: 0 | N107: 0
C108: ˂ = 11 kV ; Switch | E108: 394951.7707 | F108: 700656.7218 | G108: 371802.3853 | H108: 275830.9834 | I108: 624079.5857 | J108: 844179 | K108: 605844 | L108: 1350752 | M108: 1107409.911 | N108: 643728
C109: ˂ = 11 kV ; Circuit Breaker | E109: 788760 | F109: 1114840 | G109: 932090 | H109: 24860 | I109: 62310 | J109: 0 | K109: 0 | L109: 45079 | M109: 109733.8696 | N109: 0
C110: > 11 kV & < = 22 kV ; Switch | E110: 0 | F110: 0 | G110: 0 | H110: 0 | I110: 0 | J110: 28888 | K110: 0 | L110: 0 | M110: 0 | N110: 11942.28
C111: > 11 kV & < = 22 kV ; Circuit Breaker | E111: 0 | F111: 0 | G111: 217640 | H111: 0 | I111: 0 | J111: 0 | K111: 0 | L111: 0 | M111: 0 | N111: 0
C112: > 22 kV & < = 33 kV ; Switch | E112: 0 | F112: 0 | G112: 0 | H112: 0 | I112: 0 | J112: 0 | K112: 0 | L112: 0 | M112: 0 | N112: 0
C113: > 22 kV & < = 33 kV ; Circuit Breaker | E113: 0 | F113: 0 | G113: 0 | H113: 0 | I113: 0 | J113: 0 | K113: 0 | L113: 0 | M113: 0 | N113: 0
C114: > 33 kV & < = 66 kV ; Switch | E114: 0 | F114: 2310 | G114: 0 | H114: 0 | I114: 0 | J114: 0 | K114: 0 | L114: 0 | M114: 0 | N114: 0
C115: > 33 kV & < = 66 kV ; Circuit Breaker | E115: 1240100 | F115: 2831550 | G115: 68490 | H115: 1200 | I115: 333900 | J115: 523716 | K115: 366665 | L115: 2662 | M115: 440887.5851 | N115: 38919.53
C116: > 66 kV & < = 132 kV ; Switch | E116: 0 | F116: 0 | G116: 0 | H116: 0 | I116: 0 | J116: 0 | K116: 0 | L116: 0 | M116: 0 | N116: 0
C117: > 66 kV & < = 132 kV ; Circuit Breaker | E117: 0 | F117: 0 | G117: 0 | H117: 0 | I117: 0 | J117: 0 | K117: 0 | L117: 0 | M117: 0 | N117: 0
C118: > 132 kV ; Switch | E118: 0 | F118: 0 | G118: 0 | H118: 0 | I118: 0 | J118: 0 | K118: 0 | L118: 0 | M118: 0 | N118: 0
C119: > 132 kV ; Circuit Breaker | E119: 0 | F119: 0 | G119: 0 | H119: 0 | I119: 0 | J119: 0 | K119: 0 | L119: 0 | M119: 0 | N119: 0
C120: Other | E120: 319016.6869 | F120: 616731.0425 | G120: 712245.714 | H120: 844343.9548 | I120: 2181174.071 | J120: 2436314.117 | K120: 2521695.713 | L120: 534334 | M120: 517970.145 | N120: 715571.0166
B121: PUBLIC LIGHTING BY: ASSET TYPE ; LIGHTING OBLIGATION | C121: Luminaires ; Major Road | E121: 129108.6969 | F121: 153821.5394 | G121: 150170.0171 | H121: 175191.7862 | I121: 244588.4338 | J121: 362700 | K121: 217069.4844 | L121: 130544 | M121: 252078.1054 | N121: 336987.3193
C122: Luminaires ; Minor Road | E122: 65975.48308 | F122: 88897.53822 | G122: 70837.76026 | H122: 80909.0588 | I122: 108537.8611 | J122: 964500 | K122: 445264.2764 | L122: 502307 | M122: 478809.9539 | N122: 655298.9473
C123: Brackets ; Major Road | E123: 10882.61538 | F123: 10370.38708 | G123: 11926.24926 | H123: 10361.62243 | I123: 20112.24473 | J123: 21000 | K123: 25896.05275 | L123: 7902 | M123: 10528.46133 | N123: 12809.50609
C124: Brackets ; Minor Road | E124: 1173.980769 | F124: 3521.942308 | G124: 939.1846154 | H124: 1017.45 | I124: 1330.511538 | J124: 0 | K124: 9606.214578 | L124: 15390 | M124: 20072.69894 | N124: 10357.61647
C125: Lamps ; Major Road | E125: 0 | F125: 0 | G125: 0 | H125: 0 | I125: 0 | J125: 0 | K125: 0 | L125: 0 | M125: 0 | N125: 0
C126: Lamps ; Minor Road | E126: 0 | F126: 0 | G126: 0 | H126: 0 | I126: 0 | J126: 0 | K126: 0 | L126: 0 | M126: 0 | N126: 0
C127: Poles / Columns ; Major Road | E127: 272354.7692 | F127: 142083.4738 | G127: 302202.6436 | H127: 240731.847 | I127: 491432.46 | J127: 287000 | K127: 485526.0723 | L127: 56057 | M127: 123559.2892 | N127: 68506.32619
C128: Poles / Columns ; Minor Road | E128: 144267.2308 | F128: 74872.78615 | G128: 163024.3096 | H128: 129419.8214 | I128: 261598.8305 | J128: 79100 | K128: 137390.4628 | L128: 440886 | M128: 177905.3962 | N128: 75138.85537
C129: Other | E129: 0 | F129: 0 | G129: 0 | H129: 0 | I129: 0 | J129: 37600 | K129: 3613 | L129: 638 | M129: 0 | N129: 0
B130: SCADA, NETWORK CONTROL AND PROTECTION SYSTEMS BY: FUNCTION | C130: Field Devices | E130: 1337000 | F130: 2515000 | G130: 1515000 | H130: 1330000 | I130: 3125000 | J130: 2880900 | K130: 1952900.5 | L130: 2688172 | M130: 2633941.96 | N130: 2558712.34
C131: Local Network Wiring Assets | E131: 0 | F131: 0 | G131: 0 | H131: 0 | I131: 0 | J131: 0 | K131: 0 | L131: 0 | M131: 0 | N131: 0
C132: Communications Network Assets | E132: 0 | F132: 0 | G132: 0 | H132: 0 | I132: 0 | J132: 0 | K132: 0 | L132: 0 | M132: 0 | N132: 0
C133: Master Station Assets | E133: 0 | F133: 0 | G133: 0 | H133: 0 | I133: 0 | J133: 0 | K133: 0 | L133: 0 | M133: 0 | N133: 0
C134: Communications Site Infrastructure | E134: 0 | F134: 0 | G134: 0 | H134: 0 | I134: 0 | J134: 0 | K134: 0 | L134: 0 | M134: 0 | N134: 0
C135: Communications Linear Assets | E135: 0 | F135: 0 | G135: 0 | H135: 0 | I135: 0 | J135: 0 | K135: 0 | L135: 0 | M135: 0 | N135: 0
C136: AFLC | E136: 0 | F136: 0 | G136: 0 | H136: 0 | I136: 0 | J136: 0 | K136: 0 | L136: 0 | M136: 0 | N136: 0
C137: Other | E137: 98.06723938 | F137: 22154.14443 | G137: 1706294.47 | H137: 36240.18 | I137: 0 | J137: 229185.77 | K137: 0 | L137: 0 | M137: 0 | N137: 0
B138: OTHER BY: DNSP DEFINED | C138: RECOVERABLE WORK - FAULTS (*2011 - 2013 CA RIN are Quoted Opex) | E138: 102170.1872 | F138: 740452.8381 | G138: 0 | H138: 0 | I138: 0 | J138: 0 | K138: 0 | L138: 0 | M138: 0 | N138: 0
C139: MAJOR ZONE SUBSTATION REPLACEMENT WORKS | E139: 9617550 | F139: 8308120 | G139: 1238170 | H139: 302200 | I139: 1091470 | J139: 2242023 | K139: 10471 | L139: 2263269 | M139: 5.083604578 | N139: 81373.05
C140: PLANT AND STATIONS MISCELLANEOUS | E140: 7692 | F140: 840222 | G140: -1274328 | H140: 1337102 | I140: 1120672 | J140: 1576732.804 | K140: 4373218 | L140: 735175 | M140: 2877374.761 | N140: 2942963.52
C141: TV INTEREFERENCE RELATED EXPENDITURE | E141: 10728.90621 | F141: 12319.56918 | G141: 4934.83 | H141: 0 | I141: 0 | J141: 0 | K141: 0 | L141: 0 | M141: 0 | N141: 0
C142: ENVIRONMENTAL RELATED REPLACEMENT EXPENDITURE | E142: 122167.2909 | F142: 374656.587 | G142: 908775.78 | H142: 651490.66 | I142: 1070957.83 | J142: 1035617.03 | K142: 803641.89 | L142: 24681 | M142: 145221.88 | N142: 1306261.68
C143: BUSHFIRE MITIGATION RELATED REPLACEMENT EXPENDITURE | E143: 6814.96744 | F143: 741.3217572 | G143: 0 | H143: 0 | I143: 0 | J143: 0 | K143: 0 | L143: 0 | M143: 0 | N143: 0
C144: LINES MISCELLANEOUS | E144: 426667.5968 | F144: 890737.2346 | G144: 127586.78 | H144: 630577.23 | I144: 167053.7824 | J144: 569757.46 | K144: 302973.22 | L144: 21783 | M144: 153483.65 | N144: 24115.3
C145: POLE CHEMICAL TREATMENT | E145: 225100 | F145: 226700 | G145: 251900 | H145: 318800 | I145: 243600 | J145: 198926 | K145: 210362.8 | L145: 276302 | M145: 300716 | N145: 0
C146: POLES / COLUMNS ; MAJOR ROAD - Standard Control Service | E146: 708297.9576 | F146: 279082.2689 | G146: 142482.2117 | H146: -108.57 | I146: 91360.782 | J146: 30026.94658 | K146: 0 | L146: 0 | M146: 0 | N146: 0

Sheet 2.3(a) Augex
B1: =INDEX(dms_Worksheet_List,MATCH(dms_Model,dms_Model_List)) -> RECAST HISTORICAL CATEGORY ANALYSIS - CALENDAR YEARS
B2: =INDEX(dms_TradingNameFull_List,MATCH(dms_TradingName,dms_TradingName_List)) -> CitiPower
B3: =dms_Header_Span -> 2009 to 2018
B4: 2.3 AUGEX PROJECT DATA
B7: There are TWO tables on this worksheet - each has been 'grouped' (and sub-grouped) for easy navigation. Both rows and columns have been grouped. See the Instructions sheet on how to group or ungroup tables.
B9: 2.3.1 - AUGEX ASSET DATA - SUBTRANSMISSION SUBSTATIONS, SWITCHING STATIONS AND ZONE SUBSTATIONS
B10: NOTE: DNSP MUST PROVIDE EXPENDITURE INFORMATION ON A PROJECT CLOSE BASIS.
B11: AUG231_1 | C11: AUG231_2 | D11: AUG231_3 | E11: AUG231_4 | F11: AUG231_5 | G11: AUG231_6 | H11: ED_AUG231_00001 | I11: ED_AUG231_00002 | J11: ED_AUG231_00003 | K11: ED_AUG231_00004 | L11: ED_AUG231_00005 | M11: ED_AUG231_00006 | N11: ED_AUG231_00007 | O11: ED_AUG231_00008 | P11: ED_AUG231_00009 | Q11: ED_AUG231_00010 | R11: ED_AUG231_00011 | U11: ED_AUG231_00012 | V11: ED_AUG231_00013 | W11: ED_AUG231_00014 | X11: ED_AUG231_00015 | Y11: ED_AUG231_00016 | Z11: ED_AUG231_00017 | AA11: ED_AUG231_00018 | AB11: ED_AUG231_00019 | AC11: ED_AUG231_00020 | AD11: ED_AUG231_00021 | AE11: ED_AUG231_00022 | AF11: ED_AUG231_00023
B12: PROJECT DESCRIPTION AND CHANGES | L12: PLANT AND EQUIPMENT EXPENDITURE AND VOLUME | X12: OTHER EXPENDITURE | Z12: TOTAL DIRECT EXPENDITURE ($0's) | AA12: YEARS INCURRED | AB12: ALL RELATED PARTY CONTRACTS | AD12: ALL NON RELATED PARTYCONTRACTS | AE12: LAND AND EASEMENTS
B13: SUBSTATION ID | C13: SUBSTATION TYPE (drop down) | D13: PROJECT ID | E13: PROJECT TYPE (drop down) | F13: PROJECT TRIGGER (drop down) | G13: VOLTAGE (KV) | H13: SUBSTATION RATING NORMAL CYCLIC (MVA) | J13: SUBSTATION RATING N-1 EMERGENCY (MVA) | L13: TRANSFORMERS | O13: SWITCHGEAR | Q13: CAPACITORS | U13: OTHER PLANT ITEM | V13: INSTALLATION (LABOUR) | X13: CIVIL WORKS | Y13: OTHER DIRECT | AB13: RELATED PARTY MARGINS | AC13: TOTAL | AE13: LAND PURCHASE | AF13: EASEMENTS
H14: PRE | I14: POST | J14: PRE | K14: POST | L14: UNITS ADDED | M14: MVA ADDED | N14: EXPENDITURE ($0's) | O14: UNITS ADDED | P14: EXPENDITURE ($0's) | Q14: MVAR ADDED | R14: EXPENDITURE ($0's) | U14: EXPENDITURE ($0's) | V14: VOLUME | W14: EXPENDITURE ($0's) | X14: EXPENDITURE ($0's) | AB14: EXPENDITURE ($0's) | AE14: EXPENDITURE ($0's)
Z15: =SUM(N15,P15,R15,U15,W15,X15,Y15) -> 0
Z16: 0
Z17: 0
Z18: 0
Z19: 0
Z20: 0
Z21: 0
Z22: 0
Z23: 0
Z24: 0
Z25: 0
Z26: 0
Z27: 0
Z28: 0
Z29: 0
Z30: 0
Z31: 0
Z32: 0
Z33: 0
Z34: 0
Z35: 0
Z36: 0
Z37: 0
Z38: 0
Z39: 0
Z40: 0
Z41: 0
Z42: 0
Z43: 0
Z44: 0
Z45: 0
Z46: 0
Z47: =SUM(N47,P47,R47,U47,W47,X47,Y47) -> 0
Z48: 0
Z49: 0
Z50: 0
Z51: 0
Z52: 0
Z53: 0
Z54: 0
Z55: 0
Z56: 0
Z57: 0
Z58: 0
Z59: 0
Z60: 0
Z61: 0
Z62: 0
Z63: 0
Z64: 0
Z65: 0
Z66: 0
D67: Non material projects - [actual]
B70: AUG232_1 | C70: AUG232_2 | D70: AUG232_3 | E70: AUG232_4 | F70: AUG232_5 | G70: AUG232_6 | H70: ED_AUG232_00001 | I70: ED_AUG232_00002 | J70: ED_AUG232_00003 | K70: ED_AUG232_00004 | L70: ED_AUG232_00005 | M70: ED_AUG232_00006 | N70: ED_AUG232_00007 | O70: ED_AUG232_00008 | P70: ED_AUG232_00009 | Q70: ED_AUG232_00010 | R70: ED_AUG232_00011 | S70: ED_AUG232_00012 | T70: ED_AUG232_00013 | U70: ED_AUG232_00014 | V70: ED_AUG232_00015 | W70: ED_AUG232_00016 | X70: ED_AUG232_00017 | Y70: ED_AUG232_00018 | Z70: ED_AUG232_00019 | AA70: ED_AUG232_00020 | AB70: ED_AUG232_00021
B71: 2.3.2 - AUGEX ASSET DATA - SUBTRANSMISSION LINES
B72: NOTE: DNSP MUST PROVIDE EXPENDITURE INFORMATION ON A PROJECT CLOSE BASIS.
B73: PROJECT DESCRIPTION AND CHANGES | L73: PLANT AND EQUIPMENT EXPENDITURE AND VOLUME | X73: OTHER EXPENDITURE | Z73: TOTAL DIRECT EXPENDITURE ($0's) | AA73: YEARS INCURRED | AB73: ALL RELATED PARTY CONTRACTS | AD73: ALL NON RELATED PARTYCONTRACTS | AE73: LAND AND EASEMENTS
B74: LINE ID | C74: PROJECT ID | D74: PROJECT TYPE | E74: PROJECT TRIGGER | F74: PROJECT TRIGGER (drop down) | G74: VOLTAGE (KV) | H74: ROUTE LINE LENGTH ADDED | L74: POLES/TOWERS (INCLUDING STRUCTURES, AND CIVIL WORKS) | O74: OVERHEAD LINES | R74: UNDERGROUND CABLES | U74: OTHER PLANT ITEM | V74: INSTALLATION (LABOUR) | X74: CIVIL WORKS | Y74: OTHER DIRECT | AB74: RELATED PARTY MARGINS | AC74: TOTAL | AE74: LAND PURCHASE | AF74: EASEMENTS
H75: KM ADDED | L75: POLES/TOWERS ADDED | M75: POLES/TOWERS UPGRADED | N75: EXPENDITURE ($0's) | O75: CIRCUIT KM ADDED | P75: CIRCUIT KM UPGRADED | Q75: EXPENDITURE ($0's) | R75: CIRCUIT KM ADDED | S75: CIRCUIT KM UPGRADED | T75: EXPENDITURE ($0's) | U75: EXPENDITURE ($0's) | V75: VOLUME | W75: EXPENDITURE ($0's) | X75: EXPENDITURE ($0's) | AB75: EXPENDITURE ($0's) | AE75: EXPENDITURE ($0's)
Z76: =SUM(N76,Q76,T76,U76,W76,X76,Y76) -> 0 | AH76: New line on new route - single circuit
Z77: 0 | AH77: New line on new route - dual circuit
Z78: 0 | AH78: New line on new route - other
Z79: 0 | AH79: Line rebuild over existing route - single circuit
Z80: 0 | AH80: Line rebuild over existing route - dual circuit
Z81: 0 | AH81: Reconductor - Single circuit
Z82: 0 | AH82: Reconductor - Dual circuit
Z83: 0 | AH83: Reconductor - Other
Z84: 0 | AH84: Line upgrade - raising/retensoring
Z85: 0 | AH85: Line upgrade - voltage upgrade
Z86: 0 | AH86: Line upgrade - capacity
Z87: 0 | AH87: String spare circuit
Z88: 0 | AH88: Other
Z89: 0
Z90: 0
Z91: 0
Z92: 0
Z93: 0
Z94: 0
Z95: 0
Z96: 0
Z97: 0
Z98: 0
Z99: 0
Z100: 0
Z101: 0
Z102: 0
Z103: 0
Z104: 0
Z105: 0
Z106: 0
Z107: 0
Z108: =SUM(N108,Q108,T108,U108,W108,X108,Y108) -> 0
Z109: 0
Z110: 0
Z111: 0
Z112: 0
Z113: 0
Z114: 0
Z115: 0
Z116: 0
Z117: 0
Z118: 0
Z119: 0
Z120: 0
Z121: 0
Z122: 0
Z123: 0
Z124: 0
Z125: 0
Z126: 0
Z127: 0
Z128: 0
Z129: 0
C130: Non material projects - [actual]

Sheet 2.3(b) Augex
B1: =INDEX(dms_Worksheet_List,MATCH(dms_Model,dms_Model_List)) -> RECAST HISTORICAL CATEGORY ANALYSIS - CALENDAR YEARS
B2: =INDEX(dms_TradingNameFull_List,MATCH(dms_TradingName,dms_TradingName_List)) -> CitiPower
B3: =dms_Header_Span -> 2009 to 2018
B4: 2.3 AUGEX PROJECT DATA
B6: There are FOUR tables on this worksheet. These tables have been 'grouped' (and sub-grouped) for easy navigation. See the Instructions sheet on how to group or ungroup tables.
B8: NOTE: DNSP MUST PROVIDE EXPENDITURE INFORMATION ON AN AS INCURRED BASIS.
B9: 2.3.3 - AUGEX DATA - HV/LV FEEDERS AND DISTRIBUTION SUBSTATIONS
B10: COST METRICS
B11: TOTAL DIRECT EXPENDITURE - Project Type | D11: EXPENDITURE ($0's)
D12: =dms_y1 -> 2009 | E12: =dms_y2 -> 2010 | F12: =dms_y3 -> 2011 | G12: =dms_y4 -> 2012 | H12: =dms_y5 -> 2013 | I12: =dms_y6 -> 2014 | J12: =dms_y7 -> 2015 | K12: =dms_y8 -> 2016 | L12: =dms_y9 -> 2017 | M12: =dms_y10 -> 2018
B13: HV Feeder Augmentations - Overhead Lines
B14: HV Feeder Augmentations - Underground Cables
B15: HV Feeder Non-Material Projects
B16: LV Feeder Augmentations - Overhead Lines
B17: LV Feeder Augmentations - Underground Cables
B18: LV Feeder Non-Material Projects
B19: Distribution Substation Augmentations - Pole Mounted
B20: Distribution Substation Augmentations - Ground Mounted
B21: Distribution Substation Augmentations - Indoor
B25: 2.3.4 - AUGEX - TOTAL EXPENDITURE
B26: AUGMENTATION CAPEX (as incurred) | D26: EXPENDITURE ($0's)
D27: =dms_y1 -> 2009 | E27: =dms_y2 -> 2010 | F27: =dms_y3 -> 2011 | G27: =dms_y4 -> 2012 | H27: =dms_y5 -> 2013 | I27: =dms_y6 -> 2014 | J27: =dms_y7 -> 2015 | K27: =dms_y8 -> 2016 | L27: =dms_y9 -> 2017 | M27: =dms_y10 -> 2018
B28: Subtransmission Substations, Switching Stations, Zone Substations
B29: Subtransmission Lines
B30: HV Feeders
B31: HV Feeders - Land Purchases and Easements
B32: Distribution Substations
B33: Distribution Substations - Land Purchases And Easements
B34: LV Feeders
B35: LV Feeders - Land Purchases And Easements
B36: Other Assets

Sheet 2.5 Connections
B1: =INDEX(dms_Worksheet_List,MATCH(dms_Model,dms_Model_List)) -> RECAST HISTORICAL CATEGORY ANALYSIS - CALENDAR YEARS
B2: =INDEX(dms_TradingNameFull_List,MATCH(dms_TradingName,dms_TradingName_List)) -> CitiPower
B3: =dms_Header_Span -> 2009 to 2018
B4: 2.5 CONNECTIONS
B6: There are THREE tables on this worksheet - each has been 'grouped' (and sub-grouped) for easy navigation. See the Instructions sheet on how to group or ungroup tables.
B8: 2.5.1 - DESCRIPTOR METRICS
E9: VOLUMES AND EXPENDITURE
D10: Units | E10: =dms_y1 -> 2009 | F10: =dms_y2 -> 2010 | G10: =dms_y3 -> 2011 | H10: =dms_y4 -> 2012 | I10: =dms_y5 -> 2013 | J10: =dms_y6 -> 2014 | K10: =dms_y7 -> 2015 | L10: =dms_y8 -> 2016 | M10: =dms_y9 -> 2017 | N10: =dms_y10 -> 2018
B11: RESIDENTIAL | C11: Underground connections | D11: 0's
C12: Overhead connections | D12: 0's
C13: Distribution substation installed (MVA added) | D13: MVA
C14: Distribution substations installed | D14: 0's
C15: Distribution substation installed (total spend $0's) | D15: total spend $0s
C16: Augmentation HV (net circuit KM added) | D16: KM
C17: Augmentation HV (total spend $0's) | D17: total spend $0s
C18: Augmentation LV (net circuit KM added) | D18: KM
C19: Augmentation LV (total spend $0's) | D19: total spend $0s
C20: Mean days to connect residential customer with LV single phase connection | D20: 0's
C21: Volume of GSL breaches for residential customers | D21: 0's
C22: Volume of customer complaints relating to connection services | D22: 0's
C23: GSL payments | D23: $0s
B24: COMMERCIAL/INDUSTRIAL | C24: Underground connections | D24: 0's
C25: Overhead connections | D25: 0's
C26: Distribution substation installed (MVA added) | D26: MVA
C27: Distribution substations installed (0's) | D27: 0's
C28: Distribution substation installed (total spend ($0's) | D28: total spend $0s
C29: Augmentation HV (net circuit KM added) | D29: KM
C30: Augmentation HV (total spend $0's) | D30: total spend $0s
C31: Augmentation LV (net circuit KM added) | D31: KM
C32: Augmentation LV (total spend $0's) | D32: total spend $0s
B33: SUBDIVISION | C33: Underground connections | D33: 0's
C34: Overhead connections | D34: 0's
C35: Distribution substation installed (MVA added) | D35: MVA
C36: Distribution substations installed | D36: 0's
C37: Distribution substation installed (total spend $0's) | D37: total spend $0s
C38: Augmentation HV (net circuit KM added) | D38: KM
C39: Augmentation HV (total spend $0's) | D39: total spend $0s
C40: Augmentation LV (net circuit KM added) | D40: KM
C41: Augmentation LV (total spend $0's) | D41: total spend $0s
C42: Cost per lot ($) | D42: $0s
B43: EMBEDDED GENERATION | C43: Underground connections | D43: 0's
C44: Overhead connections | D44: 0's
C45: Distribution substation installed (MVA added) | D45: MVA
C46: Distribution substations installed | D46: 0's
C47: Distribution substation installed (total spend $0's) | D47: total spend $0s
C48: Augmentation HV (net circuit KM added) | D48: KM
C49: Augmentation HV (total spend $0's) | D49: total spend $0s
C50: Augmentation LV (net circuit KM added) | D50: KM
C51: Augmentation LV (total spend $0's) | D51: total spend $0s
B55: 2.5.2 - COST METRICS BY CONNECTION CLASSIFICATION
E56: EXPENDITURE ($0's)
E57: =dms_y1 -> 2009 | F57: =dms_y2 -> 2010 | G57: =dms_y3 -> 2011 | H57: =dms_y4 -> 2012 | I57: =dms_y5 -> 2013 | J57: =dms_y6 -> 2014 | K57: =dms_y7 -> 2015 | L57: =dms_y8 -> 2016 | M57: =dms_y9 -> 2017 | N57: =dms_y10 -> 2018
B58: RESIDENTIAL | C58: Simple connection LV
C59: Complex connection LV
C60: Complex connection HV
B61: COMMERCIAL/INDUSTRIAL | C61: Simple connection LV
C62: Complex connection HV (customer connected at LV, minor HV works)
C63: Complex connection HV (customer connected at LV, upstream asset works)
C64: Complex connection HV (customer connected at HV)
C65: Complex connection sub-transmission
B66: SUBDIVISION | C66: Complex connection LV
C67: Complex connection HV (no upstream asset works)
C68: Complex connection HV (with upstream asset works)
B69: EMBEDDED GENERATION | C69: Simple connection LV
C70: Complex connection HV (small capacity)
C71: Complex connection HV (large capacity)

Sheet 2.6 Non-network
B1: =INDEX(dms_Worksheet_List,MATCH(dms_Model,dms_Model_List)) -> RECAST HISTORICAL CATEGORY ANALYSIS - CALENDAR YEARS
B2: =INDEX(dms_TradingNameFull_List,MATCH(dms_TradingName,dms_TradingName_List)) -> CitiPower
B3: =dms_Header_Span -> 2009 to 2018
B4: 2.6 NON-NETWORK EXPENDITURE
B6: There are THREE tables on this worksheet - each has been 'grouped' (and sub-grouped) for easy navigation. See the Instructions sheet on how to group or ungroup tables.
B8: 2.6.1 - NON-NETWORK EXPENDITURE
E9: EXPENDITURE ($0's)
B10: SERVICE SUBCATEGORY | C10: ASSET CATEGORY | E10: =dms_y1 -> 2009 | F10: =dms_y2 -> 2010 | G10: =dms_y3 -> 2011 | H10: =dms_y4 -> 2012 | I10: =dms_y5 -> 2013 | J10: =dms_y6 -> 2014 | K10: =dms_y7 -> 2015 | L10: =dms_y8 -> 2016 | M10: =dms_y9 -> 2017 | N10: =dms_y10 -> 2018
B11: OPEX
B12: IT & COMMUNICATIONS | C12: Total
B13: MOTOR VEHICLES | C13: Car
C14: Light commercial vehicle
C15: Elevated work platform (LCV)
C16: Elevated work platform (HCV)
C17: Heavy commercial vehicle
B18: BUILDINGS AND PROPERTY | C18: Total buildings and property expenditure
B19: OTHER | C19: Other expenditure
B20: OTHER - DNSP nominated
B31: CAPEX
B32: IT & COMMUNICATIONS | C32: Total
B33: MOTOR VEHICLES | C33: Car
C34: Light commercial vehicle
C35: Elevated work platform (LCV)
C36: Elevated work platform (HCV)
C37: Heavy commercial vehicle
B38: BUILDINGS AND PROPERTY | C38: Total buildings and property expenditure
B39: OTHER | C39: Other expenditure
B40: OTHER - DNSP nominated

Sheet 2.7 Vegetation management
B1: =INDEX(dms_Worksheet_List,MATCH(dms_Model,dms_Model_List)) -> RECAST HISTORICAL CATEGORY ANALYSIS - CALENDAR YEARS
B2: =INDEX(dms_TradingNameFull_List,MATCH(dms_TradingName,dms_TradingName_List)) -> CitiPower
B3: =dms_Header_Span -> 2009 to 2018
B4: 2.7 VEGETATION MANAGEMENT
B6: There are THREE tables on this worksheet. Each has been 'grouped' (and sub-grouped) for easy navigation. See the Instructions sheet on how to group and ungroup data.
B8: 2.7.2 - EXPENDITURE METRICS BY ZONE
E9: EXPENDITURE ($0's)
B10: ZONES | C10: SERVICE SUBCATEGORY | E10: =dms_y1 -> 2009 | F10: =dms_y2 -> 2010 | G10: =dms_y3 -> 2011 | H10: =dms_y4 -> 2012 | I10: =dms_y5 -> 2013 | J10: =dms_y6 -> 2014 | K10: =dms_y7 -> 2015 | L10: =dms_y8 -> 2016 | M10: =dms_y9 -> 2017 | N10: =dms_y10 -> 2018
B11: Zone 1 | C11: Tree trimming (excluding hazard trees)
C12: Hazard tree cutting
C13: Ground clearance
C14: Vegetation corridor clearance
C15: Inspection
C16: Vegetation audit
C17: Contractor liaison expenditure
C18: Tree replacement program costs
C19: Other vegetation management costs not specified in sheet
B20: Zone 2 | C20: Tree trimming (excluding hazard trees)
C21: Hazard tree cutting
C22: Ground clearance
C23: Vegetation corridor clearance
C24: Inspection
C25: Vegetation audit
C26: Contractor liaison expenditure
C27: Tree replacement program costs
C28: Other vegetation management costs not specified in sheet
B29: Zone 3 | C29: Tree trimming (excluding hazard trees)
C30: Hazard tree cutting
C31: Ground clearance
C32: Vegetation corridor clearance
C33: Inspection
C34: Vegetation audit
C35: Contractor liaison expenditure
C36: Tree replacement program costs
C37: Other vegetation management costs not specified in sheet
B38: Zone 4 | C38: Tree trimming (excluding hazard trees)
C39: Hazard tree cutting
C40: Ground clearance
C41: Vegetation corridor clearance
C42: Inspection
C43: Vegetation audit
C44: Contractor liaison expenditure
C45: Tree replacement program costs
C46: Other vegetation management costs not specified in sheet
B47: Zone 5 | C47: Tree trimming (excluding hazard trees)
C48: Hazard tree cutting
C49: Ground clearance
C50: Vegetation corridor clearance
C51: Inspection
C52: Vegetation audit
C53: Contractor liaison expenditure
C54: Tree replacement program costs
C55: Other vegetation management costs not specified in sheet
B56: Zone 6 | C56: Tree trimming (excluding hazard trees)
C57: Hazard tree cutting
C58: Ground clearance
C59: Vegetation corridor clearance
C60: Inspection
C61: Vegetation audit
C62: Contractor liaison expenditure
C63: Tree replacement program costs
C64: Other vegetation management costs not specified in sheet
B65: Zone 7 | C65: Tree trimming (excluding hazard trees)
C66: Hazard tree cutting
C67: Ground clearance
C68: Vegetation corridor clearance
C69: Inspection
C70: Vegetation audit
C71: Contractor liaison expenditure
C72: Tree replacement program costs
C73: Other vegetation management costs not specified in sheet
B74: Zone 8 | C74: Tree trimming (excluding hazard trees)
C75: Hazard tree cutting
C76: Ground clearance
C77: Vegetation corridor clearance
C78: Inspection
C79: Vegetation audit
C80: Contractor liaison expenditure
C81: Tree replacement program costs
C82: Other vegetation management costs not specified in sheet
B83: Zone 9 | C83: Tree trimming (excluding hazard trees)
C84: Hazard tree cutting
C85: Ground clearance
C86: Vegetation corridor clearance
C87: Inspection
C88: Vegetation audit
C89: Contractor liaison expenditure
C90: Tree replacement program costs
C91: Other vegetation management costs not specified in sheet
B92: Zone 10 | C92: Tree trimming (excluding hazard trees)
C93: Hazard tree cutting
C94: Ground clearance
C95: Vegetation corridor clearance
C96: Inspection
C97: Vegetation audit
C98: Contractor liaison expenditure
C99: Tree replacement program costs
C100: Other vegetation management costs not specified in sheet
B101: Zone 11 | C101: Tree trimming (excluding hazard trees)
C102: Hazard tree cutting
C103: Ground clearance
C104: Vegetation corridor clearance
C105: Inspection
C106: Vegetation audit
C107: Contractor liaison expenditure
C108: Tree replacement program costs
C109: Other vegetation management costs not specified in sheet
B110: Zone 12 | C110: Tree trimming (excluding hazard trees)
C111: Hazard tree cutting
C112: Ground clearance
C113: Vegetation corridor clearance
C114: Inspection
C115: Vegetation audit
C116: Contractor liaison expenditure
C117: Tree replacement program costs
C118: Other vegetation management costs not specified in sheet
B119: Zone 13 | C119: Tree trimming (excluding hazard trees)
C120: Hazard tree cutting
C121: Ground clearance
C122: Vegetation corridor clearance
C123: Inspection
C124: Vegetation audit
C125: Contractor liaison expenditure
C126: Tree replacement program costs
C127: Other vegetation management costs not specified in sheet
B128: Zone 14 | C128: Tree trimming (excluding hazard trees)
C129: Hazard tree cutting
C130: Ground clearance
C131: Vegetation corridor clearance
C132: Inspection
C133: Vegetation audit
C134: Contractor liaison expenditure
C135: Tree replacement program costs
C136: Other vegetation management costs not specified in sheet
B137: Zone 15 | C137: Tree trimming (excluding hazard trees)
C138: Hazard tree cutting
C139: Ground clearance
C140: Vegetation corridor clearance
C141: Inspection
C142: Vegetation audit
C143: Contractor liaison expenditure
C144: Tree replacement program costs
C145: Other vegetation management costs not specified in sheet
B146: Zone 16 | C146: Tree trimming (excluding hazard trees)
C147: Hazard tree cutting
C148: Ground clearance
C149: Vegetation corridor clearance
C150: Inspection
C151: Vegetation audit
C152: Contractor liaison expenditure
C153: Tree replacement program costs
C154: Other vegetation management costs not specified in sheet
B155: Zone 17 | C155: Tree trimming (excluding hazard trees)
C156: Hazard tree cutting
C157: Ground clearance
C158: Vegetation corridor clearance
C159: Inspection
C160: Vegetation audit
C161: Contractor liaison expenditure
C162: Tree replacement program costs
C163: Other vegetation management costs not specified in sheet
B164: Zone 18 | C164: Tree trimming (excluding hazard trees)
C165: Hazard tree cutting
C166: Ground clearance
C167: Vegetation corridor clearance
C168: Inspection
C169: Vegetation audit
C170: Contractor liaison expenditure
C171: Tree replacement program costs
C172: Other vegetation management costs not specified in sheet
B174: 2.7.3 - DESCRIPTOR METRICS ACROSS ALL ZONES - UNPLANNED VEGETATION EVENTS

Sheet 2.8 Maintenance
B1: =INDEX(dms_Worksheet_List,MATCH(dms_Model,dms_Model_List)) -> RECAST HISTORICAL CATEGORY ANALYSIS - CALENDAR YEARS
B2: =INDEX(dms_TradingNameFull_List,MATCH(dms_TradingName,dms_TradingName_List)) -> CitiPower
B3: =dms_Header_Span -> 2009 to 2018
B4: 2.8 MAINTENANCE
B6: There are TWO tables on this worksheet. It has been 'grouped' (and sub-grouped) for easy navigation. See the Instructions sheet on how to group or ungroup data.
B8: 2.8.2 - COST METRICS FOR ROUTINE AND NON-ROUTINE MAINTENANCE
B9: ROUTINE MAINTENANCE
F10: EXPENDITURE
F11: ($0'S)
B12: MAINTENANCE ACTIVITY | C12: MAINTENANCE ASSET CATEGORY | D12: ASSET QUANTITY | E12: Units | F12: =dms_y1 -> 2009 | G12: =dms_y2 -> 2010 | H12: =dms_y3 -> 2011 | I12: =dms_y4 -> 2012 | J12: =dms_y5 -> 2013 | K12: =dms_y6 -> 2014 | L12: =dms_y7 -> 2015 | M12: =dms_y8 -> 2016 | N12: =dms_y9 -> 2017 | O12: =dms_y10 -> 2018
B13: Pole top, overhead line & service line maintenance | C13: Pole tops and overhead lines | D13: Number of poles | E13: Number
C14: Service lines | D14: Number of customers | E14: Number
B15: Pole inspection and treatment | C15: All poles | D15: Number of poles | E15: Number
B16: Overhead asset inspection | C16: All overhead assets | D16: Line patrolled (route KM) | E16: KM
B17: Network underground cable maintenance: by voltage | C17: LV - 11 to 22 KV | D17: Length (KM) | E17: KM
C18: 33 KV and above | D18: Length (KM) | E18: KM
B19: Network underground cable maintenance: by location | C19: Cbd | D19: Length (KM) | E19: KM
C20: Non-CBD | D20: Length (KM) | E20: KM
B21: Distribution substation equipment & property maintenance | C21: Distribution substation transformers | D21: Number of installed transformers | E21: Number
C22: Distribution substation switchgear (within-substations and stand-alone switchgear) | D22: Number of switches | E22: Number
C23: Distribution substation - other equipment | D23: Earth mat | E23: Number
C24: Distribution substation - property | D24: Number of distribution substation properties maintained | E24: Number
B25: Zone substation equipment maintenance | C25: Transformers - zone substation | D25: Number | E25: Number
C26: Transformers - distribution | D26: Number of distribution transformers within zone substation | E26: Number
C27: Transformers - HV | D27: Number of HV transformers | E27: Number
C28: Zone substation - other equipment
B29: Zone substation property maintenance | C29: All zone substation properties | D29: Number of zone substation properties maintained | E29: Number
B30: Public lighting maintenance | C30: Minor roads | D30: Number of public lights maintained | E30: Number
C31: Major roads | D31: Number of public lights maintained | E31: Number
B32: SCADA & network control maintenance | C32: SCADA & network control | D32: Number of systems | E32: Number
B33: Protection systems maintenance | C33: Protection systems | D33: Number of systems | E33: Number
B34: Subtransmission asset maintenance | C34: Subtransmission asset maintenance - for DNSPs with dual function assets
B35: Various assets | C35: includes rates, electricity, communications equip, metering | D35: Various | E35: Number
B36: Ground clearance - access tracks | C36: Access tracks | D36: Number | E36: Number
B37: Other
B48: NON-ROUTINE MAINTENANCE
F49: EXPENDITURE
F50: ($0'S)
B51: MAINTENANCE ACTIVITY | C51: MAINTENANCE ASSET CATEGORY | D51: ASSET QUANTITY | E51: Units | F51: =dms_y1 -> 2009 | G51: =dms_y2 -> 2010 | H51: =dms_y3 -> 2011 | I51: =dms_y4 -> 2012 | J51: =dms_y5 -> 2013 | K51: =dms_y6 -> 2014 | L51: =dms_y7 -> 2015 | M51: =dms_y8 -> 2016 | N51: =dms_y9 -> 2017 | O51: =dms_y10 -> 2018
B52: Pole top, overhead line & service line maintenance | C52: Pole tops and overhead lines | D52: Number of poles | E52: Number | F52: 1603544.38 | G52: 1402416.39 | H52: 2755727.63 | I52: 2416929.097 | J52: 3390648.394 | K52: 2792195 | L52: 1479037.512 | M52: 2450794 | N52: 2715700 | O52: 1705084.982
C53: Service lines | D53: Number of customers | E53: Number | F53: 479900 | G53: 339900 | H53: 523900 | I53: 499300 | J53: 742794.3827 | K53: 561733 | L53: 353769.7832 | M53: 871917 | N53: 645000 | O53: 745789.3444
B54: Pole inspection and treatment | C54: All poles | D54: Number of poles | E54: Number | F54: 0 | G54: 0 | H54: 0 | I54: 0 | J54: 0 | K54: 0 | L54: 0 | M54: - | N54: 0 | O54: 0
B55: Overhead asset inspection | C55: All overhead assets | D55: Line patrolled (route KM) | E55: KM | F55: 43528.04187 | G55: 27785.83928 | H55: 56535.8934 | I55: 479198.7772 | J55: 252001.3667 | K55: 222745.1376 | L55: 131544 | M55: 154406 | N55: 36647 | O55: 45559.832
B56: Network underground cable maintenance: by voltage | C56: LV - 11 to 22 KV | D56: Length (KM) | E56: KM | F56: 2195171.156 | G56: 2011276.601 | H56: 1504548.252 | I56: 904402.7183 | J56: 1837921.583 | K56: 2199238.838 | L56: 1202665.8 | M56: 1822813.52 | N56: 3750701.23 | O56: 3927923.773
C57: 33 KV and above | D57: Length (KM) | E57: KM | F57: 16783.265 | G57: 24630 | H57: 25640 | I57: 37950 | J57: 16400 | K57: 22189.40854 | L57: 11586 | M57: 37867.74 | N57: 518696 | O57: 805242.362
B58: Network underground cable maintenance: by location | C58: Cbd | D58: Length (KM) | E58: KM | F58: 1105977.211 | G58: 1029698.914 | H58: 777369.6194 | I58: 489086.8641 | J58: 934389.0248 | K58: 1121808.828 | L58: 610380.9 | M58: 919418.13 | N58: 2085482.615 | O58: 2304013.496
C59: Non-CBD | D59: Length (KM) | E59: KM | F59: 1105977.211 | G59: 1005638.3 | H59: 752274.126 | I59: 452201.3592 | J59: 919830.7916 | K59: 1099619.419 | L59: 603870.9 | M59: 941263.13 | N59: 2183914.615 | O59: 2429152.638
B60: Distribution substation equipment & property maintenance | C60: Distribution substation transformers | D60: Number of installed transformers | E60: Number | F60: 8410 | G60: 560 | H60: 0 | I60: 33340 | J60: 48700 | K60: 6261.37777 | L60: 17635 | M60: 90475 | N60: 25891 | O60: 38165.16849
C61: Distribution substation switchgear (within-substations and stand-alone switchgear) | D61: Number of switches | E61: Number | F61: 98752.46215 | G61: 508790.6465 | H61: 375731.0357 | I61: 385381.1505 | J61: 434165.1821 | K61: 252894.2831 | L61: 385238 | M61: 166118 | N61: 228481 | O61: 178016.1512
C62: Distribution substation - other equipment | D62: Earth mat | E62: Number | F62: 0 | G62: 0 | H62: 0 | I62: 0 | J62: 0 | K62: 0 | L62: 0 | M62: 212634 | N62: 112091 | O62: 354294.3761
C63: Distribution substation - property | D63: Number of distribution substation properties maintained | E63: Number | F63: 3090 | G63: 44190 | H63: 29800 | I63: 49370 | J63: 28530 | K63: 21307.74167 | L63: 58719 | M63: 200557 | N63: 113502 | O63: 0
B64: Zone substation equipment maintenance | C64: Transformers - zone substation | D64: Number | E64: Number | F64: 46630.00121 | G64: 122516.5009 | H64: 136411.9715 | I64: 117149.4628 | J64: 134125.1498 | K64: 490621.8594 | L64: 335727 | M64: 399030 | N64: 248603 | O64: 206764.1711
C65: Transformers - distribution | D65: Number of distribution transformers within zone substation | E65: Number | F65: 0 | G65: 0 | H65: 0 | I65: 0 | J65: 0 | K65: 0 | L65: 0 | M65: - | N65: 0 | O65: 0
C66: Transformers - HV | D66: Number of HV transformers | E66: Number | F66: 0 | G66: 0 | H66: 0 | I66: 0 | J66: 0 | K66: 0 | L66: 0 | M66: - | N66: 0 | O66: 0
C67: Zone substation - other equipment | D67: =IF(ISBLANK(D28),"",D28) ->  | E67: =IF(ISBLANK(E28),"",E28) ->  | F67: 12340 | G67: 77930 | H67: 104540 | I67: 293480 | J67: 182720 | K67: 221704.5181 | L67: 210527 | M67: 419154 | N67: 160256 | O67: 333801.5145
B68: Zone substation property maintenance | C68: All zone substation properties | D68: Number of zone substation properties maintained | E68: Number | F68: 225565.5664 | G68: 85291.60286 | H68: 27738.15449 | I68: 25348.45765 | J68: 67597.47178 | K68: 41917.20598 | L68: 19316 | M68: 162339 | N68: 2213 | O68: 0
B69: Public lighting maintenance | C69: Minor roads | D69: Number of public lights maintained | E69: Number | F69: 1265490.583 | G69: 2121018.315 | H69: 1147313.536 | I69: 1901136.63 | J69: 1825909.842 | K69: 1912138.356 | L69: 1354720 | M69: 1208667 | N69: 1402011 | O69: 1115434.458
C70: Major roads | D70: Number of public lights maintained | E70: Number | F70: 143800 | G70: 665900 | H70: 407300 | I70: 575700 | J70: 635300 | K70: 465547.5439 | L70: 418664 | M70: 375187 | N70: 434880 | O70: 469315.5421
B71: SCADA & network control maintenance | C71: SCADA & network control | D71: Number of systems | E71: Number | F71: 1487.287944 | G71: 12377.10008 | H71: 657768.1491 | I71: 68425.28446 | J71: 57587.44511 | K71: 234957.9895 | L71: 48410 | M71: 96667 | N71: 90594 | O71: 130308.6898
B72: Protection systems maintenance | C72: Protection systems | D72: Number of systems | E72: Number | F72: 10497.93503 | G72: 119189.4223 | H72: 201546.9574 | I72: 150875.8083 | J72: 449070.8493 | K72: 430504.4911 | L72: 326290 | M72: 176997 | N72: 220427 | O72: 314161.7817
B73: Subtransmission asset maintenance | C73: Subtransmission asset maintenance - for DNSPs with dual function assets | D73: =IF(ISBLANK(D34),"",D34) ->  | E73: =IF(ISBLANK(E34),"",E34) ->  | F73: 0 | G73: 0 | H73: 0 | I73: 0 | J73: 0 | K73: 0 | L73: 0 | M73: - | N73: 0 | O73: 0
B74: Various assets | C74: includes rates, electricity, communications equip, metering | D74: Various | E74: Number | F74: 0 | G74: 0 | H74: 0 | I74: 0 | J74: 0 | K74: 0 | L74: 0 | M74: - | N74: 0 | O74: 0
B75: Ground clearance - access tracks | C75: Access tracks | D75: Number | E75: Number | F75: 0 | G75: 0 | H75: 0 | I75: 0 | J75: 0 | K75: 0 | L75: 0 | M75: - | N75: 0 | O75: 0
B76: Other | C76: =IF(ISBLANK(C37),"",C37) ->  | D76: =IF(ISBLANK(D37),"",D37) ->  | F76: 3526533.125 | G76: 2577259.258 | H76: 3523356.463 | I76: 3411662.886 | J76: 4195211.985 | K76: 4295711.679 | L76: 3872549 | M76: 3499899 | N76: 3541044 | O76: 2515059.931
C77: =IF(ISBLANK(C38),"",C38) ->  | F77: 100000 | G77: 100000 | H77: 100000 | I77: 100000 | J77: 100000 | K77: 100000 | L77: 100000 | M77: 100000 | N77: 100000 | O77: 100000
C78: =IF(ISBLANK(C39),"",C39) ->  | F78: 20000 | G78: 20000 | H78: 20000 | I78: 20000 | J78: 20000 | K78: 20000 | L78: 20000 | M78: 20000 | N78: 20000 | O78: 20000
C79: =IF(ISBLANK(C40),"",C40) ->  | F79: 52898 | G79: 52898 | H79: 52898 | I79: 52898 | J79: 52898 | K79: 52898 | L79: 52898 | M79: 52898 | N79: 52898 | O79: 52898
C80: =IF(ISBLANK(C41),"",C41) -> 
C81: =IF(ISBLANK(C42),"",C42) -> 
C82: =IF(ISBLANK(C43),"",C43) -> 
C83: =IF(ISBLANK(C44),"",C44) -> 
C84: =IF(ISBLANK(C45),"",C45) -> 
C85: =IF(ISBLANK(C46),"",C46) -> 

Sheet 2.9 Emergency Response
B1: =INDEX(dms_Worksheet_List,MATCH(dms_Model,dms_Model_List)) -> RECAST HISTORICAL CATEGORY ANALYSIS - CALENDAR YEARS
B2: =INDEX(dms_TradingNameFull_List,MATCH(dms_TradingName,dms_TradingName_List)) -> CitiPower
B3: =dms_Header_Span -> 2009 to 2018
B4: 2.9 EMERGENCY RESPONSE
B6: There is ONE table on this worksheet. It has been 'sub-grouped' for easy navigation. See the Instructions sheet on how to group or ungroup data.
B8: 2.9.1 - EMERGENCY RESPONSE EXPENDITURE (OPEX)
D9: EXPENDITURE ($0's)
D10: =dms_y1 -> 2009 | E10: =dms_y2 -> 2010 | F10: =dms_y3 -> 2011 | G10: =dms_y4 -> 2012 | H10: =dms_y5 -> 2013 | I10: =dms_y6 -> 2014 | J10: =dms_y7 -> 2015 | K10: =dms_y8 -> 2016 | L10: =dms_y9 -> 2017 | M10: =dms_y10 -> 2018
B11: (A) TOTAL EMERGENCY RESPONSE EXPENDITURE | C11: Total Expenditure
B12: (B) MAJOR EVENTS O&M EXPENDITURE
B55: (C) MAJOR EVENT DAYS O&M EXPENDITURE

Sheet 2.11 Labour
B1: =INDEX(dms_Worksheet_List,MATCH(dms_Model,dms_Model_List)) -> RECAST HISTORICAL CATEGORY ANALYSIS - CALENDAR YEARS
B2: =INDEX(dms_TradingNameFull_List,MATCH(dms_TradingName,dms_TradingName_List)) -> CitiPower
B3: =dms_Header_Span -> 2009 to 2018
B4: 2.11 LABOUR
B6: There are TWO tables on this worksheet. Each table has been 'grouped' (and sub-grouped) for easy navigation. See the Instructions sheet on how to group or ungroup data.
B8: 2.11.1 - COST METRICS PER ANNUM
B9: TOTAL LABOUR EXPENDITURE
D10: EXPENDITURE ($0's)
B11: INTERNAL LABOUR | D11: =dms_y1 -> 2009 | E11: =dms_y2 -> 2010 | F11: =dms_y3 -> 2011 | G11: =dms_y4 -> 2012 | H11: =dms_y5 -> 2013 | I11: =dms_y6 -> 2014 | J11: =dms_y7 -> 2015 | K11: =dms_y8 -> 2016 | L11: =dms_y9 -> 2017 | M11: =dms_y10 -> 2018
B12: CORPORATE OVERHEADS | C12: Executive manager
C13: Senior manager
C14: Manager
C15: Professional
C16: Semi professional
C17: Support staff
C18: Intern, junior staff, apprentice
B19: NETWORK OVERHEADS | C19: Executive manager
C20: Senior manager
C21: Manager
C22: Professional
C23: Semi professional
C24: Support staff
C25: Intern, junior staff, apprentice
B26: TOTAL DIRECT NETWORK LABOUR | C26: Skilled electrical worker
C27: Skilled non electical worker
C28: Apprentice
C29: Unskilled worker

Sheet 2.12 Input tables
B1: =INDEX(dms_Worksheet_List,MATCH(dms_Model,dms_Model_List)) -> RECAST HISTORICAL CATEGORY ANALYSIS - CALENDAR YEARS
B2: =INDEX(dms_TradingNameFull_List,MATCH(dms_TradingName,dms_TradingName_List)) -> CitiPower
B3: =dms_Header_Span -> 2009 to 2018
B4: 2.12 INPUT TABLES
B6: There are SIX tables on this worksheet. Each table has been 'grouped' for easy navigation. See the Instructions sheet on how to group or ungroup data.
B8: 2.12 INPUT TABLES
B9: 2.12.1 - DIRECT MATERIALS EXPENDITURE
D10: EXPENDITURE
D11: Actual ($0's)
D12: =dms_y1 -> 2009 | E12: =dms_y2 -> 2010 | F12: =dms_y3 -> 2011 | G12: =dms_y4 -> 2012 | H12: =dms_y5 -> 2013 | I12: =dms_y6 -> 2014 | J12: =dms_y7 -> 2015 | K12: =dms_y8 -> 2016 | L12: =dms_y9 -> 2017 | M12: =dms_y10 -> 2018
B13: VEGETATION MANAGEMENT | C13: Zone 1
C14: Zone 2
C15: Zone 3
C16: Zone 4
C17: Zone 5
C18: Zone 6
C19: Zone 7
C20: Zone 8
C21: Zone 9
C22: Zone 10
C23: Zone 11
C24: Zone 12
C25: Zone 13
C26: Zone 14
C27: Zone 15
C28: Zone 16
C29: Zone 17
C30: Zone 18
B31: ROUTINE MAINTENANCE | C31: Pole top, overhead line & service line maintenance
C32: Pole inspection and treatment
C33: Overhead asset inspection
C34: Network underground cable maintenance
C35: Distribution substation equipment & property maintenance
C36: Zone substation equipment maintenance
C37: Zone substation property maintenance
C38: Public lighting maintenance
C39: Scada & network control maintenance
C40: Protection systems maintenance
C41: Subtransmission asset maintenance - for dnsps with dual function assets
C42: Other
B43: NON-ROUTINE MAINTENANCE | C43: Pole top, overhead line & service line maintenance
C44: Pole inspection and treatment
C45: Overhead asset inspection
C46: Network underground cable maintenance
C47: Distribution substation equipment & property maintenance
C48: Zone substation equipment maintenance
C49: Zone substation property maintenance
C50: Public lighting maintenance
C51: SCADA & network control maintenance
C52: Protection systems maintenance
C53: Subtransmission asset maintenance - for DNSP with dual function assets
C54: Other
B55: OVERHEADS | C55: Network overheads
C56: Corporate overheads
B57: AUGMENTATION | C57: Subtransmission substations, switching stations, zone substations
C58: Subtransmission lines
C59: HV feeders
C60: Distribution substations
C61: LV feeders
C62: Other assets
B63: CONNECTIONS | C63: Simple and complex customer connections
B64: EMERGENCY RESPONSE | C64: Major storms
C65: Major event days
B66: PUBLIC LIGHTING | C66: All public lighting services
B67: METERING | C67: All metering services
B68: FEE-BASED SERVICES | C68: All fee-based services
B69: QUOTED SERVICES | C69: All quoted services
B70: REPLACEMENT | C70: Poles
C71: Pole top structures
C72: Overhead conductors
C73: Underground cables
C74: Service lines
C75: Transformers
C76: Switchgear
C77: Public lighting
C78: SCADA network control and protection systems
C79: Other
B80: NON-NETWORK EXPENDITURE | C80: IT and communications
C81: Motor vehicles
C82: Buildings and property
C83: Other
B86: 2.12.2 - DIRECT LABOUR EXPENDITURE
D87: EXPENDITURE
D88: Actual ($0's)
D89: =dms_y1 -> 2009 | E89: =dms_y2 -> 2010 | F89: =dms_y3 -> 2011 | G89: =dms_y4 -> 2012 | H89: =dms_y5 -> 2013 | I89: =dms_y6 -> 2014 | J89: =dms_y7 -> 2015 | K89: =dms_y8 -> 2016 | L89: =dms_y9 -> 2017 | M89: =dms_y10 -> 2018
B90: VEGETATION MANAGEMENT | C90: =IF(ISBLANK(C13)," ",C13) -> Zone 1 | D90: 36429.78524 | E90: 38734.81863 | F90: 52420.0034 | G90: 5120.019697 | H90: 1267.730143 | I90: 0 | J90: 1690.086432 | K90: 2664 | L90: 5216.386497 | M90: 4990.36044
C91: =IF(ISBLANK(C14)," ",C14) -> Zone 2 | D91: 0 | E91: 0 | F91: 0 | G91: 0 | H91: 0 | I91: 0 | J91: 0 | K91: - | L91: 0 | M91: 0
C92: Zone 3 | D92: 0 | E92: 0 | F92: 0 | G92: 0 | H92: 0 | I92: 0 | J92: 0 | K92: - | L92: 0 | M92: 0
C93: Zone 4 | D93: 0 | E93: 0 | F93: 0 | G93: 0 | H93: 0 | I93: 0 | J93: 0 | K93: - | L93: 0 | M93: 0
C94: Zone 5 | D94: 0 | E94: 0 | F94: 0 | G94: 0 | H94: 0 | I94: 0 | J94: 0 | K94: - | L94: 0 | M94: 0
C95: Zone 6 | D95: 0 | E95: 0 | F95: 0 | G95: 0 | H95: 0 | I95: 0 | J95: 0 | K95: - | L95: 0 | M95: 0
C96: Zone 7 | D96: 0 | E96: 0 | F96: 0 | G96: 0 | H96: 0 | I96: 0 | J96: 0 | K96: - | L96: 0 | M96: 0
C97: Zone 8 | D97: 0 | E97: 0 | F97: 0 | G97: 0 | H97: 0 | I97: 0 | J97: 0 | K97: - | L97: 0 | M97: 0
C98: Zone 9 | D98: 0 | E98: 0 | F98: 0 | G98: 0 | H98: 0 | I98: 0 | J98: 0 | K98: - | L98: 0 | M98: 0
C99: Zone 10 | D99: 0 | E99: 0 | F99: 0 | G99: 0 | H99: 0 | I99: 0 | J99: 0 | K99: - | L99: 0 | M99: 0
C100: Zone 11 | D100: 0 | E100: 0 | F100: 0 | G100: 0 | H100: 0 | I100: 0 | J100: 0 | K100: - | L100: 0 | M100: 0
C101: Zone 12 | D101: 0 | E101: 0 | F101: 0 | G101: 0 | H101: 0 | I101: 0 | J101: 0 | K101: - | L101: 0 | M101: 0
C102: Zone 13 | D102: 0 | E102: 0 | F102: 0 | G102: 0 | H102: 0 | I102: 0 | J102: 0 | K102: - | L102: 0 | M102: 0
C103: Zone 14 | D103: 0 | E103: 0 | F103: 0 | G103: 0 | H103: 0 | I103: 0 | J103: 0 | K103: - | L103: 0 | M103: 0
C104: Zone 15 | D104: 0 | E104: 0 | F104: 0 | G104: 0 | H104: 0 | I104: 0 | J104: 0 | K104: - | L104: 0 | M104: 0
C105: Zone 16 | D105: 0 | E105: 0 | F105: 0 | G105: 0 | H105: 0 | I105: 0 | J105: 0 | K105: - | L105: 0 | M105: 0
C106: Zone 17 | D106: 0 | E106: 0 | F106: 0 | G106: 0 | H106: 0 | I106: 0 | J106: 0 | K106: - | L106: 0 | M106: 0
C107: Zone 18 | D107: 0 | E107: 0 | F107: 0 | G107: 0 | H107: 0 | I107: 0 | J107: 0 | K107: - | L107: 0 | M107: 0
B108: ROUTINE MAINTENANCE | C108: Pole top, overhead line & service line maintenance | D108: 0 | E108: 0 | F108: 0 | G108: 0 | H108: 0 | I108: 0 | J108: 0 | K108: - | L108: 0 | M108: 0
C109: Pole inspection and treatment | D109: 414154.2436 | E109: 83622.1978 | F109: 140995.8654 | G109: 116620.0259 | H109: 14296.81314 | I109: 163805.1447 | J109: 0 | K109: 593670 | L109: 537287.1218 | M109: 910680.9312
C110: Overhead asset inspection | D110: 400934.8195 | E110: 61469.88026 | F110: 11166.96494 | G110: 1644.7 | H110: 4403.126479 | I110: 562.6241026 | J110: 5057.82 | K110: 168866 | L110: 140334.3776 | M110: 83992.54494
C111: Network underground cable maintenance | D111: 149799.7737 | E111: 216015.8878 | F111: 172422.9969 | G111: 288328.3725 | H111: 76982.34129 | I111: 159657.4742 | J111: 70654.77132 | K111: 18832 | L111: 0 | M111: 75728.36685
C112: Distribution substation equipment & property maintenance | D112: 1831489.87 | E112: 1108415.015 | F112: 1266028.023 | G112: 1227865.534 | H112: 1129063.613 | I112: 1332211.971 | J112: 1353643.763 | K112: 1001678 | L112: 1206328.045 | M112: 1308439.534
C113: Zone substation equipment maintenance | D113: 889430.4776 | E113: 940597.0505 | F113: 692986.7418 | G113: 1276999.413 | H113: 1025894.919 | I113: 662940.4786 | J113: 687401.5047 | K113: 997476 | L113: 1390551.407 | M113: 1080993.291
C114: Zone substation property maintenance | D114: 281717.3472 | E114: 649093.9528 | F114: 1313399.436 | G114: 1268201.085 | H114: 1361291.316 | I114: 1527739.06 | J114: 1560873.732 | K114: 0 | L114: 3113533.622 | M114: 2885510.806
C115: Public lighting maintenance | D115: 581388.7353 | E115: 632075.1617 | F115: 162350.6526 | G115: 353123.4036 | H115: 198757.7395 | I115: 99032.80779 | J115: -4279.541192 | K115: 385337 | L115: 196821.8515 | M115: 363512.5082
C116: Scada & network control maintenance | D116: 59861.756 | E116: 385480.4718 | F116: 6358.428789 | G116: 52399.23719 | H116: 263504.5949 | I116: 17884.28749 | J116: 35026.41152 | K116: 1277 | L116: 0 | M116: 93256.44104
C117: Protection systems maintenance | D117: 631537.8912 | E117: 724358.183 | F117: 383033.8374 | G117: 166498.4018 | H117: 210127.9406 | I117: 337041.8034 | J117: 244536.0414 | K117: 97500 | L117: 104746.3331 | M117: 362109.5787
C118: Subtransmission asset maintenance - for dnsps with dual function assets | D118: 0 | E118: 0 | F118: 0 | G118: 0 | H118: 0 | I118: 0 | J118: 0 | K118: - | L118: 0 | M118: 0
C119: Other | D119: 5769.91 | E119: 17255.22853 | F119: 48306.47168 | G119: 52981.74811 | H119: 156175.995 | I119: 186385.3401 | J119: 0 | K119: 33328 | L119: 12446.54707 | M119: 8715.488933
B120: NON-ROUTINE MAINTENANCE | C120: Pole top, overhead line & service line maintenance | D120: 860521.6014 | E120: 814937.9599 | F120: 1515699.778 | G120: 1472020.08 | H120: 3189743.671 | I120: 2173726.429 | J120: 1467395.229 | K120: 2435348 | L120: 2042536.781 | M120: 1304063.985
C121: Pole inspection and treatment | D121: 0 | E121: 0 | F121: 0 | G121: 0 | H121: 0 | I121: 0 | J121: 0 | K121: 0 | L121: 0 | M121: 0
C122: Overhead asset inspection | D122: 43528.04187 | E122: 27785.83928 | F122: 56535.8934 | G122: 479198.7772 | H122: 252001.3667 | I122: 222745.1376 | J122: 131544 | K122: ='2.8 Maintenance'!M55 -> 154406 | L122: 36647 | M122: 45559.832
C123: Network underground cable maintenance | D123: 2211954.421 | E123: 2031808.286 | F123: 1523132.804 | G123: 929998.9954 | H123: 1849015.991 | I123: 2213482.771 | J123: 1211291.332 | K123: 1834994.26 | L123: 4020314.705 | M123: 4353924.128
C124: Distribution substation equipment & property maintenance | D124: 99840.3794 | E124: 472353.8022 | F124: 300317.373 | G124: 324826.5359 | H124: 328597.4995 | I124: 180036.4328 | J124: 251679.8155 | K124: 487453 | L124: 291708.9196 | M124: 303539.3537
C125: Zone substation equipment maintenance | D125: 53400.95976 | E125: 171047.3611 | F125: 178437.7933 | G125: 284951.6505 | H125: 203589.1764 | I125: 457260.0161 | J125: 297841.1799 | K125: 599680 | L125: 248492.7384 | M125: 287624.8016
C126: Zone substation property maintenance | D126: 204263.4812 | E126: 72782.03175 | F126: 20541.58364 | G126: 17590.2742 | H126: 43434.82492 | I126: 26907.69693 | J126: 10531.91415 | K126: 0 | L126: 1344.997738 | M126: 0
C127: Public lighting maintenance | D127: 966902.5238 | E127: 2049244.146 | F127: 1360978.34 | G127: 1886650.903 | H127: 1905581.117 | I127: 1570345.693 | J127: -45412.64183 | K127: 875811 | L127: 1116409.507 | M127: 843215.5731
C128: SCADA & network control maintenance | D128: 1346.830626 | E128: 10561.77233 | F128: 487112.4161 | G128: 47482.94877 | H128: 37002.872 | I128: 150825.3765 | J128: 26395.21453 | K128: 110805 | L128: 55060.42704 | M128: 69334.79511
C129: Protection systems maintenance | D129: 9506.525264 | E129: 101708.117 | F129: 149256.2775 | G129: 104698.5531 | H129: 288550.9354 | I129: 276351.5388 | J129: 177907.3445 | K129: 129729 | L129: 133969.1895 | M129: 167159.5563
C130: Subtransmission asset maintenance - for DNSP with dual function assets | D130: 0 | E130: 0 | F130: 0 | G130: 0 | H130: 0 | I130: 0 | J130: 0 | K130: - | L130: 0 | M130: 0
C131: Other | D131: 172898 | E131: 172898 | F131: 172898 | G131: 172898 | H131: 172898 | I131: 4079185.344 | J131: 2795218.057 | K131: 2908626 | L131: 2325042.676 | M131: 1511113.934
B132: OVERHEADS | C132: Network overheads | D132: 17285690.25 | E132: 18511252.07 | F132: 18964324.84 | G132: 19900096.86 | H132: 20255200.86 | I132: 20942255.62 | J132: 21128756.02 | K132: 24307587 | L132: 26111209.3 | M132: 25165948.82
C133: Corporate overheads | D133: 8173349.55 | E133: 9422734.841 | F133: 11005253.61 | G133: 11901211.04 | H133: 12539191.81 | I133: 13738781.03 | J133: 15651527.63 | K133: 19176363 | L133: 27366599.6 | M133: 22070401.88
B134: AUGMENTATION | C134: Subtransmission substations, switching stations, zone substations | D134: 1408433.408 | E134: 2745394.743 | F134: 4045893.317 | G134: 1213371.346 | H134: 448587.4161 | I134: 1658194.697 | J134: 2196707.926 | K134: 1439623 | L134: 2282792.338 | M134: 1006102.5
C135: Subtransmission lines | D135: 138488.9775 | E135: 798366.4026 | F135: 3318513.147 | G135: 2142016.793 | H135: 3401927.41 | I135: 4893648.062 | J135: 2550031.86 | K135: 2577569 | L135: 1524548.461 | M135: 3096485.843
C136: HV feeders | D136: 404814.7615 | E136: 186592.2358 | F136: 317805.5609 | G136: 305504.3921 | H136: 1721205.17 | I136: 711679.7163 | J136: 703815.1394 | K136: 158712 | L136: 1439982.296 | M136: 2093765.563
C137: Distribution substations | D137: 17923.55219 | E137: 105480.6239 | F137: 48684.12887 | G137: 82971.13307 | H137: 104057.6991 | I137: 259658.0948 | J137: 181218.9042 | K137: 94360 | L137: 184749.6982 | M137: 351223.5647
C138: LV feeders | D138: 7669.3944 | E138: 64952.08571 | F138: 47412.52929 | G138: 80803.97799 | H138: 101339.7758 | I138: 141097.1828 | J138: 47627.09095 | K138: 64411 | L138: 147434.3027 | M138: 208236.2935
C139: Other assets | D139: 281929.9404 | E139: 135570.1631 | F139: 134008.9912 | G139: 612831.1747 | H139: 458201.853 | I139: 418871.1239 | J139: 331273.7162 | K139: 527919 | L139: 587202.7479 | M139: 398070.8546
B140: CONNECTIONS | C140: Simple and complex customer connections | D140: 7453892.16 | E140: 7260433.669 | F140: 8941579.484 | G140: 9023381.329 | H140: 12677309.65 | I140: 10409961.93 | J140: 13587918.87 | K140: 10713667 | L140: 11502428.6 | M140: 12442630.62
B141: EMERGENCY RESPONSE | C141: Major storms | D141: 0 | E141: 0 | F141: 0 | G141: 0 | H141: 0 | I141: 0 | J141: 0 | K141: - | L141: 0 | M141: 0
C142: Major event days | D142: 1928283.352 | E142: 2803291.635 | F142: 3295009.768 | G142: 3523346.685 | H142: 3635360.861 | I142: 4338888.509 | J142: 3109029.219 | K142: 4173325 | L142: 4820036.265 | M142: 5695804.916
B143: PUBLIC LIGHTING | C143: All public lighting services | D143: 3242469.814 | E143: 4297936.939 | F143: 2532348.285 | G143: 3515238.371 | H143: 4311923.389 | I143: 3758325.352 | J143: 1559199.868 | K143: 2631742 | L143: 5324455.326 | M143: 6983568.992
B144: METERING | C144: All metering services | D144: 24105418.43 | E144: 29573058.34 | F144: 18551272.85 | G144: 21274237.67 | H144: 16950847.18 | I144: 8640077.994 | J144: 6887697.08 | K144: 4452559 | L144: 4945297.417 | M144: 5460477.948
B145: FEE-BASED SERVICES | C145: All fee-based services | D145: 1388333.366 | E145: 1219327.802 | F145: 3041587.922 | G145: 3380076.343 | H145: 2335663.676 | I145: 1667027.799 | J145: 2412472.043 | K145: 1950799 | L145: 2620128.326 | M145: 3289937.264
B146: QUOTED SERVICES | C146: All quoted services | D146: 4758318.309 | E146: 7999961.263 | F146: 8224702.895 | G146: 6806498.786 | H146: 10687932.06 | I146: 9289022.247 | J146: 11832853.62 | K146: 11869912 | L146: 24420120.37 | M146: 34366342.86
B147: REPLACEMENT | C147: Poles | D147: 346884.2213 | E147: 400879.1579 | F147: 521625.7688 | G147: 735026.9162 | H147: 1730987.668 | I147: 1775851.809 | J147: 1519733.127 | K147: 824990 | L147: 1063803.041 | M147: 328557.3516
C148: Pole top structures | D148: 314644.4203 | E148: 367686.8959 | F148: 775057.2546 | G148: 1152315.063 | H148: 2722578.472 | I148: 2197421.442 | J148: 1427030.665 | K148: 558824 | L148: 895290.8999 | M148: 401021.9913
C149: Overhead conductors | D149: -13835.46197 | E149: -7168.371877 | F149: 72176.86052 | G149: -34393.11516 | H149: -15581.61938 | I149: 385302.9588 | J149: -1284.55426 | K149: -29276.06 | L149: 20129.23632 | M149: -5253.256421
C150: Underground cables | D150: 951717.2296 | E150: 798771.172 | F150: 1323850.118 | G150: 1874662.746 | H150: 2684621.518 | I150: 662298.101 | J150: 487861.4916 | K150: -312153.375 | L150: 391082.0156 | M150: 168939.3493
C151: Service lines | D151: 271980.5293 | E151: 327669.7744 | F151: 410773.65 | G151: 495277.8106 | H151: 1142194.351 | I151: 910465.9281 | J151: 860512.5813 | K151: 298846 | L151: 644644.5271 | M151: 368144.2539
C152: Transformers | D152: 1187686.196 | E152: 1189091.679 | F152: 1148135.913 | G152: 399664.2511 | H152: 2033454.655 | I152: 622612.7635 | J152: 319315.7719 | K152: 94333 | L152: 333549.6161 | M152: 330835.3845
C153: Switchgear | D153: 499601.5492 | E153: 1274464.246 | F153: 596721.1795 | G153: 366264.4784 | H153: 1402780.568 | I153: 1819829.261 | J153: 1712983.34 | K153: 491573 | L153: 893381.9634 | M153: 542482.4401
C154: Public lighting | D154: 133559.7016 | E154: 152759.7375 | F154: -32564.17971 | G154: 80263.31515 | H154: 432187.6482 | I154: 415327.3286 | J154: 283267.7661 | K154: 10076 | L154: 436407.7149 | M154: 445899.935
C155: SCADA network control and protection systems | D155: 243550.144 | E155: 614025.5134 | F155: 834922.1518 | G155: 436564.2943 | H155: 1369276.601 | I155: 1476567.099 | J155: 957381.2342 | K155: 683678 | L155: 1081394.58 | M155: 984324.9703
C156: Other | D156: 1774593.214 | E156: 2626435.072 | F156: 197725.1808 | G156: 917703.4891 | H156: 1521346.985 | I156: 2593087.524 | J156: 2706532.274 | K156: 808321 | L156: 1325527.244 | M156: 1568853.519
B157: NON-NETWORK EXPENDITURE | C157: IT and communications | D157: 5151958.277 | E157: 7562411.81 | F157: 7158525.156 | G157: 9491265.621 | H157: 9334909.8 | I157: 13953622.33 | J157: 24352272.97 | K157: 27587523 | L157: 22764291.99 | M157: 22809695.61
C158: Motor vehicles | D158: 554.2091018 | E158: -3823.515331 | F158: -732.0307929 | G158: 299.9643263 | H158: -297.055003 | I158: 0 | J158: 0 | K158: 0 | L158: 1278.017779 | M158: 0
C159: Buildings and property | D159: 947.9536199 | E159: -3520.645646 | F159: -175.4366907 | G159: 388.8150274 | H159: -385.1962808 | I159: 0 | J159: 0 | K159: 0 | L159: 13424.09532 | M159: 0
C160: Other | D160: 52037.16701 | E160: -80382.79652 | F160: -91.77483823 | G160: 27.77421001 | H160: 367386.4994 | I160: 241391.14 | J160: 0 | K160: 396 | L160: 108.0263332 | M160: 0
B163: 2.12.3 - CONTRACT EXPENDITURE
D164: EXPENDITURE
D165: Actual ($0's)
D166: =dms_y1 -> 2009 | E166: =dms_y2 -> 2010 | F166: =dms_y3 -> 2011 | G166: =dms_y4 -> 2012 | H166: =dms_y5 -> 2013 | I166: =dms_y6 -> 2014 | J166: =dms_y7 -> 2015 | K166: =dms_y8 -> 2016 | L166: =dms_y9 -> 2017 | M166: =dms_y10 -> 2018
B167: VEGETATION MANAGEMENT | C167: =IF(ISBLANK(C13)," ",C13) -> Zone 1 | D167: 922516.2048 | E167: 974879.0014 | F167: 2546336.007 | G167: 4902680.741 | H167: 2306769.551 | I167: 2030967.826 | J167: 1079495.743 | K167: 3107675 | L167: -102171.3865 | M167: -302297.3228
C168: Zone 2 | D168: 0 | E168: 0 | F168: 0 | G168: 0 | H168: 0 | I168: 0 | J168: 0 | K168: - | L168: 0 | M168: 0
C169: Zone 3 | D169: 0 | E169: 0 | F169: 0 | G169: 0 | H169: 0 | I169: 0 | J169: 0 | K169: - | L169: 0 | M169: 0
C170: Zone 4 | D170: 0 | E170: 0 | F170: 0 | G170: 0 | H170: 0 | I170: 0 | J170: 0 | K170: - | L170: 0 | M170: 0
C171: Zone 5 | D171: 0 | E171: 0 | F171: 0 | G171: 0 | H171: 0 | I171: 0 | J171: 0 | K171: - | L171: 0 | M171: 0
C172: Zone 6 | D172: 0 | E172: 0 | F172: 0 | G172: 0 | H172: 0 | I172: 0 | J172: 0 | K172: - | L172: 0 | M172: 0
C173: Zone 7 | D173: 0 | E173: 0 | F173: 0 | G173: 0 | H173: 0 | I173: 0 | J173: 0 | K173: - | L173: 0 | M173: 0
C174: Zone 8 | D174: 0 | E174: 0 | F174: 0 | G174: 0 | H174: 0 | I174: 0 | J174: 0 | K174: - | L174: 0 | M174: 0
C175: Zone 9 | D175: 0 | E175: 0 | F175: 0 | G175: 0 | H175: 0 | I175: 0 | J175: 0 | K175: - | L175: 0 | M175: 0
C176: Zone 10 | D176: 0 | E176: 0 | F176: 0 | G176: 0 | H176: 0 | I176: 0 | J176: 0 | K176: - | L176: 0 | M176: 0
C177: Zone 11 | D177: 0 | E177: 0 | F177: 0 | G177: 0 | H177: 0 | I177: 0 | J177: 0 | K177: - | L177: 0 | M177: 0
C178: Zone 12 | D178: 0 | E178: 0 | F178: 0 | G178: 0 | H178: 0 | I178: 0 | J178: 0 | K178: - | L178: 0 | M178: 0
C179: Zone 13 | D179: 0 | E179: 0 | F179: 0 | G179: 0 | H179: 0 | I179: 0 | J179: 0 | K179: - | L179: 0 | M179: 0
C180: Zone 14 | D180: 0 | E180: 0 | F180: 0 | G180: 0 | H180: 0 | I180: 0 | J180: 0 | K180: - | L180: 0 | M180: 0
C181: Zone 15 | D181: 0 | E181: 0 | F181: 0 | G181: 0 | H181: 0 | I181: 0 | J181: 0 | K181: - | L181: 0 | M181: 0
C182: Zone 16 | D182: 0 | E182: 0 | F182: 0 | G182: 0 | H182: 0 | I182: 0 | J182: 0 | K182: - | L182: 0 | M182: 0
C183: Zone 17 | D183: 0 | E183: 0 | F183: 0 | G183: 0 | H183: 0 | I183: 0 | J183: 0 | K183: - | L183: 0 | M183: 0
C184: Zone 18 | D184: 0 | E184: 0 | F184: 0 | G184: 0 | H184: 0 | I184: 0 | J184: 0 | K184: - | L184: 0 | M184: 0
B185: ROUTINE MAINTENANCE | C185: Pole top, overhead line & service line maintenance | D185: 0 | E185: 0 | F185: 0 | G185: 0 | H185: 0 | I185: 0 | J185: 0 | K185: - | L185: 0 | M185: 0
C186: Pole inspection and treatment | D186: 1125937.671 | E186: 1345231.408 | F186: 892845.8684 | G186: 1483409.289 | H186: 1371329.162 | I186: 1442685.143 | J186: 1309616.379 | K186: 311171 | L186: 982014.497 | M186: 744955.4868
C187: Overhead asset inspection | D187: 20702.44051 | E187: 635741.2897 | F187: 175639.2351 | G187: 429804 | H187: 339442.1635 | I187: 331974.2459 | J187: 268691.49 | K187: 88511 | L187: 81163.41988 | M187: 68707.60665
C188: Network underground cable maintenance | D188: 6209.789536 | E188: 20521.94327 | F188: 50731.63316 | G188: 105390.3368 | H188: 35775.22814 | I188: 74332.37693 | J188: 49449.64956 | K188: 9871 | L188: 0 | M188: 61947.34123
C189: Distribution substation equipment & property maintenance | D189: 75922.45533 | E189: 105301.653 | F189: 372500.5969 | G189: 448811.7526 | H189: 524698.3616 | I189: 620243.323 | J189: 947384.1394 | K189: 525027 | L189: 697688.7014 | M189: 1070330.098
C190: Zone substation equipment maintenance | D190: 36870.38995 | E190: 89358.60925 | F190: 203895.9409 | G190: 466771.2616 | H190: 476753.8136 | I190: 308647.8837 | J190: 481096.5045 | K190: 522825 | L190: 804235.6381 | M190: 884274.454
C191: Zone substation property maintenance | D191: 11678.29157 | E191: 61665.2294 | F191: 386438.5818 | G191: 463555.2802 | H191: 632619.2032 | I191: 711275.662 | J191: 1092419.629 | K191: - | L191: 1800735.08 | M191: 2360406.41
C192: Public lighting maintenance | D192: 84035.51541 | E192: 85369.89133 | F192: 21542.86008 | G192: 53795.00109 | H192: 41831.56413 | I192: 32112.52923 | J192: 132560.2359 | K192: 50097 | L192: 113833.3661 | M192: 297360.6103
C193: Scada & network control maintenance | D193: 2481.505123 | E193: 36621.41917 | F193: 1870.826297 | G193: 19153.06915 | H193: 122455.8365 | I193: 8326.460164 | J193: 24514.17989 | K193: 669 | L193: 0 | M193: 76285.6617
C194: Protection systems maintenance | D194: 26179.72838 | E194: 68815.48246 | F194: 112699.1903 | G194: 60858.81346 | H194: 97650.64154 | I194: 156917.9175 | J194: 171145.1516 | K194: 51104 | L194: 60580.81247 | M194: 296212.9855
C195: Subtransmission asset maintenance - for dnsps with dual function assets | D195: 0 | E195: 0 | F195: 0 | G195: 0 | H195: 0 | I195: 0 | J195: 0 | K195: - | L195: 0 | M195: 0
C196: Other | D196: 52634.81 | E196: 2753963.231 | F196: -2094356.922 | G196: 343845.4419 | H196: 81836.965 | I196: 468175.3499 | J196: 203688.32 | K196: 17469 | L196: 7198.552082 | M196: 7129.446856
B197: NON-ROUTINE MAINTENANCE | C197: Pole top, overhead line & service line maintenance | D197: 1013661.819 | E197: 799882.1701 | F197: 1525765.772 | G197: 1227982.891 | H197: 659903.7276 | I197: 974721.3685 | J197: 240273.3106 | K197: 1276482 | L197: 1181316.177 | M197: 1066750.81
C198: Pole inspection and treatment | D198: 0 | E198: 0 | F198: 0 | G198: 0 | H198: 0 | I198: 0 | J198: 0 | K198: - | L198: 0 | M198: 0
C199: Overhead asset inspection | D199: 0 | E199: 0 | F199: 0 | G199: 0 | H199: 0 | I199: 0 | J199: 0 | K199: - | L199: 0 | M199: 0
C200: Network underground cable maintenance | D200: 0 | E200: 1950.551345 | F200: 5468.091226 | G200: 9356.000028 | H200: 4347.179686 | I200: 6631.605654 | J200: 2484.235852 | K200: 63526 | L200: 223223.6588 | M200: 352766.8896
C201: Distribution substation equipment & property maintenance | D201: 4138.776233 | E201: 44874.56006 | F201: 88361.70974 | G201: 118731.2151 | H201: 152705.8065 | I201: 83820.29123 | J201: 176144.9148 | K201: 255497 | L201: 168712.0001 | M201: 248301.3526
C202: Zone substation equipment maintenance | D202: 2213.67972 | E202: 16249.8429 | F202: 52501.35328 | G202: 104156.0709 | H202: 94611.94752 | I202: 212888.3978 | J202: 208452.1922 | K202: 314321 | L202: 143717.6037 | M202: 235282.926
C203: Zone substation property maintenance | D203: 8467.524325 | E203: 6914.439219 | F203: 6043.904265 | G203: 6429.630586 | H203: 20185.02873 | I203: 12527.52545 | J203: 7371.044503 | K203: - | L203: 777.8893382 | M203: 0
C204: Public lighting maintenance | D204: 139758.7311 | E204: 276776.815 | F204: 180592.8432 | G204: 287413.3697 | H204: 401058.2878 | I204: 509202.6884 | J204: 1406671.94 | K204: 113863 | L204: 645683.6532 | M204: 689767.4545
C205: SCADA & network control maintenance | D205: 55.83142431 | E205: 1003.389588 | F205: 143321.998 | G205: 17356.05802 | H205: 17195.97203 | I205: 70220.38144 | J205: 18473.40362 | K205: 58078 | L205: 31844.60312 | M205: 56717.26977
C206: Protection systems maintenance | D206: 394.0828456 | E206: 9662.475422 | F206: 43915.34108 | G206: 38269.61487 | H206: 134095.3701 | I206: 128662.1052 | J206: 124513.259 | K206: 67997 | L206: 77482.0665 | M206: 136739.9101
... 256 more rows

Sheet 4.2 Metering
B1: =INDEX(dms_Worksheet_List,MATCH(dms_Model,dms_Model_List)) -> RECAST HISTORICAL CATEGORY ANALYSIS - CALENDAR YEARS
B2: =INDEX(dms_TradingNameFull_List,MATCH(dms_TradingName,dms_TradingName_List)) -> CitiPower
B3: =dms_Header_Span -> 2009 to 2018
B4: 4.2 METERING
B6: There are TWO tables on this worksheet. Each table has been 'grouped' (and 'sub-grouped') for easy navigation. See the Instructions sheet on how to group or ungroup data.
B8: 4.2.2 - COST METRICS
B9: EXPENDITURE
D10: EXPENDITURE ($0's)
B11: SERVICE SUBCATEGORY | C11: METER TYPE | D11: =dms_y1 -> 2009 | E11: =dms_y2 -> 2010 | F11: =dms_y3 -> 2011 | G11: =dms_y4 -> 2012 | H11: =dms_y5 -> 2013 | I11: =dms_y6 -> 2014 | J11: =dms_y7 -> 2015 | K11: =dms_y8 -> 2016 | L11: =dms_y9 -> 2017 | M11: =dms_y10 -> 2018
B12: Meter purchase | C12: Meter Type 4
C13: Meter Type 5
C14: Meter Type 6
B15: Meter testing | C15: Meter Type 4
C16: Meter Type 5
C17: Meter Type 6
B18: Meter investigation | C18: Meter Type 4
C19: Meter Type 5
C20: Meter Type 6
B21: Scheduled meter reading | C21: Meter Type 4
C22: Meter Type 5
C23: Meter Type 6
B24: Special meter reading | C24: Meter Type 4
C25: Meter Type 5
C26: Meter Type 6
B27: New meter installation | C27: Meter Type 4
C28: Meter Type 5
C29: Meter Type 6
B30: Meter replacement | C30: Meter Type 4
C31: Meter Type 5
C32: Meter Type 6
B33: Meter maintenance | C33: Meter Type 4
C34: Meter Type 5
C35: Meter Type 6
B36: Remote meter reading | C36: Meter Type 4
B37: Remote meter re-configuration | C37: Meter Type 4
B38: Other metering | C38: Meter Type 4
C39: Meter Type 5
C40: Meter Type 6
C41: Meter Type 7
B42: IT infrastructure capex | C42: Meter Type 4
B43: IT infrastructure opex | C43: Meter Type 4
B44: Communications infrastructure capex | C44: Meter Type 4
B45: Communications infrastructure opex | C45: Meter Type 4

Sheet 4.3 Fee-based services
B1: =INDEX(dms_Worksheet_List,MATCH(dms_Model,dms_Model_List)) -> RECAST HISTORICAL CATEGORY ANALYSIS - CALENDAR YEARS
B2: =INDEX(dms_TradingNameFull_List,MATCH(dms_TradingName,dms_TradingName_List)) -> CitiPower
B3: =dms_Header_Span -> 2009 to 2018
B4: 4.3 ANCILLARY SERVICES - FEE BASED SERVICES
B6: There is ONE table on this worksheet. The COLUMNS AND ROWS have been 'grouped' for easy navigation. See the Instructions sheet on how to group or ungroup data.
B8: 4.3.1 - COST METRICS FOR FEE-BASED SERVICES
B9: COMMON FEE-BASED SERVICES
C10: EXPENDITURE ($0's)
B11: SERVICE SUBCATEGORY | C11: =dms_y1 -> 2009 | D11: =dms_y2 -> 2010 | E11: =dms_y3 -> 2011 | F11: =dms_y4 -> 2012 | G11: =dms_y5 -> 2013 | H11: =dms_y6 -> 2014 | I11: =dms_y7 -> 2015 | J11: =dms_y8 -> 2016 | K11: =dms_y9 -> 2017 | L11: =dms_y10 -> 2018
B12: Energisation
B13: De-energisation
B14: Re-energisation
B15: MISCELLANEOUS FEE-BASED SERVICES
B16: < Enter description of service >

Sheet 4.4 Quoted services
B1: =INDEX(dms_Worksheet_List,MATCH(dms_Model,dms_Model_List)) -> RECAST HISTORICAL CATEGORY ANALYSIS - CALENDAR YEARS
B2: =INDEX(dms_TradingNameFull_List,MATCH(dms_TradingName,dms_TradingName_List)) -> CitiPower
B3: =dms_Header_Span -> 2009 to 2018
B4: 4.4 ANCILLARY SERVICES - QUOTED SERVICES
B6: There is ONE table on this worksheet. The COLUMNS have been 'grouped' for easy navigation. See the Instructions sheet on how to group or ungroup data.
B8: 4.4.1 - COST METRICS FOR QUOTED SERVICES
B9: SERVICE SUBCATEGORY | C9: EXPENDITURE ($0's)
C10: =dms_y1 -> 2009 | D10: =dms_y2 -> 2010 | E10: =dms_y3 -> 2011 | F10: =dms_y4 -> 2012 | G10: =dms_y5 -> 2013 | H10: =dms_y6 -> 2014 | I10: =dms_y7 -> 2015 | J10: =dms_y8 -> 2016 | K10: =dms_y9 -> 2017 | L10: =dms_y10 -> 2018
B11: < Enter description for service subcategory >

Sheet Amendments
B1: =CONCATENATE("If ",dms_TradingName," resubmits this Regulatory Reporting Statement, please use this worksheet to identify amendments made to data resubmitted to the AER.") -> If CitiPower resubmits this Regulatory Reporting Statement, please use this worksheet to identify amendments made to data resubmitted to the AER.
B2: NSP data amendments
B3: Worksheet | C3: Table/Cell | D3: Reason for amendment
